Service Area,Service Division,Expense Type,Expense Code,Detailed Expense Type,Payment Date,Transaction Number,Amount Exc Vat,Supplier Name
Assistant Chief Executive,Partnerships & Community Engagement Div.,Supplies and Services,384085,Miscellaneous Expenses,03-Aug-2015,3006338-ADAE09-15CLAR08-15,700.00,AYCLIFFE & DISTRICT BUS PRESERVATION SOCIETY.
Assistant Chief Executive,Partnerships & Community Engagement Div.,Supplies and Services,384085,Miscellaneous Expenses,03-Aug-2015,3006543-BLEG03-15,500.00,SEAHAM ROSEBERRY PARK FOOTBALL CLUB.
Assistant Chief Executive,Partnerships & Community Engagement Div.,Supplies and Services,384085,Miscellaneous Expenses,03-Aug-2015,3006561-MILO02-15HAMC03-15,"1,400.00",STANLEY WOODCRAFT FOLK.
Assistant Chief Executive,Partnerships & Community Engagement Div.,Supplies and Services,384085,Miscellaneous Expenses,03-Aug-2015,3006578-HODM02-15TEMO05-15,"5,350.00",TEESDALE & WEARDALE SEARCH & MOUNTAIN RESCUE TEAM (TWSMRT).
Children and Adult Services,Childrens Services,Transport,230005,Contract Hire,03-Aug-2015,3006466-2236,"1,250.00",LOCAL TRANSPORT LTD.
Children and Adult Services,Childrens Services,Transport,230005,Contract Hire,03-Aug-2015,3006466-2259,500.00,LOCAL TRANSPORT LTD.
Children and Adult Services,Childrens Services,Third Party Payments,440035,Other Third Party Payments,03-Aug-2015,3006482-CAS-07-2015-144,849.15,REDACTED - PAYMENT TO INDIVIDUAL
Children and Adult Services,Childrens Services,Third Party Payments,440035,Other Third Party Payments,03-Aug-2015,3006514-CAS-07-2015-151,732.88,REDACTED - PAYMENT TO INDIVIDUAL
Children and Adult Services,Childrens Services,Employees,080025,Agency Staff,03-Aug-2015,3006531-0228329631,780.00,REED MANAGED SERVICES LTD.
Children and Adult Services,Childrens Services,Third Party Payments,425040,Rendered by Voluntary Organisations,03-Aug-2015,3006575-25349,"3,631.43",TEAM FOSTERING.
Children and Adult Services,Childrens Services,Third Party Payments,425040,Rendered by Voluntary Organisations,03-Aug-2015,3006575-25373,"3,232.86",TEAM FOSTERING.
Children and Adult Services,Childrens Services,Third Party Payments,425040,Rendered by Voluntary Organisations,03-Aug-2015,3006575-25374,"3,232.86",TEAM FOSTERING.
Children and Adult Services,Childrens Services,Third Party Payments,425040,Rendered by Voluntary Organisations,03-Aug-2015,3006575-25375,"6,332.99",TEAM FOSTERING.
Children and Adult Services,Childrens Services,Third Party Payments,425040,Rendered by Voluntary Organisations,03-Aug-2015,3006575-25379,"3,232.86",TEAM FOSTERING.
Children and Adult Services,Childrens Services,Third Party Payments,425040,Rendered by Voluntary Organisations,03-Aug-2015,3006575-25385,"6,200.00",TEAM FOSTERING.
Children and Adult Services,Childrens Services,Third Party Payments,425040,Rendered by Voluntary Organisations,03-Aug-2015,3006575-25401,"3,631.43",TEAM FOSTERING.
Children and Adult Services,Childrens Services,Third Party Payments,425040,Rendered by Voluntary Organisations,03-Aug-2015,3006575-25425,"3,232.86",TEAM FOSTERING.
Children and Adult Services,Childrens Services,Third Party Payments,425040,Rendered by Voluntary Organisations,03-Aug-2015,3006575-25427,"3,631.43",TEAM FOSTERING.
Children and Adult Services,Childrens Services,Third Party Payments,425040,Rendered by Voluntary Organisations,03-Aug-2015,3006575-25432,"3,232.86",TEAM FOSTERING.
Children and Adult Services,Childrens Services,Third Party Payments,425040,Rendered by Voluntary Organisations,03-Aug-2015,3006575-25433,"3,232.68",TEAM FOSTERING.
Children and Adult Services,Childrens Services,Third Party Payments,425040,Rendered by Voluntary Organisations,03-Aug-2015,3006575-25446,"3,100.00",TEAM FOSTERING.
Children and Adult Services,Childrens Services,Employees,080025,Agency Staff,03-Aug-2015,3006600-168710,950.00,VISION FOR EDUCATION LTD.
Children and Adult Services,Commissioning inc Supporting People,Third Party Payments,479111,Purchase of Care,03-Aug-2015,3006392-DCC022,"4,614.78",DURHAM DEAFENED SUPPORT.
Dedicated Schools Grant,Dedicated Schools Grant,Third Party Payments,440080,Other Third Party Payments,03-Aug-2015,3006384-C02081,"10,938.22",DERWENTSIDE COLLEGE.
Children and Adult Services,Education,Supplies and Services,338027,Services,03-Aug-2015,3006452-014,"1,470.00",JANE OLIVER T/A BRIGHTBRAIN SCOTLAND.
Children and Adult Services,Education,Supplies and Services,312009,Newspapers Books and Periodicals,03-Aug-2015,3006517-1547170,838.09,PETERS LTD.
Children and Adult Services,Education,Supplies and Services,312009,Newspapers Books and Periodicals,03-Aug-2015,3006517-1547171,878.40,PETERS LTD.
Children and Adult Services,Education,Supplies and Services,338094,Services,03-Aug-2015,3006581-0000433898,"6,732.90",THE HOTEL COLLECTION NO 14 LTD.
Children and Adult Services,Planning & Service Strategy,Employees,040149,Recruitment Instruction and Training,03-Aug-2015,3006387-071,"1,900.00",DO THE WRITE THING LTD.
Children and Adult Services,Public Health,Supplies and Services,352001,Conference Expenses,03-Aug-2015,3006580-3227,583.70,THE DURHAM CENTRE LTD.
Children and Adult Services,Public Health,Third Party Payments,460803,Contract Payments,03-Aug-2015,3006602-1516/002A,"8,000.00",WADDINGTON STREET CENTRE LTD.
Neighbourhood Services,Technical Services,Supplies and Services,304221,Equipment and Materials,03-Aug-2015,3006327-21718979,952.56,AGGREGATE INDUSTRIES UK LTD.
Neighbourhood Services,Technical Services,Supplies and Services,304221,Equipment and Materials,03-Aug-2015,3006327-21718981,"1,243.97",AGGREGATE INDUSTRIES UK LTD.
Neighbourhood Services,Technical Services,Supplies and Services,304221,Equipment and Materials,03-Aug-2015,3006327-21718982,942.76,AGGREGATE INDUSTRIES UK LTD.
Neighbourhood Services,Technical Services,Supplies and Services,304221,Equipment and Materials,03-Aug-2015,3006327-21726341,"1,360.77",AGGREGATE INDUSTRIES UK LTD.
Neighbourhood Services,Technical Services,Supplies and Services,304221,Equipment and Materials,03-Aug-2015,3006327-21726342,"1,255.25",AGGREGATE INDUSTRIES UK LTD.
Neighbourhood Services,Technical Services,Supplies and Services,304221,Equipment and Materials,03-Aug-2015,3006327-21726343,"1,601.81",AGGREGATE INDUSTRIES UK LTD.
Neighbourhood Services,Technical Services,Supplies and Services,304221,Equipment and Materials,03-Aug-2015,3006327-21726344,861.65,AGGREGATE INDUSTRIES UK LTD.
Neighbourhood Services,Technical Services,Supplies and Services,304221,Equipment and Materials,03-Aug-2015,3006327-21726345,784.93,AGGREGATE INDUSTRIES UK LTD.
Neighbourhood Services,Direct Services,Third Party Payments,430100,Rendered by Private Contractors,03-Aug-2015,3006329-20279,"1,130.35",ALARM & COMMUNICATION SYSTEMS LTD.
Neighbourhood Services,Technical Services,Stock,926900,Stock in hand-Inventory system,03-Aug-2015,3006335-925055580,"2,275.32",ARCO LTD.
Neighbourhood Services,Technical Services,Stock,926900,Stock in hand-Inventory system,03-Aug-2015,3006335-925055581,518.90,ARCO LTD.
Neighbourhood Services,Culture & Sport,Supplies and Services,384199,Miscellaneous Expenses,03-Aug-2015,3006337-1676,"1,740.00",ARTERIUM LTD.
Neighbourhood Services,Technical Services,Stock,926004,Stock,03-Aug-2015,3006366-90136398,"10,920.75",CLEVELAND POTASH LTD.
Neighbourhood Services,Direct Services,Employees,080025,Agency Staff,03-Aug-2015,3006383-326982,"146,859.57",DE POEL MANAGED SERVICES LTD.
Neighbourhood Services,Direct Services,Supplies and Services,304221,Equipment and Materials,03-Aug-2015,3006399-059-167754,"1,021.25",EDMUNDSON ELECTRICAL LTD.
Neighbourhood Services,Technical Services,Stock,926900,Stock in hand-Inventory system,03-Aug-2015,3006416-1/462709,682.80,FRED WILLIAMSON & SONS LTD.
Neighbourhood Services,Technical Services,Stock,926900,Stock in hand-Inventory system,03-Aug-2015,3006425-SINV-084531,"7,648.56",GELPACK EXCELSIOR LTD.
Neighbourhood Services,Technical Services,Stock,926900,Stock in hand-Inventory system,03-Aug-2015,3006430-06/564005,964.82,GREENHAM TRADING LTD.
Neighbourhood Services,Direct Services,Supplies and Services,304221,Equipment and Materials,03-Aug-2015,3006433-34544,843.10,GROUNDSMAN.
Neighbourhood Services,Direct Services,Supplies and Services,304221,Equipment and Materials,03-Aug-2015,3006433-34546,843.10,GROUNDSMAN.
Neighbourhood Services,Direct Services,Transport,215022,Running Costs of Vehicles,03-Aug-2015,3006435-543819,576.47,HARVEST ENERGY LTD.
Neighbourhood Services,Direct Services,Transport,215022,Running Costs of Vehicles,03-Aug-2015,3006435-543820,"1,410.00",HARVEST ENERGY LTD.
Neighbourhood Services,Direct Services,Transport,215005,Running Costs of Vehicles,03-Aug-2015,3006435-543821,"16,759.80",HARVEST ENERGY LTD.
Neighbourhood Services,Direct Services,Transport,215005,Running Costs of Vehicles,03-Aug-2015,3006435-543824,"11,144.40",HARVEST ENERGY LTD.
Neighbourhood Services,Direct Services,Transport,215005,Running Costs of Vehicles,03-Aug-2015,3006435-543825,"16,757.94",HARVEST ENERGY LTD.
Neighbourhood Services,Technical Services,Supplies and Services,304221,Equipment and Materials,03-Aug-2015,3006446-091846,"1,026.16",HYDRAM ENGINEERING LTD.
Neighbourhood Services,Culture & Sport,Supplies and Services,336005,Advertising,03-Aug-2015,3006448-0001,850.00,IAN WELDON PHOTOGRAPHY.
Neighbourhood Services,Technical Services,Stock,926900,Stock in hand-Inventory system,03-Aug-2015,3006453-7284,541.40,JG UNIFORMS.
Neighbourhood Services,Direct Services,Supplies and Services,304221,Equipment and Materials,03-Aug-2015,3006458-CNI22527/D,"2,380.00",JT DOVE LTD.
Neighbourhood Services,Direct Services,Supplies and Services,304221,Equipment and Materials,03-Aug-2015,3006458-PHBII24872,"7,750.50",JT DOVE LTD.
Neighbourhood Services,Technical Services,Stock,926900,Stock in hand-Inventory system,03-Aug-2015,3006458-STI422768,"1,050.28",JT DOVE LTD.
Neighbourhood Services,Direct Services,Supplies and Services,304259,Equipment and Materials,03-Aug-2015,3006497-117385,730.00,NEWGATE (NEWARK) LTD.
Neighbourhood Services,Technical Services,Stock,926900,Stock in hand-Inventory system,03-Aug-2015,3006505-1649397,553.56,NORTHERN TOOLS & ACCESSORIES.
Neighbourhood Services,Direct Services,Supplies and Services,304221,Equipment and Materials,03-Aug-2015,3006513-XL147577,"1,057.07",PARK ELECTRICAL DISTRIBUTORS LTD.
Neighbourhood Services,Technical Services,Stock,926900,Stock in hand-Inventory system,03-Aug-2015,3006513-XL147589,709.29,PARK ELECTRICAL DISTRIBUTORS LTD.
Neighbourhood Services,Technical Services,Stock,926900,Stock in hand-Inventory system,03-Aug-2015,3006513-XL147599,"1,183.00",PARK ELECTRICAL DISTRIBUTORS LTD.
Neighbourhood Services,Technical Services,Stock,926900,Stock in hand-Inventory system,03-Aug-2015,3006513-XL147645,660.00,PARK ELECTRICAL DISTRIBUTORS LTD.
Neighbourhood Services,Culture & Sport,Premises,145015,Cleaning and Domestic Supplies,03-Aug-2015,3006519-62487852,556.50,PHS GROUP PLC.
Neighbourhood Services,Technical Services,Stock,926900,Stock in hand-Inventory system,03-Aug-2015,3006520-10041,"1,298.00",PLUMBING & HEATING SUPPLIES LTD.
Neighbourhood Services,Technical Services,Third Party Payments,430100,Rendered by Private Contractors,03-Aug-2015,3006523-135086,"16,544.95",PREMIER TRAFFIC MANAGEMENT LTD.
Neighbourhood Services,Direct Services,Supplies and Services,304221,Equipment and Materials,03-Aug-2015,3006524-12926,"2,677.50",PROBRUSH T/A NORTHERN MUNICIPAL SPARES LTD.
Neighbourhood Services,Technical Services,Stock,926900,Stock in hand-Inventory system,03-Aug-2015,3006524-12927,518.84,PROBRUSH T/A NORTHERN MUNICIPAL SPARES LTD.
Neighbourhood Services,Technical Services,Stock,926900,Stock in hand-Inventory system,03-Aug-2015,3006553-187006,"2,830.00",SNAPFAST.
Neighbourhood Services,Technical Services,Stock,926900,Stock in hand-Inventory system,03-Aug-2015,3006553-187008,"1,893.60",SNAPFAST.
Neighbourhood Services,Technical Services,Stock,926900,Stock in hand-Inventory system,03-Aug-2015,3006553-187020,"1,893.60",SNAPFAST.
Neighbourhood Services,Technical Services,Supplies and Services,342033,Computers and Communications,03-Aug-2015,3006558-OP/M026257,"1,735.44",SPECIALIST COMPUTER CENTRES PLC.
Neighbourhood Services,Technical Services,Stock,926900,Stock in hand-Inventory system,03-Aug-2015,3006565-7559270,"1,044.80",SUPPLIES TEAM LTD (NOW KNOWN AS BANNER).
Neighbourhood Services,Direct Services,Supplies and Services,328041,Clothing Uniforms and Laundry,03-Aug-2015,3006567-432236,524.80,SWIFT INDUSTRIAL SUPPLIES LTD.
Neighbourhood Services,Direct Services,Supplies and Services,304221,Equipment and Materials,03-Aug-2015,3006568-1646782,"1,170.98",T CROSSLING & CO LTD.
Neighbourhood Services,Direct Services,Supplies and Services,304221,Equipment and Materials,03-Aug-2015,3006568-1650178,608.36,T CROSSLING & CO LTD.
Neighbourhood Services,Technical Services,Supplies and Services,304221,Equipment and Materials,03-Aug-2015,3006571-9032942410,573.13,TARMAC TRADING LTD.
Neighbourhood Services,Technical Services,Supplies and Services,304221,Equipment and Materials,03-Aug-2015,3006571-9032944062,"1,212.76",TARMAC TRADING LTD.
Neighbourhood Services,Culture & Sport,Supplies and Services,304639,Equipment and Materials,03-Aug-2015,3006576-86468,"1,320.00",TECHNICAL LAMP SUPPLIES UK LTD.
Neighbourhood Services,Culture & Sport,Supplies and Services,338094,Services,03-Aug-2015,3006580-3236,"1,512.50",THE DURHAM CENTRE LTD.
Neighbourhood Services,Direct Services,Supplies and Services,328041,Clothing Uniforms and Laundry,03-Aug-2015,3006584-N/IN150574,864.00,THOMAS OWEN & SONS (NEWCASTLE) LTD.
Neighbourhood Services,Technical Services,Stock,926900,Stock in hand-Inventory system,03-Aug-2015,3006587-100357,"1,246.00",TOFCO LTD.
Neighbourhood Services,Technical Services,Supplies and Services,304221,Equipment and Materials,03-Aug-2015,3006594-15095,"1,161.92",TYNEDALE ROADSTONE LTD.
Neighbourhood Services,Technical Services,Supplies and Services,304221,Equipment and Materials,03-Aug-2015,3006594-150952,"1,179.36",TYNEDALE ROADSTONE LTD.
Neighbourhood Services,Technical Services,Supplies and Services,304221,Equipment and Materials,03-Aug-2015,3006603-PSI-685096,516.50,WATCO UK LTD.
Neighbourhood Services,Technical Services,Stock,926900,Stock in hand-Inventory system,03-Aug-2015,3006606-1994339,600.60,WILKIES.
Neighbourhood Services,Direct Services,Supplies and Services,304221,Equipment and Materials,03-Aug-2015,3006608-24171308,"1,076.16",WOLSELEY UK LTD.
Neighbourhood Services,Technical Services,Stock,926900,Stock in hand-Inventory system,03-Aug-2015,3006608-24171310,"2,856.46",WOLSELEY UK LTD.
Neighbourhood Services,Technical Services,Stock,926900,Stock in hand-Inventory system,03-Aug-2015,3006608-24171311,586.84,WOLSELEY UK LTD.
Neighbourhood Services,Direct Services,Supplies and Services,304221,Equipment and Materials,03-Aug-2015,3006608-24171313,863.88,WOLSELEY UK LTD.
Neighbourhood Services,Technical Services,Stock,926900,Stock in hand-Inventory system,03-Aug-2015,3006608-24171318,815.51,WOLSELEY UK LTD.
Neighbourhood Services,Technical Services,Stock,926900,Stock in hand-Inventory system,03-Aug-2015,3006608-24171319,595.15,WOLSELEY UK LTD.
Regeneration & Economic Development,Economic Development and Housing,Supplies and Services,384700,Miscellaneous Expenses,03-Aug-2015,3006385-RED-07-2015-221,"1,000.00",DESIGN REVEL.
Regeneration & Economic Development,Transport and Contracted Services,Vehicles Equipment Furniture and Fittings,912529,Purchase-equipment,03-Aug-2015,3006411-INV28787,"5,175.00",FERROGRAPH LTD.
Regeneration & Economic Development,Economic Development and Housing,Cap Exp on Grants & Other Financial Assistance (REFCUS),918401,Capital grants,03-Aug-2015,3006414-4548,545.00,FIVE LAMPS ORGANISATION.
Regeneration & Economic Development,Economic Development and Housing,Cap Exp on Grants & Other Financial Assistance (REFCUS),918401,Capital grants,03-Aug-2015,3006414-4549,545.00,FIVE LAMPS ORGANISATION.
Regeneration & Economic Development,Economic Development and Housing,Supplies and Services,344033,Telephones,03-Aug-2015,3006417-124384,"1,287.66",FREEDOM COMMUNICATIONS (UK) LTD.
Regeneration & Economic Development,Transport and Contracted Services,Construction Work,908105,Construction work,03-Aug-2015,3006451-11395,591.61,JACK COUPE & SONS LTD T/A COUPE LINE.
Regeneration & Economic Development,Transport and Contracted Services,Supplies and Services,384199,Miscellaneous Expenses,03-Aug-2015,3006465-3407,"253,614.00",LIVING STREETS.
Regeneration & Economic Development,Spatial Policy Planning Assets & Environment,Supplies and Services,336005,Advertising,03-Aug-2015,3006499-11795593,"1,014.17",NEWSQUEST (YORKSHIRE & NORTH EAST) LTD.
Regeneration & Economic Development,Spatial Policy Planning Assets & Environment,Supplies and Services,384540,Miscellaneous Expenses,03-Aug-2015,3006522-619002,"3,042.00",POTTS PRINTERS LTD.
Regeneration & Economic Development,Spatial Policy Planning Assets & Environment,Supplies and Services,384899,Miscellaneous Expenses,03-Aug-2015,3006530-RED-07-2015-213,"3,141.00",RED SQUIRRELS NORTHERN ENGLAND (RSNE).
Regeneration & Economic Development,Spatial Policy Planning Assets & Environment,Supplies and Services,384899,Miscellaneous Expenses,03-Aug-2015,3006538-RED-07-2015-214,"2,012.18",ROYAL SOCIETY FOR THE PROTECTION OF BIRDS (RSPB).
Regeneration & Economic Development,Transport and Contracted Services,Supplies and Services,304245,Equipment and Materials,03-Aug-2015,3006593-3IN/10264738,"1,340.00",TUNSTALL HEALTHCARE (UK) LTD.
Regeneration & Economic Development,Transport and Contracted Services,Vehicles Equipment Furniture and Fittings,912529,Purchase-equipment,03-Aug-2015,3006593-4528,"76,800.00",TUNSTALL HEALTHCARE (UK) LTD.
Regeneration & Economic Development,Economic Development and Housing,Supplies and Services,338094,Services,03-Aug-2015,3006609-239,"10,830.00",XCEL CONFERENCE & EVENTS (INNOVATE COUNTY DURHAM) LTD.
Resources,I.C.T. Services,Supplies and Services,332029,Printing Stationery and Gen Off Exps,03-Aug-2015,3006328-211495,"1,009.00",AGNE LTD T/A ALPHAGRAPHICS.
Resources,Legal & Democratic Services,Supplies and Services,384059,Miscellaneous Expenses,03-Aug-2015,3006391-26933,"2,800.00",DURHAM COUNTY CRICKET CLUB.
Resources,I.C.T. Services,Supplies and Services,304259,Equipment and Materials,03-Aug-2015,3006437-1070702,873.00,HIGHLANDER COMPUTING SOLUTIONS LTD.
Resources,Legal & Democratic Services,Supplies and Services,338057,Services,03-Aug-2015,3006506-15060,"1,150.00",NORTHGENE LTD.
Resources,I.C.T. Services,Supplies and Services,332029,Printing Stationery and Gen Off Exps,03-Aug-2015,3006522-619048,"3,589.00",POTTS PRINTERS LTD.
Resources,Legal & Democratic Services,Supplies and Services,338057,Services,03-Aug-2015,3006534-0000020574,"2,950.00",ROAR FORENSICS LTD.
Children and Adult Services,Childrens Services,Third Party Payments,440001,Other Third Party Payments,04-Aug-2015,3006716-1043046,640.72,REDACTED - PAYMENT TO INDIVIDUAL
Children and Adult Services,Childrens Services,Third Party Payments,440015,Other Third Party Payments,04-Aug-2015,3006781-1043652,"1,202.67",REDACTED - PAYMENT TO INDIVIDUAL
Children and Adult Services,Childrens Services,Third Party Payments,440015,Other Third Party Payments,04-Aug-2015,3006781-1043653,"1,202.67",REDACTED - PAYMENT TO INDIVIDUAL
Children and Adult Services,Childrens Services,Third Party Payments,440015,Other Third Party Payments,04-Aug-2015,3006781-1043654,"1,094.34",REDACTED - PAYMENT TO INDIVIDUAL
Children and Adult Services,Childrens Services,Third Party Payments,440027,Other Third Party Payments,04-Aug-2015,3006786-1043667,816.99,REDACTED - PAYMENT TO INDIVIDUAL
Children and Adult Services,Childrens Services,Third Party Payments,440001,Other Third Party Payments,04-Aug-2015,3006834-1042781,873.84,REDACTED - PAYMENT TO INDIVIDUAL
Children and Adult Services,Childrens Services,Third Party Payments,440001,Other Third Party Payments,04-Aug-2015,3006834-1042782,873.84,REDACTED - PAYMENT TO INDIVIDUAL
Children and Adult Services,Childrens Services,Third Party Payments,440001,Other Third Party Payments,04-Aug-2015,3006953-1043076,913.56,REDACTED - PAYMENT TO INDIVIDUAL
Children and Adult Services,Childrens Services,Third Party Payments,440001,Other Third Party Payments,04-Aug-2015,3007100-1043074,936.00,REDACTED - PAYMENT TO INDIVIDUAL
Children and Adult Services,Childrens Services,Third Party Payments,440001,Other Third Party Payments,04-Aug-2015,3007100-1043075,936.00,REDACTED - PAYMENT TO INDIVIDUAL
Children and Adult Services,Childrens Services,Third Party Payments,440016,Other Third Party Payments,04-Aug-2015,3007185-1043538,"1,123.00",REDACTED - PAYMENT TO INDIVIDUAL
Children and Adult Services,Childrens Services,Supplies and Services,338035,Services,04-Aug-2015,3007240-INV-202770,500.00,B SQUARED LTD.
Children and Adult Services,Childrens Services,Employees,080025,Agency Staff,04-Aug-2015,3007257-2312394,"1,640.00",CELSIAN.
Children and Adult Services,Childrens Services,Supplies and Services,338076,Services,04-Aug-2015,3007296-618,"12,900.00",GRANGE VILLA COMMUNITY ENTERPRISE CENTRE.
Children and Adult Services,Childrens Services,Transport,230005,Contract Hire,04-Aug-2015,3007339-2257,500.00,LOCAL TRANSPORT LTD.
Children and Adult Services,Childrens Services,Transport,230005,Contract Hire,04-Aug-2015,3007339-2258,"1,108.00",LOCAL TRANSPORT LTD.
Children and Adult Services,Childrens Services,Transport,230005,Contract Hire,04-Aug-2015,3007339-2260,"1,230.00",LOCAL TRANSPORT LTD.
Children and Adult Services,Childrens Services,Supplies and Services,308011,Furniture,04-Aug-2015,3007349-369,"1,125.00",MERIDIAN UPHOLSTERY.
Children and Adult Services,Childrens Services,Employees,080025,Agency Staff,04-Aug-2015,3007398-0228357961,975.00,REED MANAGED SERVICES LTD.
Children and Adult Services,Childrens Services,Employees,080025,Agency Staff,04-Aug-2015,3007440-167474,950.00,VISION FOR EDUCATION LTD.
Dedicated Schools Grant,Dedicated Schools Grant,Transport,230010,Contract Hire,04-Aug-2015,3007322-2015/17,600.00,JM HUMBLE COACH HIRE.
Dedicated Schools Grant,Dedicated Schools Grant,Transport,230010,Contract Hire,04-Aug-2015,3007329-00628,655.00,KENNAS CABS.
Children and Adult Services,Education,Transport,230007,Contract Hire,04-Aug-2015,3007230-145,980.00,ACE TAXIS (WINSTON).
Children and Adult Services,Education,Transport,230007,Contract Hire,04-Aug-2015,3007230-146,630.00,ACE TAXIS (WINSTON).
Children and Adult Services,Education,Transport,230007,Contract Hire,04-Aug-2015,3007230-147,630.00,ACE TAXIS (WINSTON).
Children and Adult Services,Education,Transport,230007,Contract Hire,04-Aug-2015,3007230-148,"1,470.00",ACE TAXIS (WINSTON).
Children and Adult Services,Education,Transport,230007,Contract Hire,04-Aug-2015,3007230-151,910.00,ACE TAXIS (WINSTON).
Children and Adult Services,Education,Transport,230008,Contract Hire,04-Aug-2015,3007267-5519,507.00,CROFT BUSINESS SERVICES (UK) LTD T/A CROFT TAXIS.
Children and Adult Services,Education,Transport,230008,Contract Hire,04-Aug-2015,3007272-1414,"1,089.27",DA TAXIS.
Children and Adult Services,Education,Transport,230008,Contract Hire,04-Aug-2015,3007272-1415,721.76,DA TAXIS.
Children and Adult Services,Education,Transport,230008,Contract Hire,04-Aug-2015,3007273-JULY0115,"1,312.35",DALELINK PRIVATE HIRE.
Children and Adult Services,Education,Transport,230007,Contract Hire,04-Aug-2015,3007301-HT180,"1,300.00",HARRY`S TAXI`S.
Children and Adult Services,Education,Transport,230008,Contract Hire,04-Aug-2015,3007301-HT181,"1,400.00",HARRY`S TAXI`S.
Children and Adult Services,Education,Transport,230007,Contract Hire,04-Aug-2015,3007301-HT182,520.00,HARRY`S TAXI`S.
Children and Adult Services,Education,Transport,230008,Contract Hire,04-Aug-2015,3007301-HT183,"1,724.71",HARRY`S TAXI`S.
Children and Adult Services,Education,Transport,230007,Contract Hire,04-Aug-2015,3007307-012826,"2,217.82",HODGSONS COACH OPERATORS LTD.
Children and Adult Services,Education,Transport,230007,Contract Hire,04-Aug-2015,3007307-012827,"2,176.46",HODGSONS COACH OPERATORS LTD.
Children and Adult Services,Education,Transport,230007,Contract Hire,04-Aug-2015,3007307-012828,"3,597.88",HODGSONS COACH OPERATORS LTD.
Children and Adult Services,Education,Transport,230007,Contract Hire,04-Aug-2015,3007307-012830,"8,106.34",HODGSONS COACH OPERATORS LTD.
Children and Adult Services,Education,Transport,230007,Contract Hire,04-Aug-2015,3007307-012831,"2,176.46",HODGSONS COACH OPERATORS LTD.
Children and Adult Services,Education,Transport,230007,Contract Hire,04-Aug-2015,3007307-012832,"1,887.82",HODGSONS COACH OPERATORS LTD.
Children and Adult Services,Education,Transport,230007,Contract Hire,04-Aug-2015,3007307-012833,"1,199.22",HODGSONS COACH OPERATORS LTD.
Children and Adult Services,Education,Transport,230007,Contract Hire,04-Aug-2015,3007307-012834,621.94,HODGSONS COACH OPERATORS LTD.
Children and Adult Services,Education,Transport,230007,Contract Hire,04-Aug-2015,3007307-012835,"1,110.56",HODGSONS COACH OPERATORS LTD.
Children and Adult Services,Education,Transport,230007,Contract Hire,04-Aug-2015,3007307-012836,"1,110.56",HODGSONS COACH OPERATORS LTD.
Children and Adult Services,Education,Transport,230007,Contract Hire,04-Aug-2015,3007307-012837,"1,332.54",HODGSONS COACH OPERATORS LTD.
Children and Adult Services,Education,Transport,230007,Contract Hire,04-Aug-2015,3007307-012842,814.00,HODGSONS COACH OPERATORS LTD.
Children and Adult Services,Education,Transport,230007,Contract Hire,04-Aug-2015,3007307-012889,"1,310.53",HODGSONS COACH OPERATORS LTD.
Children and Adult Services,Education,Transport,230007,Contract Hire,04-Aug-2015,3007307-012890,"1,286.09",HODGSONS COACH OPERATORS LTD.
Children and Adult Services,Education,Transport,230007,Contract Hire,04-Aug-2015,3007307-012891,"1,305.85",HODGSONS COACH OPERATORS LTD.
Children and Adult Services,Education,Transport,230007,Contract Hire,04-Aug-2015,3007307-012892,"1,286.09",HODGSONS COACH OPERATORS LTD.
Children and Adult Services,Education,Transport,230007,Contract Hire,04-Aug-2015,3007307-012893,"1,115.53",HODGSONS COACH OPERATORS LTD.
Children and Adult Services,Education,Transport,230007,Contract Hire,04-Aug-2015,3007307-012894,708.63,HODGSONS COACH OPERATORS LTD.
Children and Adult Services,Education,Transport,230007,Contract Hire,04-Aug-2015,3007307-012895,787.41,HODGSONS COACH OPERATORS LTD.
Children and Adult Services,Education,Transport,230007,Contract Hire,04-Aug-2015,3007307-012896,577.46,HODGSONS COACH OPERATORS LTD.
Children and Adult Services,Education,Transport,230008,Contract Hire,04-Aug-2015,3007309-INV85,"1,105.00",HORNDALE TAXIS LTD.
Children and Adult Services,Education,Transport,230008,Contract Hire,04-Aug-2015,3007310-IR1507005,"1,828.58",I & R EXECUTIVE TRAVEL.
Children and Adult Services,Education,Transport,230008,Contract Hire,04-Aug-2015,3007310-IR1507006,"1,045.33",I & R EXECUTIVE TRAVEL.
Children and Adult Services,Education,Transport,230008,Contract Hire,04-Aug-2015,3007315-106,652.34,JACK`S TAXIS.
Children and Adult Services,Education,Transport,230008,Contract Hire,04-Aug-2015,3007318-760,993.07,JDS PRIVATE HIRE DURHAM.
Children and Adult Services,Education,Transport,230008,Contract Hire,04-Aug-2015,3007318-763,679.51,JDS PRIVATE HIRE DURHAM.
Children and Adult Services,Education,Transport,230008,Contract Hire,04-Aug-2015,3007318-767,819.00,JDS PRIVATE HIRE DURHAM.
Children and Adult Services,Education,Transport,230008,Contract Hire,04-Aug-2015,3007318-768,"1,625.00",JDS PRIVATE HIRE DURHAM.
Children and Adult Services,Education,Transport,230008,Contract Hire,04-Aug-2015,3007318-769,650.01,JDS PRIVATE HIRE DURHAM.
Children and Adult Services,Education,Transport,230008,Contract Hire,04-Aug-2015,3007318-770,880.00,JDS PRIVATE HIRE DURHAM.
Children and Adult Services,Education,Transport,230008,Contract Hire,04-Aug-2015,3007321-JK400,560.00,JK TAXIS.
Children and Adult Services,Education,Transport,230008,Contract Hire,04-Aug-2015,3007322-2015/16-17/7/15,582.40,JM HUMBLE COACH HIRE.
Children and Adult Services,Education,Transport,230006,Contract Hire,04-Aug-2015,3007325-0017,825.00,JOHN WARE T/A J & K TAXIS.
Children and Adult Services,Education,Transport,230008,Contract Hire,04-Aug-2015,3007327-M03611,637.00,JOVIAL PRIVATE HIRE.
Children and Adult Services,Education,Transport,230008,Contract Hire,04-Aug-2015,3007327-N03011,"1,079.00",JOVIAL PRIVATE HIRE.
Children and Adult Services,Education,Transport,230007,Contract Hire,04-Aug-2015,3007327-SJPS17,751.08,JOVIAL PRIVATE HIRE.
Children and Adult Services,Education,Transport,230008,Contract Hire,04-Aug-2015,3007337-3225,"1,539.86",LINCAB TAXIS.
Children and Adult Services,Education,Transport,230008,Contract Hire,04-Aug-2015,3007348-MCD7799,"1,253.38",MCDONALD TRAVEL.
Children and Adult Services,Education,Transport,230008,Contract Hire,04-Aug-2015,3007348-MCD7801,"1,299.22",MCDONALD TRAVEL.
Children and Adult Services,Education,Transport,230008,Contract Hire,04-Aug-2015,3007355-KDC010715,"1,280.50",MJ TIMNEY T/A KDC & C&M TAXIS.
Children and Adult Services,Education,Transport,230008,Contract Hire,04-Aug-2015,3007356-752,650.00,MR AD HOWARD T/A TOFT HILL TAXIS.
Children and Adult Services,Education,Transport,230008,Contract Hire,04-Aug-2015,3007359-A057/07/15,754.00,MR M ALLISON T/A MACBETH TAXIS/COACHES.
Children and Adult Services,Education,Transport,230008,Contract Hire,04-Aug-2015,3007359-N053/07/15,"1,248.00",MR M ALLISON T/A MACBETH TAXIS/COACHES.
Children and Adult Services,Education,Transport,230008,Contract Hire,04-Aug-2015,3007359-N059/07/15,"1,044.68",MR M ALLISON T/A MACBETH TAXIS/COACHES.
Children and Adult Services,Education,Third Party Payments,440999,Other Third Party Payments,04-Aug-2015,3007370-2-2015,"7,391.28",NIGEL BROUGH T/A BESPOKE TRAINING SOLUTIONS LTD.
Children and Adult Services,Education,Transport,230008,Contract Hire,04-Aug-2015,3007376-M0006749736,"1,520.00",NORTH TYNESIDE COUNCIL.
Children and Adult Services,Education,Transport,230007,Contract Hire,04-Aug-2015,3007400-2194,780.00,RICHIES TAXIS.
Children and Adult Services,Education,Transport,230008,Contract Hire,04-Aug-2015,3007404-1626,712.25,RONS TAXIS.
Children and Adult Services,Education,Transport,230008,Contract Hire,04-Aug-2015,3007404-1627,"1,380.00",RONS TAXIS.
Children and Adult Services,Education,Transport,230008,Contract Hire,04-Aug-2015,3007405-SA054,643.11,S & A TAXIS.
Children and Adult Services,Education,Transport,230008,Contract Hire,04-Aug-2015,3007415-S027-07-15,"1,274.00",SIMON ELLIFF.
Children and Adult Services,Education,Transport,230008,Contract Hire,04-Aug-2015,3007415-W102-07-15,767.00,SIMON ELLIFF.
Children and Adult Services,Education,Transport,230007,Contract Hire,04-Aug-2015,3007419-14942,"1,157.00",STANLEY TRAVEL (NORTH EAST) LTD.
Children and Adult Services,Education,Transport,230007,Contract Hire,04-Aug-2015,3007419-14943,"1,437.28",STANLEY TRAVEL (NORTH EAST) LTD.
Children and Adult Services,Education,Transport,230008,Contract Hire,04-Aug-2015,3007419-14944,"1,193.36",STANLEY TRAVEL (NORTH EAST) LTD.
Children and Adult Services,Education,Transport,230008,Contract Hire,04-Aug-2015,3007419-14949,897.00,STANLEY TRAVEL (NORTH EAST) LTD.
Children and Adult Services,Education,Transport,230008,Contract Hire,04-Aug-2015,3007419-14950,507.00,STANLEY TRAVEL (NORTH EAST) LTD.
Children and Adult Services,Education,Transport,230008,Contract Hire,04-Aug-2015,3007419-14952,611.00,STANLEY TRAVEL (NORTH EAST) LTD.
Children and Adult Services,Education,Transport,230008,Contract Hire,04-Aug-2015,3007420-2088,"1,248.00",STAR CABS.
Children and Adult Services,Education,Transport,230008,Contract Hire,04-Aug-2015,3007426-B740,778.76,TALBOTS TRAVEL LTD.
Children and Adult Services,Education,Transport,230007,Contract Hire,04-Aug-2015,3007442-49-17/7/15,"1,040.00",WALTONS TAXIS.
Children and Adult Services,Education,Transport,230007,Contract Hire,04-Aug-2015,3007444-CONS/JULY/15/3,"2,374.40",WEARDALE MOTOR SERVICES LTD.
Children and Adult Services,Education,Transport,230007,Contract Hire,04-Aug-2015,3007444-CONS/JULY/151,"1,358.40",WEARDALE MOTOR SERVICES LTD.
Children and Adult Services,Education,Transport,230007,Contract Hire,04-Aug-2015,3007444-CONS/JULY/152,"1,364.88",WEARDALE MOTOR SERVICES LTD.
Children and Adult Services,Education,Transport,230008,Contract Hire,04-Aug-2015,3007444-PH/JULY/15,"3,246.10",WEARDALE MOTOR SERVICES LTD.
Children and Adult Services,Education,Transport,230008,Contract Hire,04-Aug-2015,3007445-WESTLEA160715,628.25,WESTLEA TAXIS.
Children and Adult Services,Education,Transport,230007,Contract Hire,04-Aug-2015,3007447-31715,520.00,WIL TRAVEL.
Children and Adult Services,Education,Transport,230008,Contract Hire,04-Aug-2015,3007447-31715-E058,546.00,WIL TRAVEL.
Children and Adult Services,Education,Supplies and Services,308011,Furniture,04-Aug-2015,3007451-496985926A,741.50,YORKSHIRE PURCHASING ORGANISATION.
Children and Adult Services,Head of Adults,Supplies and Services,308013,Furniture,04-Aug-2015,3007342-206/159/15,"1,806.94",LONGSTAFF FLOORING.
Children and Adult Services,Head of Adults,Supplies and Services,308013,Furniture,04-Aug-2015,3007342-207/159/15,"2,633.64",LONGSTAFF FLOORING.
Children and Adult Services,Head of Adults,Supplies and Services,308013,Furniture,04-Aug-2015,3007342-208/159/15,"1,274.13",LONGSTAFF FLOORING.
Children and Adult Services,Head of Adults,Premises,150005,Apportioned Exps of Operational Blds,04-Aug-2015,3007446-349223,"1,262.39",WHITTLE JONES (GROUP) LTD.
Neighbourhood Services,Technical Services,Supplies and Services,304221,Equipment and Materials,04-Aug-2015,3007232-21733207,632.82,AGGREGATE INDUSTRIES UK LTD.
Neighbourhood Services,Culture & Sport,Supplies and Services,312013,Newspapers Books and Periodicals,04-Aug-2015,3007236-4694518,775.63,ASKEWS & HOLTS LIBRARY SERVICES LTD.
Neighbourhood Services,Direct Services,Transport,210057,Repair and Maintenance of Vehicles,04-Aug-2015,3007238-32458,871.69,AUTO ELECTRICAL SOLUTIONS LTD.
Neighbourhood Services,Culture & Sport,Supplies and Services,312013,Newspapers Books and Periodicals,04-Aug-2015,3007245-12987,639.20,BOLINDA DIGITAL LTD.
Neighbourhood Services,Direct Services,Third Party Payments,430100,Rendered by Private Contractors,04-Aug-2015,3007249-82574023,"1,364.53",BRISTOL STREET MOTORS.
Neighbourhood Services,Culture & Sport,Supplies and Services,338047,Services,04-Aug-2015,3007255-8,"1,400.00",CATHERINE KINSON.
Neighbourhood Services,Direct Services,Third Party Payments,430100,Rendered by Private Contractors,04-Aug-2015,3007276-264815,"1,322.69",DENNIS EAGLE LTD.
Neighbourhood Services,Direct Services,Transport,215005,Running Costs of Vehicles,04-Aug-2015,3007302-543822,"15,781.16",HARVEST ENERGY LTD.
Neighbourhood Services,Direct Services,Third Party Payments,430100,Rendered by Private Contractors,04-Aug-2015,3007308-59848,520.00,HOGARTH COACHWORKS LTD.
Neighbourhood Services,Direct Services,Third Party Payments,430100,Rendered by Private Contractors,04-Aug-2015,3007308-59849,520.00,HOGARTH COACHWORKS LTD.
Neighbourhood Services,Direct Services,Third Party Payments,430100,Rendered by Private Contractors,04-Aug-2015,3007308-59850,520.00,HOGARTH COACHWORKS LTD.
Neighbourhood Services,Direct Services,Third Party Payments,430100,Rendered by Private Contractors,04-Aug-2015,3007308-59851,520.00,HOGARTH COACHWORKS LTD.
Neighbourhood Services,Direct Services,Third Party Payments,430100,Rendered by Private Contractors,04-Aug-2015,3007308-59852,520.00,HOGARTH COACHWORKS LTD.
Neighbourhood Services,Projects and Business services,Construction Work,908105,Construction work,04-Aug-2015,3007324,"39,197.95",JOHN WADE (HAULAGE) LTD.
Neighbourhood Services,Technical Services,Construction Work,908109,Capital - Resurfacing,04-Aug-2015,3007366-1176102,"4,033.32",NETWORK RAIL.
Neighbourhood Services,Direct Services,Premises,145009,Cleaning and Domestic Supplies,04-Aug-2015,3007371-14819,676.00,NIRAMAX GROUP LTD.
Neighbourhood Services,Direct Services,Supplies and Services,384194,Miscellaneous Expenses,04-Aug-2015,3007371-33918,"2,375.00",NIRAMAX GROUP LTD.
Neighbourhood Services,Culture & Sport,Supplies and Services,304259,Equipment and Materials,04-Aug-2015,3007373-8110007317,"12,588.00",NORTH EAST AMBULANCE SERVICE NHS TRUST.
Neighbourhood Services,Technical Services,Supplies and Services,304221,Equipment and Materials,04-Aug-2015,3007377-DI20217388,"6,552.12",NORTHERN POWERGRID (NORTHEAST) LTD.
Neighbourhood Services,Direct Services,Transport,230005,Contract Hire,04-Aug-2015,3007392-INV/27213,675.00,PREMIER TRUCK HIRE LTD.
Neighbourhood Services,Direct Services,Supplies and Services,384194,Miscellaneous Expenses,04-Aug-2015,3007407-2061,607.28,SAFE STRIP UK LTD.
Neighbourhood Services,Technical Services,Construction Work,908105,Construction work,04-Aug-2015,3007408-859,666.00,SCHMUCK WHORLTON LTD.
Neighbourhood Services,Technical Services,Supplies and Services,304221,Equipment and Materials,04-Aug-2015,3007414-223013,652.51,SIGNPOST SOLUTIONS LTD.
Neighbourhood Services,Culture & Sport,Supplies and Services,384199,Miscellaneous Expenses,04-Aug-2015,3007422-220,715.00,STEPHEN SUMMERS T/A NOISY TOYS.
Neighbourhood Services,Technical Services,Supplies and Services,304221,Equipment and Materials,04-Aug-2015,3007423-073616,"1,044.88",STONEGRAVE AGGREGATES LTD.
Neighbourhood Services,Direct Services,Third Party Payments,430100,Rendered by Private Contractors,04-Aug-2015,3007452-SVI33799,600.68,ZOELLER WASTE SYSTEMS LTD.
Neighbourhood Services,Direct Services,Third Party Payments,430100,Rendered by Private Contractors,04-Aug-2015,3007452-SVI34035,"3,595.06",ZOELLER WASTE SYSTEMS LTD.
RED HRA,HRA Centrally Managed,Debtors,930105,Debtor-tenants water account,04-Aug-2015,3007278-SIDC/00000128,928.09,DURHAM CITY HOMES LTD.
Regeneration & Economic Development,Economic Development and Housing,Fees,901002,Professional fees,04-Aug-2015,3007231-28224229,"2,521.50",AECOM LTD.
Regeneration & Economic Development,Economic Development and Housing,Cap Exp on Grants & Other Financial Assistance (REFCUS),918401,Capital grants,04-Aug-2015,3007239-RED-08-2015-017,"5,697.50",AVENSWAY BUILDING CONTRACTORS LTD.
Regeneration & Economic Development,Economic Development and Housing,Cap Exp on Grants & Other Financial Assistance (REFCUS),918401,Capital grants,04-Aug-2015,3007251-RED-08-2015-016,"20,000.00",CAMERONS BREWERY LTD.
Regeneration & Economic Development,Economic Development and Housing,Supplies and Services,384437,Miscellaneous Expenses,04-Aug-2015,3007264-66000,"3,900.00",COMPASS ROYSTON TRAVEL LTD.
Regeneration & Economic Development,Economic Development and Housing,Supplies and Services,384437,Miscellaneous Expenses,04-Aug-2015,3007264-66291,"3,600.00",COMPASS ROYSTON TRAVEL LTD.
Regeneration & Economic Development,Transport and Contracted Services,Supplies and Services,384540,Miscellaneous Expenses,04-Aug-2015,3007265-0000076800,560.00,COOK HAMMOND & KELL (CHK LTD).
Regeneration & Economic Development,Economic Development and Housing,Cap Exp on Grants & Other Financial Assistance (REFCUS),918401,Capital grants,04-Aug-2015,3007274-RED-08-2015-014,"4,557.00",DAVID RYAN PLUMBING & MERRYBENT BATHROOMS LTD.
Regeneration & Economic Development,Economic Development and Housing,Supplies and Services,384700,Miscellaneous Expenses,04-Aug-2015,3007277-RED-08-2015-003,"1,000.00",DS TRAINING LTD (GO AHEAD TRAINING).
Regeneration & Economic Development,Transport and Contracted Services,Supplies and Services,338099,Services,04-Aug-2015,3007281-HEX3000536723,"4,000.00",EXPERIAN LTD.
Regeneration & Economic Development,Transport and Contracted Services,Vehicles Equipment Furniture and Fittings,912529,Purchase-equipment,04-Aug-2015,3007283-INV28786,"2,160.00",FERROGRAPH LTD.
Regeneration & Economic Development,Economic Development and Housing,Cap Exp on Grants & Other Financial Assistance (REFCUS),918401,Capital grants,04-Aug-2015,3007305-RED-08-2015-011,"3,100.00",HES GROUP UK LTD.
Regeneration & Economic Development,Economic Development and Housing,Cap Exp on Grants & Other Financial Assistance (REFCUS),918401,Capital grants,04-Aug-2015,3007347-RED-08-2015-007,"5,760.00",MC DEVELOPMENTS.
Regeneration & Economic Development,Economic Development and Housing,Cap Exp on Grants & Other Financial Assistance (REFCUS),918401,Capital grants,04-Aug-2015,3007347-RED-08-2015-008,"4,575.00",MC DEVELOPMENTS.
Regeneration & Economic Development,Economic Development and Housing,Premises,120009,Energy Costs,04-Aug-2015,3007380-NN07P4JS,"1,559.80",NPOWER.
Regeneration & Economic Development,Spatial Policy Planning Assets & Environment,Supplies and Services,384199,Miscellaneous Expenses,04-Aug-2015,3007386-178,"1,270.50",PETER DODD FENCING & AGRICULTURAL SERVICES.
Regeneration & Economic Development,Economic Development and Housing,Cap Exp on Grants & Other Financial Assistance (REFCUS),918401,Capital grants,04-Aug-2015,3007387-RED-08-2015-012,"3,440.00",PETER JORDAN.
Regeneration & Economic Development,Economic Development and Housing,Cap Exp on Grants & Other Financial Assistance (REFCUS),918401,Capital grants,04-Aug-2015,3007396-RED-08-2015-015,750.00,REDGATE ARCHITECTURAL DESIGN.
Regeneration & Economic Development,Economic Development and Housing,Cap Exp on Grants & Other Financial Assistance (REFCUS),918401,Capital grants,04-Aug-2015,3007432-RED-08-2015-010,"2,072.00",THYSSENKRUPP ENCASA A DIVISION OF THYSSENKRUPP ACCESS LTD.
Regeneration & Economic Development,Strategy Programmes and Performance,Employees,040149,Recruitment Instruction and Training,04-Aug-2015,3007439-91353624,"2,400.00",UNIVERSITY OF NORTHUMBRIA.
Assistant Chief Executive,Partnerships & Community Engagement Div.,Supplies and Services,384086,Miscellaneous Expenses,05-Aug-2015,3007499-VOUCHER15NB-DVLY007,"5,000.00",BENFIELDSIDE BLACKHILL BRIDGEHILL & SHOTLEY BRIDGE COMMUNITY PARTNERSHIP.
Assistant Chief Executive,Partnerships & Community Engagement Div.,Cap Exp on Grants & Other Financial Assistance (REFCUS),918004,Contributions to other bodies,05-Aug-2015,3007509-VOUCHER15NB-CHES011,"5,000.00",BURNMOOR LAWN TENNIS CLUB.
Assistant Chief Executive,Partnerships & Community Engagement Div.,Supplies and Services,384086,Miscellaneous Expenses,05-Aug-2015,3007544-VOUCHER15NB-EDUR016,"12,000.00",EASINGTON COLLIERY REGENERATION PARTNERSHIP.
Assistant Chief Executive,Partnerships & Community Engagement Div.,Supplies and Services,384086,Miscellaneous Expenses,05-Aug-2015,3007564-VOUCHER15NB-CHES013,"2,000.00",GREAT LUMLEY FESTIVAL.
Assistant Chief Executive,Partnerships & Community Engagement Div.,Cap Exp on Grants & Other Financial Assistance (REFCUS),918004,Contributions to other bodies,05-Aug-2015,3007569-VOUCHER15NB-DVLY009,"3,714.00",HAMSTERLEY MILL RESIDENTS ASSOCIATION.
Assistant Chief Executive,Partnerships & Community Engagement Div.,Premises,125009,Rents,05-Aug-2015,3007603-RSHPIN/00001017,"1,005.12",LIVIN HOUSING LTD.
Assistant Chief Executive,Partnerships & Community Engagement Div.,Supplies and Services,384086,Miscellaneous Expenses,05-Aug-2015,3007651-VOUCHER15NB-EDUR006,"5,050.00",PETERLEE TOWN COUNCIL.
Assistant Chief Executive,Partnerships & Community Engagement Div.,Cap Exp on Grants & Other Financial Assistance (REFCUS),918401,Capital grants,05-Aug-2015,3007655-INS1-DCC-CONTRIBUTION,"4,848.00",PITTINGTON COMMUNITY ASSOCIATION.
Assistant Chief Executive,Planning & Performance Division,Supplies and Services,338099,Services,05-Aug-2015,3007660-4006,"1,200.00",READING ROOM MANCHESTER.
Assistant Chief Executive,Partnerships & Community Engagement Div.,Transfer Payments,525030,Other,05-Aug-2015,3007696-VOUCHER15AB-TEES002,"1,368.00",TEESDALE YMCA.
Children and Adult Services,Childrens Services,Third Party Payments,440999,Other Third Party Payments,05-Aug-2015,300302-28MAY2015,500.00,COLLINS TAXIS.
Children and Adult Services,Childrens Services,Supplies and Services,338099,Services,05-Aug-2015,3007561-GO0062,647.50,GLEBE CENTRE ENTERPRISES LTD.
Children and Adult Services,Childrens Services,Supplies and Services,338045,Services,05-Aug-2015,3007674-CAS-08-2015-004,"1,260.00",REDACTED - PAYMENT TO INDIVIDUAL
Children and Adult Services,Childrens Services,Third Party Payments,425040,Rendered by Voluntary Organisations,05-Aug-2015,3007690-167200,910.00,SWIIS FOSTER CARE LTD.
Children and Adult Services,Childrens Services,Third Party Payments,425040,Rendered by Voluntary Organisations,05-Aug-2015,3007690-167202,764.12,SWIIS FOSTER CARE LTD.
Children and Adult Services,Childrens Services,Third Party Payments,425040,Rendered by Voluntary Organisations,05-Aug-2015,3007690-167203,759.99,SWIIS FOSTER CARE LTD.
Children and Adult Services,Childrens Services,Third Party Payments,425040,Rendered by Voluntary Organisations,05-Aug-2015,3007690-167204,"1,074.99",SWIIS FOSTER CARE LTD.
Children and Adult Services,Childrens Services,Third Party Payments,425040,Rendered by Voluntary Organisations,05-Aug-2015,3007690-167205,891.87,SWIIS FOSTER CARE LTD.
Children and Adult Services,Childrens Services,Third Party Payments,425040,Rendered by Voluntary Organisations,05-Aug-2015,3007690-167207,900.97,SWIIS FOSTER CARE LTD.
Children and Adult Services,Childrens Services,Third Party Payments,425040,Rendered by Voluntary Organisations,05-Aug-2015,3007690-167208,"1,068.97",SWIIS FOSTER CARE LTD.
Children and Adult Services,Childrens Services,Third Party Payments,425040,Rendered by Voluntary Organisations,05-Aug-2015,3007691-167206,819.98,SWIIS FOSTER CARE LTD.
Children and Adult Services,Childrens Services,Construction Work,908105,Construction work,05-Aug-2015,3007707-000553820,"2,094.34",TURNER & TOWNSEND LLP.
Children and Adult Services,Education,Transport,230008,Contract Hire,05-Aug-2015,300338-E061-2,"1,680.00",REDACTED - PAYMENT TO INDIVIDUAL
Children and Adult Services,Education,Transport,230008,Contract Hire,05-Aug-2015,3007498-487,"1,008.80",BEELINE MINI BUSES.
Children and Adult Services,Education,Transport,230008,Contract Hire,05-Aug-2015,3007498-488,979.94,BEELINE MINI BUSES.
Children and Adult Services,Education,Transport,230008,Contract Hire,05-Aug-2015,3007500-116,"1,078.00",BG TAXIS.
Children and Adult Services,Education,Transport,230008,Contract Hire,05-Aug-2015,3007502-06734,"2,156.00",BIRDS TAXIS.
Children and Adult Services,Education,Transport,230009,Contract Hire,05-Aug-2015,3007502-06735,512.00,BIRDS TAXIS.
Children and Adult Services,Education,Transport,230008,Contract Hire,05-Aug-2015,3007508-JULY2015,505.60,BURNDALE PRIVATE HIRE.
Children and Adult Services,Education,Transport,230007,Contract Hire,05-Aug-2015,3007520-44948,"1,554.74",CJ GRIERSON T/A GRIERSONS COACHES.
Children and Adult Services,Education,Transport,230007,Contract Hire,05-Aug-2015,3007520-44949,"5,330.16",CJ GRIERSON T/A GRIERSONS COACHES.
Children and Adult Services,Education,Transport,230008,Contract Hire,05-Aug-2015,3007525-593-10/7/15,528.00,CONNORS MINI BUSES.
Children and Adult Services,Education,Transport,230008,Contract Hire,05-Aug-2015,3007525-605,962.00,CONNORS MINI BUSES.
Children and Adult Services,Education,Transport,230008,Contract Hire,05-Aug-2015,3007534-G/HEAD007,510.00,D IRVING T/A BJ TAXIS.
Children and Adult Services,Education,Transport,230008,Contract Hire,05-Aug-2015,3007554-0715,845.00,FRANK ATKINSON T/A FJ MINIBUS TRAVEL.
Children and Adult Services,Education,Transport,230008,Contract Hire,05-Aug-2015,3007585-759,"1,045.33",JDS PRIVATE HIRE DURHAM.
Children and Adult Services,Education,Transport,230008,Contract Hire,05-Aug-2015,3007585-761,836.29,JDS PRIVATE HIRE DURHAM.
Children and Adult Services,Education,Transport,230008,Contract Hire,05-Aug-2015,3007585-762,932.88,JDS PRIVATE HIRE DURHAM.
Children and Adult Services,Education,Transport,230008,Contract Hire,05-Aug-2015,3007585-765,"1,690.00",JDS PRIVATE HIRE DURHAM.
Children and Adult Services,Education,Transport,230007,Contract Hire,05-Aug-2015,3007585-772,650.00,JDS PRIVATE HIRE DURHAM.
Children and Adult Services,Education,Employees,040149,Recruitment Instruction and Training,05-Aug-2015,3007591-46,701.65,JOHN RYMASZEWSKI.
Children and Adult Services,Education,Transport,230008,Contract Hire,05-Aug-2015,3007624-528,"1,085.00",MR S BALL T/A ABBIE`S TAXIS..
Children and Adult Services,Education,Transport,230008,Contract Hire,05-Aug-2015,3007624-529,"1,455.00",MR S BALL T/A ABBIE`S TAXIS..
Children and Adult Services,Education,Transport,230008,Contract Hire,05-Aug-2015,3007624-531,"1,200.00",MR S BALL T/A ABBIE`S TAXIS..
Children and Adult Services,Education,Transport,230009,Contract Hire,05-Aug-2015,3007624-533,510.00,MR S BALL T/A ABBIE`S TAXIS..
Children and Adult Services,Education,Supplies and Services,338027,Services,05-Aug-2015,3007639-671,600.00,NORTH EAST ENVIRONMENT NETWORK LTD.
Children and Adult Services,Education,Transport,230007,Contract Hire,05-Aug-2015,3007659-33B,"1,308.36",RAYNERS COACHES.
Children and Adult Services,Education,Supplies and Services,338094,Services,05-Aug-2015,3007683-4100488820,520.00,STANLEY COMMUNITY ASSOCIATION.
Children and Adult Services,Education,Transfer Payments,510026,School Children,05-Aug-2015,3007724-16/03-13/07/2015,"1,365.00",WESTMINSTER DAY NURSERIES LTD.
Children and Adult Services,Planning & Service Strategy,Supplies and Services,338094,Services,05-Aug-2015,3007697-3175,"1,249.50",THE DURHAM CENTRE LTD.
Neighbourhood Services,Technical Services,Construction Work,908109,Capital - Resurfacing,05-Aug-2015,300298-NEI-EXP-08-2015-001,"3,250.00",CHARLES HARLE & SONS.
Neighbourhood Services,Direct Services,Supplies and Services,344014,Telephones,05-Aug-2015,300314-125117755,595.00,EE LTD.
Neighbourhood Services,Direct Services,Supplies and Services,384199,Miscellaneous Expenses,05-Aug-2015,300333-CAH/004196/107259,875.00,MR DAVID ARMSTRONG T/A DERWENT CHAMBERS.
Neighbourhood Services,Technical Services,Income,720299,Fees and Charges,05-Aug-2015,300366-NEI-INC-07-2015-029,"35,254.80",STANDARD LIFE INVESTMENTS.
Neighbourhood Services,Technical Services,Supplies and Services,304221,Equipment and Materials,05-Aug-2015,3007476-0000275597,952.00,ACUTE SALES LTD.
Neighbourhood Services,Direct Services,Third Party Payments,430100,Rendered by Private Contractors,05-Aug-2015,3007478-30120286-61,550.00,ADT FIRE & SECURITY PLC.
Neighbourhood Services,Technical Services,Premises,108301,Service Repairs and Maintenance,05-Aug-2015,3007479-30117118-61,793.00,ADT FIRE & SECURITY PLC.
Neighbourhood Services,Technical Services,Supplies and Services,304221,Equipment and Materials,05-Aug-2015,3007482-21733208,519.36,AGGREGATE INDUSTRIES UK LTD.
Neighbourhood Services,Technical Services,Supplies and Services,304221,Equipment and Materials,05-Aug-2015,3007482-21736755,"1,111.83",AGGREGATE INDUSTRIES UK LTD.
Neighbourhood Services,Direct Services,Third Party Payments,430100,Rendered by Private Contractors,05-Aug-2015,3007504-4100496115,"1,998.00",BRIAN YOUNGER T/A B & E YOUNGER FLOORING.
Neighbourhood Services,Direct Services,Third Party Payments,430100,Rendered by Private Contractors,05-Aug-2015,3007504-4100496589,669.15,BRIAN YOUNGER T/A B & E YOUNGER FLOORING.
Neighbourhood Services,Direct Services,Vehicles Equipment Furniture and Fittings,912541,Purchase-vehicles,05-Aug-2015,3007515-5289,"117,225.00",CHATFIELDS.
Neighbourhood Services,Culture & Sport,Third Party Payments,430100,Rendered by Private Contractors,05-Aug-2015,3007524-PS24067,"7,331.54",COMPETITION LINE UK LTD.
Neighbourhood Services,Culture & Sport,Third Party Payments,430100,Rendered by Private Contractors,05-Aug-2015,3007524-PS24068,"27,450.20",COMPETITION LINE UK LTD.
Neighbourhood Services,Culture & Sport,Income,720810,Fees and Charges,05-Aug-2015,3007524-PS24069,"5,458.30",COMPETITION LINE UK LTD.
Neighbourhood Services,Culture & Sport,Income,720810,Fees and Charges,05-Aug-2015,3007524-PS24070,"30,354.16",COMPETITION LINE UK LTD.
Neighbourhood Services,Culture & Sport,Income,720810,Fees and Charges,05-Aug-2015,3007524-PS24071,"21,067.64",COMPETITION LINE UK LTD.
Neighbourhood Services,Direct Services,Transport,230005,Contract Hire,05-Aug-2015,3007536-673717,552.00,DAWSONRENTALS VANS LTD.
Neighbourhood Services,Direct Services,Transport,230005,Contract Hire,05-Aug-2015,3007536-673719,506.00,DAWSONRENTALS VANS LTD.
Neighbourhood Services,Direct Services,Transport,215013,Running Costs of Vehicles,05-Aug-2015,3007538-D94183,705.00,DENNIS EAGLE LTD.
Neighbourhood Services,Technical Services,Third Party Payments,460157,Contract Payments,05-Aug-2015,3007543-5226,"1,130.00",DUNELM GEOTECHNICAL & ENVIRONMENTAL LTD.
Neighbourhood Services,Technical Services,Employees,040149,Recruitment Instruction and Training,05-Aug-2015,3007545-0000035949,800.00,EAST DURHAM COLLEGE.
Neighbourhood Services,Culture & Sport,Supplies and Services,338047,Services,05-Aug-2015,3007550-60212951,510.21,ENTERTAINMENT ONE UK LTD.
Neighbourhood Services,Culture & Sport,Supplies and Services,338047,Services,05-Aug-2015,3007550-60212953,"1,002.09",ENTERTAINMENT ONE UK LTD.
Neighbourhood Services,Culture & Sport,Supplies and Services,338047,Services,05-Aug-2015,3007550-60212954,507.67,ENTERTAINMENT ONE UK LTD.
Neighbourhood Services,Technical Services,Supplies and Services,304358,Equipment and Materials,05-Aug-2015,3007551-0000047216,625.00,EURO ENVIRONMENTAL GROUP.
Neighbourhood Services,Direct Services,Supplies and Services,304221,Equipment and Materials,05-Aug-2015,3007552-22959,"1,249.71",FABRICATED PRODUCTS LTD.
Neighbourhood Services,Technical Services,Supplies and Services,304357,Equipment and Materials,05-Aug-2015,3007557-DCC260715,"13,928.46",GAP GROUP LTD.
Neighbourhood Services,Culture & Sport,Supplies and Services,384199,Miscellaneous Expenses,05-Aug-2015,3007563-171,"1,294.94",GRAHAM RUSHTON.
Neighbourhood Services,Projects and Business services,Third Party Payments,430103,Rendered by Private Contractors,05-Aug-2015,3007565,"3,229.62",GREAT NORTH AIR AMBULANCE SERVICE TRADING CO LTD.
Neighbourhood Services,Technical Services,Stock,926900,Stock in hand-Inventory system,05-Aug-2015,3007566-06/564042,"3,500.00",GREENHAM TRADING LTD.
Neighbourhood Services,Direct Services,Supplies and Services,304221,Equipment and Materials,05-Aug-2015,3007567-34576,537.99,GROUNDSMAN.
Neighbourhood Services,Direct Services,Supplies and Services,304221,Equipment and Materials,05-Aug-2015,3007570-SIN420014,843.41,HANDICARE ACCESSIBILITY LTD.
Neighbourhood Services,Direct Services,Supplies and Services,304221,Equipment and Materials,05-Aug-2015,3007573-4489206,775.42,HEADLAM (FLOORCOVERING DISTRIBUTORS) LTD.
Neighbourhood Services,Technical Services,Employees,040149,Recruitment Instruction and Training,05-Aug-2015,3007579-W12952,"2,550.00",INSTITUTION OF LIGHTING PROFESSIONALS (ILP).
Neighbourhood Services,Technical Services,Construction Work,908108,Capital - Surface Dressing,05-Aug-2015,3007582-11331,"1,670.60",JACK COUPE & SONS LTD T/A COUPE LINE.
Neighbourhood Services,Technical Services,Construction Work,908108,Capital - Surface Dressing,05-Aug-2015,3007582-11359,648.44,JACK COUPE & SONS LTD T/A COUPE LINE.
Neighbourhood Services,Technical Services,Construction Work,908108,Capital - Surface Dressing,05-Aug-2015,3007582-11363,"1,166.14",JACK COUPE & SONS LTD T/A COUPE LINE.
Neighbourhood Services,Technical Services,Supplies and Services,304358,Equipment and Materials,05-Aug-2015,3007590-23644,918.00,JOHN R BUTTERFIELD LTD.
Neighbourhood Services,Technical Services,Supplies and Services,304358,Equipment and Materials,05-Aug-2015,3007590-23681,942.50,JOHN R BUTTERFIELD LTD.
Neighbourhood Services,Technical Services,Supplies and Services,304358,Equipment and Materials,05-Aug-2015,3007590-23709,942.50,JOHN R BUTTERFIELD LTD.
Neighbourhood Services,Technical Services,Supplies and Services,304358,Equipment and Materials,05-Aug-2015,3007590-23714,688.00,JOHN R BUTTERFIELD LTD.
Neighbourhood Services,Technical Services,Supplies and Services,304358,Equipment and Materials,05-Aug-2015,3007590-23739,680.50,JOHN R BUTTERFIELD LTD.
Neighbourhood Services,Technical Services,Supplies and Services,304358,Equipment and Materials,05-Aug-2015,3007590-23742,"1,236.70",JOHN R BUTTERFIELD LTD.
Neighbourhood Services,Technical Services,Supplies and Services,304358,Equipment and Materials,05-Aug-2015,3007590-23743,849.30,JOHN R BUTTERFIELD LTD.
Neighbourhood Services,Technical Services,Supplies and Services,304358,Equipment and Materials,05-Aug-2015,3007590-23745,703.00,JOHN R BUTTERFIELD LTD.
Neighbourhood Services,Technical Services,Supplies and Services,304358,Equipment and Materials,05-Aug-2015,3007590-23746,666.00,JOHN R BUTTERFIELD LTD.
Neighbourhood Services,Technical Services,Supplies and Services,304358,Equipment and Materials,05-Aug-2015,3007590-23747,949.00,JOHN R BUTTERFIELD LTD.
Neighbourhood Services,Technical Services,Supplies and Services,304358,Equipment and Materials,05-Aug-2015,3007590-23748,"1,014.00",JOHN R BUTTERFIELD LTD.
Neighbourhood Services,Technical Services,Supplies and Services,304358,Equipment and Materials,05-Aug-2015,3007590-23749,723.00,JOHN R BUTTERFIELD LTD.
Neighbourhood Services,Technical Services,Supplies and Services,304358,Equipment and Materials,05-Aug-2015,3007590-23767,817.00,JOHN R BUTTERFIELD LTD.
Neighbourhood Services,Technical Services,Supplies and Services,304358,Equipment and Materials,05-Aug-2015,3007590-23772,853.20,JOHN R BUTTERFIELD LTD.
Neighbourhood Services,Technical Services,Supplies and Services,304358,Equipment and Materials,05-Aug-2015,3007590-23773,703.00,JOHN R BUTTERFIELD LTD.
Neighbourhood Services,Technical Services,Supplies and Services,304358,Equipment and Materials,05-Aug-2015,3007590-23774,819.00,JOHN R BUTTERFIELD LTD.
Neighbourhood Services,Technical Services,Supplies and Services,304358,Equipment and Materials,05-Aug-2015,3007590-23775,"1,014.00",JOHN R BUTTERFIELD LTD.
Neighbourhood Services,Technical Services,Supplies and Services,304358,Equipment and Materials,05-Aug-2015,3007590-23777,847.70,JOHN R BUTTERFIELD LTD.
Neighbourhood Services,Technical Services,Supplies and Services,304358,Equipment and Materials,05-Aug-2015,3007590-23798,925.00,JOHN R BUTTERFIELD LTD.
Neighbourhood Services,Technical Services,Supplies and Services,304358,Equipment and Materials,05-Aug-2015,3007590-23799,"1,180.00",JOHN R BUTTERFIELD LTD.
Neighbourhood Services,Technical Services,Supplies and Services,304358,Equipment and Materials,05-Aug-2015,3007590-23803,722.40,JOHN R BUTTERFIELD LTD.
Neighbourhood Services,Technical Services,Supplies and Services,304358,Equipment and Materials,05-Aug-2015,3007590-23804,703.00,JOHN R BUTTERFIELD LTD.
Neighbourhood Services,Technical Services,Supplies and Services,304358,Equipment and Materials,05-Aug-2015,3007590-23805,819.00,JOHN R BUTTERFIELD LTD.
Neighbourhood Services,Technical Services,Supplies and Services,304358,Equipment and Materials,05-Aug-2015,3007590-23806,714.00,JOHN R BUTTERFIELD LTD.
Neighbourhood Services,Technical Services,Supplies and Services,304358,Equipment and Materials,05-Aug-2015,3007590-23807,877.00,JOHN R BUTTERFIELD LTD.
Neighbourhood Services,Technical Services,Supplies and Services,304358,Equipment and Materials,05-Aug-2015,3007590-23808,"2,081.50",JOHN R BUTTERFIELD LTD.
Neighbourhood Services,Technical Services,Supplies and Services,304358,Equipment and Materials,05-Aug-2015,3007590-23809,"1,627.20",JOHN R BUTTERFIELD LTD.
Neighbourhood Services,Technical Services,Supplies and Services,304358,Equipment and Materials,05-Aug-2015,3007590-23832,590.00,JOHN R BUTTERFIELD LTD.
Neighbourhood Services,Technical Services,Supplies and Services,304358,Equipment and Materials,05-Aug-2015,3007590-23835,"1,027.00",JOHN R BUTTERFIELD LTD.
Neighbourhood Services,Technical Services,Supplies and Services,304358,Equipment and Materials,05-Aug-2015,3007590-23836,570.00,JOHN R BUTTERFIELD LTD.
Neighbourhood Services,Technical Services,Supplies and Services,304358,Equipment and Materials,05-Aug-2015,3007590-23837,"1,027.00",JOHN R BUTTERFIELD LTD.
Neighbourhood Services,Technical Services,Supplies and Services,304358,Equipment and Materials,05-Aug-2015,3007590-23839,"2,143.00",JOHN R BUTTERFIELD LTD.
Neighbourhood Services,Technical Services,Supplies and Services,304358,Equipment and Materials,05-Aug-2015,3007590-23840,"1,901.10",JOHN R BUTTERFIELD LTD.
Neighbourhood Services,Technical Services,Supplies and Services,304358,Equipment and Materials,05-Aug-2015,3007590-23842,600.60,JOHN R BUTTERFIELD LTD.
Neighbourhood Services,Direct Services,Third Party Payments,430105,Rendered by Private Contractors,05-Aug-2015,3007596-6820,"1,020.00",KEN THOMAS (SITE CLEARANCE LTD).
Neighbourhood Services,Culture & Sport,Supplies and Services,304259,Equipment and Materials,05-Aug-2015,3007600-18002528,800.00,LEISURE IN THE COMMUNITY LTD.
Neighbourhood Services,Technical Services,Supplies and Services,304358,Equipment and Materials,05-Aug-2015,3007611-1828,750.50,MARTIN JEWITT PLANT HIRE.
Neighbourhood Services,Technical Services,Supplies and Services,338027,Services,05-Aug-2015,3007636-62936,"2,100.00",NICHOLLS COLTON GROUP LTD.
Neighbourhood Services,Direct Services,Transport,230005,Contract Hire,05-Aug-2015,3007638-76425,"3,565.00",NOBLET MUNICIPAL SERVICES LTD.
Neighbourhood Services,Technical Services,Supplies and Services,304221,Equipment and Materials,05-Aug-2015,3007642-DI20218745,"1,014.75",NORTHERN POWERGRID (NORTHEAST) LTD.
Neighbourhood Services,EnvironmentHealth & Consumer Protection,Supplies and Services,384199,Miscellaneous Expenses,05-Aug-2015,3007652-327,560.00,PETE`S REMOVALS & CLEARANCES.
Neighbourhood Services,Direct Services,Transport,230005,Contract Hire,05-Aug-2015,3007673-IV36649,"1,600.00",RTR RIVERSIDE TRUCK RENTAL LTD.
Neighbourhood Services,Direct Services,Transport,230005,Contract Hire,05-Aug-2015,3007673-IV39053,"1,160.00",RTR RIVERSIDE TRUCK RENTAL LTD.
Neighbourhood Services,Direct Services,Transport,230005,Contract Hire,05-Aug-2015,3007673-IV61228,"4,370.00",RTR RIVERSIDE TRUCK RENTAL LTD.
Neighbourhood Services,Direct Services,Transport,230005,Contract Hire,05-Aug-2015,3007673-IV61238,"4,370.00",RTR RIVERSIDE TRUCK RENTAL LTD.
Neighbourhood Services,Direct Services,Transport,230005,Contract Hire,05-Aug-2015,3007678-10617560,"1,085.00",SHB HIRE LTD.
Neighbourhood Services,Culture & Sport,Supplies and Services,338047,Services,05-Aug-2015,3007682-20151629,"3,087.50",SOLID ENTERTAINMENTS.
Neighbourhood Services,Technical Services,Supplies and Services,304221,Equipment and Materials,05-Aug-2015,3007685-073657,855.68,STONEGRAVE AGGREGATES LTD.
Neighbourhood Services,Projects and Business services,Third Party Payments,430103,Rendered by Private Contractors,05-Aug-2015,3007695,"9,475.82",TEESDALE CONSERVATION VOLUNTEERS.
Neighbourhood Services,Technical Services,Supplies and Services,342215,Computers and Communications,05-Aug-2015,3007703-27933,750.00,TRACKYOU LTD.
Neighbourhood Services,Direct Services,Supplies and Services,304221,Equipment and Materials,05-Aug-2015,3007706-51709,748.80,TURF CARE SPECIALISTS LTD.
Neighbourhood Services,Technical Services,Supplies and Services,304221,Equipment and Materials,05-Aug-2015,3007708-151093,959.86,TYNEDALE ROADSTONE LTD.
Neighbourhood Services,Technical Services,Third Party Payments,430100,Rendered by Private Contractors,05-Aug-2015,3007718-38968,"4,912.50",W MARLEY AGRICULTURAL CONTRACTORS LTD.
Regeneration & Economic Development,Economic Development and Housing,Cap Exp on Grants & Other Financial Assistance (REFCUS),918401,Capital grants,05-Aug-2015,300292-RED-08-2015-016,500.00,ADVANCED BUILDING & JOINERY LTD.
Regeneration & Economic Development,Economic Development and Housing,Fees,901002,Professional fees,05-Aug-2015,3007481-28224314,"6,552.00",AECOM LTD.
Regeneration & Economic Development,Transport and Contracted Services,Construction Work,908105,Construction work,05-Aug-2015,3007584-10628,520.67,JC MAINTENANCE SERVICES LTD.
Regeneration & Economic Development,Transport and Contracted Services,Construction Work,908105,Construction work,05-Aug-2015,3007584-10630,"4,771.93",JC MAINTENANCE SERVICES LTD.
Regeneration & Economic Development,Economic Development and Housing,Cap Exp on Grants & Other Financial Assistance (REFCUS),918401,Capital grants,05-Aug-2015,3007700-RED-03-2015-009,"4,295.00",THYSSENKRUPP ENCASA A DIVISION OF THYSSENKRUPP ACCESS LTD.
Regeneration & Economic Development,Economic Development and Housing,Supplies and Services,384437,Miscellaneous Expenses,05-Aug-2015,3007722-OrderNo1445409,"2,657.54",WESTERN UNION BUSINESS SOLUTIONS.
Resources,Legal & Democratic Services,Supplies and Services,340001,Postages,05-Aug-2015,3007477-IS1254503,"59,820.92",ADARE INSPIRED COMMUNICATIONS.
Resources,Legal & Democratic Services,Supplies and Services,338042,Services,05-Aug-2015,3007568-89598-GU14C00104,"1,200.00",GUILDFORD CHAMBERS BARRISTERS.
Resources,Legal & Democratic Services,Supplies and Services,338042,Services,05-Aug-2015,3007618-313392/INVSW196,"2,160.00",MISS SARAH WOOLRICH.
Resources,Legal & Democratic Services,Premises,125009,Rents,05-Aug-2015,3007664-7166,576.79,RIVERGREEN DEVELOPMENTS PLC.
Resources,Legal & Democratic Services,Supplies and Services,338057,Services,05-Aug-2015,3007666-0000020606,"3,620.00",ROAR FORENSICS LTD.
Resources,I.C.T. Services,Supplies and Services,340001,Postages,05-Aug-2015,3007670-9050188357,"14,511.54",ROYAL MAIL GROUP PLC.
Resources,Human Resources,Employees,040149,Recruitment Instruction and Training,05-Aug-2015,3007675-OHRSI-00441886,"1,530.00",SAFETY FIRST AID GROUP LTD T/A OCCUPATIONAL HEALTH RECRUITMENT.
Resources,Legal & Democratic Services,Supplies and Services,372009,Subscriptions,05-Aug-2015,3007699-801909252,915.00,THOMSON REUTERS.
Assistant Chief Executive,Policy & Communications Division,Supplies and Services,332029,Printing Stationery and Gen Off Exps,06-Aug-2015,3007739-51596,"12,803.43",ACORN WEB OFFSET LTD.
Assistant Chief Executive,Policy & Communications Division,Supplies and Services,312010,Newspapers Books and Periodicals,06-Aug-2015,3007848-286792/0,"17,209.98",NATIONAL LEAFLET CO LTD.
Assistant Chief Executive,Policy & Communications Division,Supplies and Services,312010,Newspapers Books and Periodicals,06-Aug-2015,3007848-286793/0,"17,209.98",NATIONAL LEAFLET CO LTD.
Assistant Chief Executive,Partnerships & Community Engagement Div.,Cap Exp on Grants & Other Financial Assistance (REFCUS),918004,Contributions to other bodies,06-Aug-2015,3007869-VOUCHER12NB-DCTY036,"15,922.00",PITTINGTON COMMUNITY ASSOCIATION.
Children and Adult Services,Childrens Services,Third Party Payments,425040,Rendered by Voluntary Organisations,06-Aug-2015,3007738-15/1783,"3,100.00",ACORN HOUSE (FOSTERING SERVICES) LTD.
Children and Adult Services,Childrens Services,Third Party Payments,486033,Service Level Agreements,06-Aug-2015,3007754-209501147,"2,070.00",BARNARDO SERVICES LTD.
Children and Adult Services,Childrens Services,Third Party Payments,486033,Service Level Agreements,06-Aug-2015,3007754-209501148,"2,070.00",BARNARDO SERVICES LTD.
Children and Adult Services,Childrens Services,Third Party Payments,486033,Service Level Agreements,06-Aug-2015,3007754-209501149,"2,070.00",BARNARDO SERVICES LTD.
Children and Adult Services,Childrens Services,Transport,230005,Contract Hire,06-Aug-2015,3007777-5393,"1,248.00",CROFT BUSINESS SERVICES (UK) LTD T/A CROFT TAXIS.
Children and Adult Services,Childrens Services,Transport,230005,Contract Hire,06-Aug-2015,3007777-5416,764.40,CROFT BUSINESS SERVICES (UK) LTD T/A CROFT TAXIS.
Children and Adult Services,Childrens Services,Transport,230005,Contract Hire,06-Aug-2015,3007777-5497,764.40,CROFT BUSINESS SERVICES (UK) LTD T/A CROFT TAXIS.
Children and Adult Services,Childrens Services,Transport,240045,Car Allowances,06-Aug-2015,3007889-4231,"70,326.19",SOCIAL RESOURCE CENTRE LTD.
Children and Adult Services,Commissioning inc Supporting People,Premises,145050,Cleaning and Domestic Supplies,06-Aug-2015,3007745-57004,"33,011.55",ANLABY OFFICE CLEANING SERVICES LTD.
Dedicated Schools Grant,Dedicated Schools Grant,Third Party Payments,425005,Rendered by Voluntary Organisations,06-Aug-2015,3007759-1363,975.00,BRECKENBROUGH SCHOOL.
Dedicated Schools Grant,Dedicated Schools Grant,Supplies and Services,304245,Equipment and Materials,06-Aug-2015,3007763-1057,526.05,C BOULBY T/A NORTH EAST VISION IMPAIRMENT SERVICES T/A NEVIS.
Dedicated Schools Grant,Dedicated Schools Grant,Transport,230010,Contract Hire,06-Aug-2015,3007908-TS14S-33,720.00,TOP STAR TRAVEL.
Children and Adult Services,Education,Transport,230008,Contract Hire,06-Aug-2015,3007768-27/2015,"1,395.00",CHRIS`S TAXI.
Children and Adult Services,Education,Transport,230008,Contract Hire,06-Aug-2015,3007774-602,928.00,CONNORS MINI BUSES.
Children and Adult Services,Education,Transport,230008,Contract Hire,06-Aug-2015,3007774-604,640.00,CONNORS MINI BUSES.
Children and Adult Services,Education,Transport,230008,Contract Hire,06-Aug-2015,3007781-0014,780.00,DAVID WALKER TAXIS.
Children and Adult Services,Education,Transport,230007,Contract Hire,06-Aug-2015,3007799-NDA/10,"2,364.78",GILLINGHAM COACHES.
Children and Adult Services,Education,Transport,230007,Contract Hire,06-Aug-2015,3007799-NDA/11,"1,397.37",GILLINGHAM COACHES.
Children and Adult Services,Education,Transport,230008,Contract Hire,06-Aug-2015,3007810-238,979.68,HEPWORTHS LUXURY TRAVEL.
Children and Adult Services,Education,Transport,230008,Contract Hire,06-Aug-2015,3007810-239,784.03,HEPWORTHS LUXURY TRAVEL.
Children and Adult Services,Education,Transfer Payments,510026,School Children,06-Aug-2015,3007812-14/7/15,845.00,HOWLETCH & SHOTTON CHILDCARE LTD.
Children and Adult Services,Education,Construction Work,908105,Construction work,06-Aug-2015,3007815-ISD0135,"2,798.50",INSPIREDSPACES DURHAM (PROJECTCO1) LTD.
Children and Adult Services,Education,Construction Work,908105,Construction work,06-Aug-2015,3007815-ISD0138,620.00,INSPIREDSPACES DURHAM (PROJECTCO1) LTD.
Children and Adult Services,Education,Transport,230008,Contract Hire,06-Aug-2015,3007821-2425,"1,654.64",JEFF ANDERSON COACHES LTD.
Children and Adult Services,Education,Transport,230008,Contract Hire,06-Aug-2015,3007829-11-N191,"1,834.56",KD TAXIS.
Children and Adult Services,Education,Transport,230008,Contract Hire,06-Aug-2015,3007838-00771,"1,364.87",MICHAELS TRAVEL.
Children and Adult Services,Education,Transport,230008,Contract Hire,06-Aug-2015,3007838-00772,"1,319.50",MICHAELS TRAVEL.
Children and Adult Services,Education,Transport,230008,Contract Hire,06-Aug-2015,3007840-566,"1,170.00",MOLLYS TAXIS.
Children and Adult Services,Education,Transport,230008,Contract Hire,06-Aug-2015,3007840-568,"1,097.59",MOLLYS TAXIS.
Children and Adult Services,Education,Transport,230008,Contract Hire,06-Aug-2015,3007840-569,"1,560.00",MOLLYS TAXIS.
Children and Adult Services,Education,Transport,230008,Contract Hire,06-Aug-2015,3007840-573,"1,351.00",MOLLYS TAXIS.
Children and Adult Services,Education,Transport,230008,Contract Hire,06-Aug-2015,3007845-692,536.77,MR PETER YOUNG.
Children and Adult Services,Education,Third Party Payments,440999,Other Third Party Payments,06-Aug-2015,3007853-85,"17,971.89",NORTHERN RIGHTS COMMUNITY INTEREST COMPANY (CIC)..
Children and Adult Services,Education,Transport,230008,Contract Hire,06-Aug-2015,3007863-SC-037A,"1,110.33",PAUL BURRELL T/A PAUL BURRELL TAXIS.
Children and Adult Services,Education,Transport,230008,Contract Hire,06-Aug-2015,3007866-504,832.00,PETERLEE EXECUTIVE CARS.
Children and Adult Services,Education,Transport,230008,Contract Hire,06-Aug-2015,3007866-506,936.00,PETERLEE EXECUTIVE CARS.
Children and Adult Services,Education,Transport,230008,Contract Hire,06-Aug-2015,3007872-B11,"1,024.00",PRESTYS HACKNEY & PRIVATE HIRE TAXIS.
Children and Adult Services,Education,Transport,230008,Contract Hire,06-Aug-2015,3007872-G64,598.00,PRESTYS HACKNEY & PRIVATE HIRE TAXIS.
Children and Adult Services,Education,Third Party Payments,440999,Other Third Party Payments,06-Aug-2015,3007903-TW11/15,"4,480.00",THEM WIFIES.
Children and Adult Services,Education,Third Party Payments,440999,Other Third Party Payments,06-Aug-2015,3007904-TW10/15,"14,560.00",THEM WIFIES.
Children and Adult Services,Education,Third Party Payments,440999,Other Third Party Payments,06-Aug-2015,3007904-TW18/14,"3,384.00",THEM WIFIES.
Children and Adult Services,Education,Transport,230008,Contract Hire,06-Aug-2015,3007908-TS20-33,"1,312.35",TOP STAR TRAVEL.
Children and Adult Services,Head of Adults,Supplies and Services,338066,Services,06-Aug-2015,3007836-20149,"3,558.76",MJG
Neighbourhood Services,Technical Services,Supplies and Services,304221,Equipment and Materials,06-Aug-2015,3007740-21742563,861.58,AGGREGATE INDUSTRIES UK LTD.
Neighbourhood Services,Technical Services,Supplies and Services,304221,Equipment and Materials,06-Aug-2015,3007740-21742564,"6,273.76",AGGREGATE INDUSTRIES UK LTD.
Neighbourhood Services,Technical Services,Supplies and Services,304221,Equipment and Materials,06-Aug-2015,3007740-21742565,776.68,AGGREGATE INDUSTRIES UK LTD.
Neighbourhood Services,Culture & Sport,Supplies and Services,304337,Equipment and Materials,06-Aug-2015,3007744-3739,529.95,ALISON BLACK LTD T/A SPORTMAX.
Neighbourhood Services,Technical Services,Stock,926900,Stock in hand-Inventory system,06-Aug-2015,3007748-INV00000743529,604.50,ARNDALE GROUP OF COMPANIES.
Neighbourhood Services,Technical Services,Stock,926004,Stock,06-Aug-2015,3007771-90136415,"26,730.62",CLEVELAND POTASH LTD.
Neighbourhood Services,Direct Services,Third Party Payments,430100,Rendered by Private Contractors,06-Aug-2015,3007772-8117205,512.00,CLOVER CONTROLS LTD.
Neighbourhood Services,Direct Services,Transport,215013,Running Costs of Vehicles,06-Aug-2015,3007783-D94207,705.00,DENNIS EAGLE LTD.
Neighbourhood Services,Direct Services,Supplies and Services,304259,Equipment and Materials,06-Aug-2015,3007788-5070586,769.60,EAST RIDING HORTICULTURE LTD.
Neighbourhood Services,Projects and Business services,Third Party Payments,430121,Rendered by Private Contractors,06-Aug-2015,3007793-68405,"1,125.00",FANS & BLOWERS LTD.
Neighbourhood Services,Direct Services,Third Party Payments,430100,Rendered by Private Contractors,06-Aug-2015,3007803-17526,"11,545.00",GRC (LEGAL SERVICES) LTD T/A GRC BAILIFFS.
Neighbourhood Services,Direct Services,Transport,215005,Running Costs of Vehicles,06-Aug-2015,3007807-543813,"17,828.62",HARVEST ENERGY LTD.
Neighbourhood Services,Technical Services,Stock,926900,Stock in hand-Inventory system,06-Aug-2015,3007816-495501,"2,424.80",INSTARMAC GROUP PLC.
Neighbourhood Services,Direct Services,Premises,108135,Service Repairs and Maintenance,06-Aug-2015,3007818-11246,"3,362.19",JACK COUPE & SONS LTD T/A COUPE LINE.
Neighbourhood Services,Technical Services,Construction Work,908108,Capital - Surface Dressing,06-Aug-2015,3007818-11402,714.14,JACK COUPE & SONS LTD T/A COUPE LINE.
Neighbourhood Services,Culture & Sport,Supplies and Services,338047,Services,06-Aug-2015,3007822-21/07/2015,"7,613.33",JEWELS PROMOTIONS.
Neighbourhood Services,Direct Services,Supplies and Services,304259,Equipment and Materials,06-Aug-2015,3007824-00182,"1,170.00",JN KEARTON.
Neighbourhood Services,Direct Services,Supplies and Services,304259,Equipment and Materials,06-Aug-2015,3007824-00185,585.00,JN KEARTON.
Neighbourhood Services,Projects and Business services,Fees,901002,Professional fees,06-Aug-2015,3007851-DCC-1275-0715-NL,"9,343.24",NEPRO LTD.
Neighbourhood Services,Culture & Sport,Supplies and Services,384700,Miscellaneous Expenses,06-Aug-2015,3007855-420,"5,416.00",NOUVEAU FITNESS CIC.
Neighbourhood Services,Culture & Sport,Premises,106082,Centrally Controlled Rep and Maint,06-Aug-2015,3007859-01174511,"6,239.28",OTIS LTD.
Neighbourhood Services,Technical Services,Stock,926900,Stock in hand-Inventory system,06-Aug-2015,3007861-XL147919,"2,367.68",PARK ELECTRICAL DISTRIBUTORS LTD.
Neighbourhood Services,Direct Services,Supplies and Services,304259,Equipment and Materials,06-Aug-2015,3007865-0000069827,525.94,PEART FENCING LTD.
Neighbourhood Services,Technical Services,Construction Work,908105,Construction work,06-Aug-2015,3007871-135105,850.00,PREMIER TRAFFIC MANAGEMENT LTD.
Neighbourhood Services,Technical Services,Third Party Payments,430100,Rendered by Private Contractors,06-Aug-2015,3007871-135114,"30,430.02",PREMIER TRAFFIC MANAGEMENT LTD.
Neighbourhood Services,Direct Services,Third Party Payments,430100,Rendered by Private Contractors,06-Aug-2015,3007873-79185,550.00,PROTECTOR SECURITY GROUP LTD.
Neighbourhood Services,Technical Services,Third Party Payments,430100,Rendered by Private Contractors,06-Aug-2015,3007875-2580/150656,"1,996.60",RAINTON CONSTRUCTION LTD.
Neighbourhood Services,Technical Services,Third Party Payments,430100,Rendered by Private Contractors,06-Aug-2015,3007875-2580/150657,"1,788.00",RAINTON CONSTRUCTION LTD.
Neighbourhood Services,Technical Services,Stock,926900,Stock in hand-Inventory system,06-Aug-2015,3007885-68609,"2,962.47",SIMMONSIGNS LTD.
Neighbourhood Services,Direct Services,Supplies and Services,304221,Equipment and Materials,06-Aug-2015,3007887-21549,712.00,SIMPLY STRIPES (THE SIGNMAKERS) LTD.
Neighbourhood Services,Culture & Sport,Income,715699,Sales,06-Aug-2015,3007890-GDB000088,"1,068.78",SOCIETY OF LONDON THEATRE.
Neighbourhood Services,Technical Services,Supplies and Services,304221,Equipment and Materials,06-Aug-2015,3007895-073691,868.21,STONEGRAVE AGGREGATES LTD.
Neighbourhood Services,Culture & Sport,Supplies and Services,338047,Services,06-Aug-2015,3007896-60140531,"3,485.50",STUDIOCANAL LTD.
Neighbourhood Services,Culture & Sport,Supplies and Services,338047,Services,06-Aug-2015,3007896-60140532,"2,272.12",STUDIOCANAL LTD.
Neighbourhood Services,Culture & Sport,Supplies and Services,338047,Services,06-Aug-2015,3007896-60140533,583.46,STUDIOCANAL LTD.
Neighbourhood Services,Culture & Sport,Supplies and Services,338047,Services,06-Aug-2015,3007896-60140534,"1,845.73",STUDIOCANAL LTD.
Neighbourhood Services,Culture & Sport,Supplies and Services,338047,Services,06-Aug-2015,3007896-60140535,847.13,STUDIOCANAL LTD.
Neighbourhood Services,Culture & Sport,Supplies and Services,338047,Services,06-Aug-2015,3007896-60140536,"1,125.84",STUDIOCANAL LTD.
Neighbourhood Services,Culture & Sport,Supplies and Services,338047,Services,06-Aug-2015,3007896-60140540,"1,002.09",STUDIOCANAL LTD.
Neighbourhood Services,Culture & Sport,Supplies and Services,338047,Services,06-Aug-2015,3007896-60140543,"1,274.25",STUDIOCANAL LTD.
Neighbourhood Services,Culture & Sport,Supplies and Services,338047,Services,06-Aug-2015,3007896-60140544,"3,657.37",STUDIOCANAL LTD.
Neighbourhood Services,Culture & Sport,Supplies and Services,338047,Services,06-Aug-2015,3007896-60140545,"1,791.05",STUDIOCANAL LTD.
Neighbourhood Services,Technical Services,Supplies and Services,342215,Computers and Communications,06-Aug-2015,3007909-28171,"1,714.31",TRACKYOU LTD.
Neighbourhood Services,Technical Services,Supplies and Services,342215,Computers and Communications,06-Aug-2015,3007909-28304,870.20,TRACKYOU LTD.
Neighbourhood Services,Redundant Direct Services,Supplies and Services,342215,Computers and Communications,06-Aug-2015,3007909-28307,916.00,TRACKYOU LTD.
Neighbourhood Services,Technical Services,Supplies and Services,342225,Computers and Communications,06-Aug-2015,3007909-28483,"15,946.67",TRACKYOU LTD.
Neighbourhood Services,Direct Services,Supplies and Services,304259,Equipment and Materials,06-Aug-2015,3007912-51714,"2,488.00",TURF CARE SPECIALISTS LTD.
Neighbourhood Services,Technical Services,Supplies and Services,304221,Equipment and Materials,06-Aug-2015,3007914-151097,"2,356.38",TYNEDALE ROADSTONE LTD.
Neighbourhood Services,Technical Services,Supplies and Services,304221,Equipment and Materials,06-Aug-2015,3007914-151098,662.20,TYNEDALE ROADSTONE LTD.
Neighbourhood Services,Technical Services,Supplies and Services,304221,Equipment and Materials,06-Aug-2015,3007914-151099,873.81,TYNEDALE ROADSTONE LTD.
Neighbourhood Services,Culture & Sport,Supplies and Services,338047,Services,06-Aug-2015,3007915-22314041221-1,"1,121.54",UNIVERSAL PICTURES INTERNATIONAL UK & EIRE LTD.
Neighbourhood Services,Culture & Sport,Supplies and Services,338047,Services,06-Aug-2015,3007915-22314041264-1,"3,400.38",UNIVERSAL PICTURES INTERNATIONAL UK & EIRE LTD.
Neighbourhood Services,Culture & Sport,Supplies and Services,338047,Services,06-Aug-2015,3007915-22314041265-1,"2,759.05",UNIVERSAL PICTURES INTERNATIONAL UK & EIRE LTD.
Neighbourhood Services,Culture & Sport,Supplies and Services,338047,Services,06-Aug-2015,3007915-22314041330-1,"6,740.87",UNIVERSAL PICTURES INTERNATIONAL UK & EIRE LTD.
Neighbourhood Services,Culture & Sport,Supplies and Services,338047,Services,06-Aug-2015,3007915-22314041332-1,"4,793.71",UNIVERSAL PICTURES INTERNATIONAL UK & EIRE LTD.
Neighbourhood Services,Culture & Sport,Supplies and Services,338047,Services,06-Aug-2015,3007915-22314041333-1,"1,265.23",UNIVERSAL PICTURES INTERNATIONAL UK & EIRE LTD.
Neighbourhood Services,Direct Services,Supplies and Services,304221,Equipment and Materials,06-Aug-2015,3007920-24273334,806.30,WOLSELEY UK LTD.
Neighbourhood Services,Technical Services,Stock,926900,Stock in hand-Inventory system,06-Aug-2015,3007920-24273339,870.47,WOLSELEY UK LTD.
Regeneration & Economic Development,Economic Development and Housing,Cap Exp on Grants & Other Financial Assistance (REFCUS),918401,Capital grants,06-Aug-2015,3007753-RED-08-2015-028,"4,090.00",AVENSWAY BUILDING CONTRACTORS LTD.
Regeneration & Economic Development,Economic Development and Housing,Supplies and Services,324117,Provisions,06-Aug-2015,3007756-62268112,684.82,BIDVEST FOODSERVICE (FORMERLY 3663).
Regeneration & Economic Development,Economic Development and Housing,Construction Work,908105,Construction work,06-Aug-2015,3007785-171,"2,578.20",DURHAM & TEES COMMUNITY VENTURES FUNDCO (NO 4) LTD.
Regeneration & Economic Development,Spatial Policy Planning Assets & Environment,Supplies and Services,384199,Miscellaneous Expenses,06-Aug-2015,3007792-124975,"3,000.00",ESRI (UK) LTD.
Regeneration & Economic Development,Transport and Contracted Services,Vehicles Equipment Furniture and Fittings,912529,Purchase-equipment,06-Aug-2015,3007794-INV28788,"2,070.00",FERROGRAPH LTD.
Regeneration & Economic Development,Transport and Contracted Services,Supplies and Services,384199,Miscellaneous Expenses,06-Aug-2015,3007839-DFTFUNDING003,"65,000.00",MODESHIFT.
Regeneration & Economic Development,Economic Development and Housing,Supplies and Services,384199,Miscellaneous Expenses,06-Aug-2015,3007854-871502,"10,000.00",NORTHUMBERLAND TOURISM WEB LTD (NT WEB).
Regeneration & Economic Development,Transport and Contracted Services,Third Party Payments,430100,Rendered by Private Contractors,06-Aug-2015,3007856-032933,"27,606.57",NSL LTD.
Regeneration & Economic Development,Transport and Contracted Services,Third Party Payments,430100,Rendered by Private Contractors,06-Aug-2015,3007856-032934,"1,478.05",NSL LTD.
Regeneration & Economic Development,Transport and Contracted Services,Third Party Payments,430100,Rendered by Private Contractors,06-Aug-2015,3007856-032935,"44,536.85",NSL LTD.
Regeneration & Economic Development,Transport and Contracted Services,Third Party Payments,430100,Rendered by Private Contractors,06-Aug-2015,3007856-032937,"6,500.74",NSL LTD.
Regeneration & Economic Development,Transport and Contracted Services,Third Party Payments,430100,Rendered by Private Contractors,06-Aug-2015,3007856-032938,"16,691.56",NSL LTD.
Regeneration & Economic Development,Transport and Contracted Services,Third Party Payments,430100,Rendered by Private Contractors,06-Aug-2015,3007856-033013,"3,107.46",NSL LTD.
Regeneration & Economic Development,Economic Development and Housing,Cap Exp on Grants & Other Financial Assistance (REFCUS),918401,Capital grants,06-Aug-2015,3007876-RED-08-2015-024,750.00,REDGATE ARCHITECTURAL DESIGN.
Regeneration & Economic Development,Economic Development and Housing,Creditors,952103,Creditor-British Council Atlas fund,06-Aug-2015,3007891-9051069776,"2,310.50",SODEXO LTD.
Regeneration & Economic Development,Economic Development and Housing,Cap Exp on Grants & Other Financial Assistance (REFCUS),918401,Capital grants,06-Aug-2015,3007906-RED-08-2015-025,"3,054.50",THYSSENKRUPP ENCASA A DIVISION OF THYSSENKRUPP ACCESS LTD.
Regeneration & Economic Development,Economic Development and Housing,Cap Exp on Grants & Other Financial Assistance (REFCUS),918401,Capital grants,06-Aug-2015,3007910-RED-08-2015-027,"5,027.00",TRANSFORM ELECTRICAL SOLUTIONS & TESTING LTD (TEST LTD).
Resources,I.C.T. Services,Vehicles Equipment Furniture and Fittings,912701,Computer equipment,06-Aug-2015,3007782-7402221929,"2,850.00",DELL COMPUTER CORPORATION LTD.
Resources,Legal & Democratic Services,Supplies and Services,338025,Services,06-Aug-2015,3007789-1285,"1,336.20",ELYSIAN PATHOLOGY SERVICES LTD.
Resources,I.C.T. Services,Supplies and Services,304303,Equipment and Materials,06-Aug-2015,3007828-37202,"9,030.00",KBR IT & NETWORKING SOLUTIONS.
Resources,Legal & Democratic Services,Supplies and Services,338042,Services,06-Aug-2015,3007844-309521/INVMT152,"6,660.00",MR MARTIN TODD.
Resources,Legal & Democratic Services,Supplies and Services,338042,Services,06-Aug-2015,3007846-311774/INVSPA49,"3,660.00",MR STEPHEN AINSLEY.
Resources,I.C.T. Services,Supplies and Services,384199,Miscellaneous Expenses,06-Aug-2015,3007877-INV-22442,"1,332.00",REDSTOR LTD.
Resources,I.C.T. Services,Supplies and Services,304337,Equipment and Materials,06-Aug-2015,3007899-7566562,639.11,SUPPLIES TEAM LTD (NOW KNOWN AS BANNER).
Resources,I.C.T. Services,Stock,926900,Stock in hand-Inventory system,06-Aug-2015,3007921-Y517502,"2,160.00",XMA LTD.
Children and Adult Services,Childrens Services,Supplies and Services,352001,Conference Expenses,07-Aug-2015,3007939-5535,"2,697.00",AFTER ADOPTION.
Children and Adult Services,Childrens Services,Employees,040149,Recruitment Instruction and Training,07-Aug-2015,3008048-0050,950.00,FEEL GOOD FACTORY CIC.
Children and Adult Services,Childrens Services,Third Party Payments,425040,Rendered by Voluntary Organisations,07-Aug-2015,3008052-123892,730.00,FOSTER CARES LTD.
Children and Adult Services,Childrens Services,Third Party Payments,425040,Rendered by Voluntary Organisations,07-Aug-2015,3008052-123897,"1,180.00",FOSTER CARES LTD.
Children and Adult Services,Childrens Services,Third Party Payments,425040,Rendered by Voluntary Organisations,07-Aug-2015,3008052-123902,820.00,FOSTER CARES LTD.
Children and Adult Services,Childrens Services,Third Party Payments,425040,Rendered by Voluntary Organisations,07-Aug-2015,3008052-123903,820.00,FOSTER CARES LTD.
Children and Adult Services,Childrens Services,Third Party Payments,425040,Rendered by Voluntary Organisations,07-Aug-2015,3008052-123904,730.00,FOSTER CARES LTD.
Children and Adult Services,Childrens Services,Third Party Payments,425040,Rendered by Voluntary Organisations,07-Aug-2015,3008052-123914,730.00,FOSTER CARES LTD.
Children and Adult Services,Childrens Services,Third Party Payments,425040,Rendered by Voluntary Organisations,07-Aug-2015,3008052-123917,730.00,FOSTER CARES LTD.
Children and Adult Services,Childrens Services,Third Party Payments,425040,Rendered by Voluntary Organisations,07-Aug-2015,3008052-123922,730.00,FOSTER CARES LTD.
Children and Adult Services,Childrens Services,Third Party Payments,425040,Rendered by Voluntary Organisations,07-Aug-2015,3008052-123923,730.00,FOSTER CARES LTD.
Children and Adult Services,Childrens Services,Transport,230005,Contract Hire,07-Aug-2015,3008119-2196,"1,060.00",LOCAL TRANSPORT LTD.
Children and Adult Services,Childrens Services,Transport,230005,Contract Hire,07-Aug-2015,3008119-2235,"1,344.00",LOCAL TRANSPORT LTD.
Children and Adult Services,Childrens Services,Premises,120009,Energy Costs,07-Aug-2015,3008214-35820,"1,875.52",SEAHAM HARBOUR DOCK CO.
Children and Adult Services,Childrens Services,Supplies and Services,364352,Grants to Voluntary Organisations,07-Aug-2015,3008248-TCS88,856.95,TEES VALLEY HOUSING LTD T/A FABRICK HOUSING GROUP LTD.
Children and Adult Services,Childrens Services,Premises,125009,Rents,07-Aug-2015,3008253-GT2164,"1,010.59",THE GREENHOUSE COMPANY (GROUNDWORK) LTD.
Children and Adult Services,Commissioning inc Supporting People,Third Party Payments,442002,Supporting People,07-Aug-2015,3007961-1962885,"16,448.04",BID SERVICES WITH DEAF PEOPLE.
Children and Adult Services,Commissioning inc Supporting People,Third Party Payments,442002,Supporting People,07-Aug-2015,3007989-1962914,"3,452.04",CHILDREN NORTH EAST.
Children and Adult Services,Commissioning inc Supporting People,Third Party Payments,442002,Supporting People,07-Aug-2015,3008010-1962926,"19,868.48",CREATIVE SUPPORT LTD.
Children and Adult Services,Commissioning inc Supporting People,Third Party Payments,442002,Supporting People,07-Aug-2015,3008027-1962925,"5,668.48",DISC LTD.
Children and Adult Services,Commissioning inc Supporting People,Third Party Payments,442002,Supporting People,07-Aug-2015,3008027-1962948,"27,885.68",DISC LTD.
Children and Adult Services,Commissioning inc Supporting People,Third Party Payments,441001,Supporting People,07-Aug-2015,3008029-1962843,"20,819.76",DURHAM ACTION ON SINGLE HOUSING.
Children and Adult Services,Commissioning inc Supporting People,Third Party Payments,443001,Supporting People,07-Aug-2015,3008029-1962844,"2,951.84",DURHAM ACTION ON SINGLE HOUSING.
Children and Adult Services,Commissioning inc Supporting People,Third Party Payments,443001,Supporting People,07-Aug-2015,3008029-1962848,"1,475.92",DURHAM ACTION ON SINGLE HOUSING.
Children and Adult Services,Commissioning inc Supporting People,Third Party Payments,441001,Supporting People,07-Aug-2015,3008037-1962852,"5,483.40",EAST DURHAM COMMUNITY INITIATIVES LTD.
Children and Adult Services,Commissioning inc Supporting People,Third Party Payments,442002,Supporting People,07-Aug-2015,3008053-1962923,"30,071.20",FOUNDATION.
Children and Adult Services,Commissioning inc Supporting People,Third Party Payments,442002,Supporting People,07-Aug-2015,3008065-1962853,"5,995.44",HANOVER HOUSING ASSOCIATION.
Children and Adult Services,Commissioning inc Supporting People,Third Party Payments,441001,Supporting People,07-Aug-2015,3008066-1962842,"18,082.80",HARBOUR SUPPORT SERVICES.
Children and Adult Services,Commissioning inc Supporting People,Third Party Payments,442002,Supporting People,07-Aug-2015,3008130-1962927,"5,469.72",MENTAL HEALTH MATTERS.
Children and Adult Services,Commissioning inc Supporting People,Third Party Payments,442002,Supporting People,07-Aug-2015,3008139-1962928,"5,240.36",MOVING ON.
Children and Adult Services,Commissioning inc Supporting People,Third Party Payments,442002,Supporting People,07-Aug-2015,3008201-1962933,"7,356.72",RICHMOND FELLOWSHIP.
Children and Adult Services,Commissioning inc Supporting People,Third Party Payments,444002,Supporting People,07-Aug-2015,3008201-1962934,"4,068.24",RICHMOND FELLOWSHIP.
Children and Adult Services,Commissioning inc Supporting People,Third Party Payments,441001,Supporting People,07-Aug-2015,3008201-1962946,"9,423.88",RICHMOND FELLOWSHIP.
Children and Adult Services,Commissioning inc Supporting People,Third Party Payments,442002,Supporting People,07-Aug-2015,3008217-1962929,"9,044.36",SHAID.
Children and Adult Services,Commissioning inc Supporting People,Third Party Payments,443001,Supporting People,07-Aug-2015,3008235-1962862,"23,955.16",STONHAM HOUSING ASSOCIATION LTD.
Children and Adult Services,Commissioning inc Supporting People,Third Party Payments,443001,Supporting People,07-Aug-2015,3008235-1962872,"11,715.88",STONHAM HOUSING ASSOCIATION LTD.
Children and Adult Services,Commissioning inc Supporting People,Third Party Payments,443001,Supporting People,07-Aug-2015,3008235-1962890,980.00,STONHAM HOUSING ASSOCIATION LTD.
Children and Adult Services,Commissioning inc Supporting People,Third Party Payments,442002,Supporting People,07-Aug-2015,3008235-1962903,"23,639.04",STONHAM HOUSING ASSOCIATION LTD.
Children and Adult Services,Commissioning inc Supporting People,Third Party Payments,441001,Supporting People,07-Aug-2015,3008235-1962904,"67,257.36",STONHAM HOUSING ASSOCIATION LTD.
Children and Adult Services,Commissioning inc Supporting People,Third Party Payments,442002,Supporting People,07-Aug-2015,3008235-1962912,"145,778.32",STONHAM HOUSING ASSOCIATION LTD.
Children and Adult Services,Commissioning inc Supporting People,Third Party Payments,442002,Supporting People,07-Aug-2015,3008235-1962932,"29,343.52",STONHAM HOUSING ASSOCIATION LTD.
Children and Adult Services,Commissioning inc Supporting People,Third Party Payments,441001,Supporting People,07-Aug-2015,3008249-1962886,"19,231.20",THE CYRENIANS LTD T/A CHANGING LIVES.
Children and Adult Services,Commissioning inc Supporting People,Third Party Payments,441001,Supporting People,07-Aug-2015,3008256-1962889,"26,009.80",THIRTEEN CARE & SUPPORT.
Children and Adult Services,Commissioning inc Supporting People,Third Party Payments,442002,Supporting People,07-Aug-2015,3008256-1962909,"9,366.16",THIRTEEN CARE & SUPPORT.
Children and Adult Services,Commissioning inc Supporting People,Third Party Payments,441001,Supporting People,07-Aug-2015,3008256-1962915,"7,510.04",THIRTEEN CARE & SUPPORT.
Children and Adult Services,Commissioning inc Supporting People,Third Party Payments,442002,Supporting People,07-Aug-2015,3008256-1962916,"1,519.52",THIRTEEN CARE & SUPPORT.
Children and Adult Services,Commissioning inc Supporting People,Third Party Payments,441001,Supporting People,07-Aug-2015,3008256-1962918,"9,924.64",THIRTEEN CARE & SUPPORT.
Children and Adult Services,Commissioning inc Supporting People,Third Party Payments,442002,Supporting People,07-Aug-2015,3008258-1962947,"36,446.00",THREE RIVERS HOUSING ASSOCIATION LTD.
Children and Adult Services,Commissioning inc Supporting People,Third Party Payments,441001,Supporting People,07-Aug-2015,3008283-1962854,"1,183.60",WADDINGTON STREET CENTRE LTD.
Children and Adult Services,Commissioning inc Supporting People,Third Party Payments,441001,Supporting People,07-Aug-2015,3008285-1962930,"7,157.00",WEAR VALLEY WOMENS AID.
Dedicated Schools Grant,Dedicated Schools Grant,Employees,080025,Agency Staff,07-Aug-2015,3008244-1030847,847.15,TEACHING PERSONNEL LTD.
Children and Adult Services,Education,Supplies and Services,338005,Services,07-Aug-2015,3008021-DCL/1082,"3,350.00",DENDRA CONSULTING LTD.
Children and Adult Services,Education,Construction Work,908105,Construction work,07-Aug-2015,3008078-DURH/0640,"5,739.00",INSPIREDSPACES DURHAM LTD.
Children and Adult Services,Education,Supplies and Services,338094,Services,07-Aug-2015,3008113-2010332,"1,043.75",LEISUREWORKS.
Children and Adult Services,Education,Vehicles Equipment Furniture and Fittings,912529,Purchase-equipment,07-Aug-2015,3008136-10093009,940.00,MORLEYS OF BICESTER LTD.
Children and Adult Services,Planning & Service Strategy,Supplies and Services,384540,Miscellaneous Expenses,07-Aug-2015,3008013-572,"1,320.00",CURIOUS 12 LTD.
Children and Adult Services,Planning & Service Strategy,Supplies and Services,384956,Miscellaneous Expenses,07-Aug-2015,3008081-DCC/062015/LF060,"2,800.00",IPLUS TRAINING & CONSULTANCY SOCIAL ENTERPRISE LTD.
Neighbourhood Services,Direct Services,Premises,106082,Centrally Controlled Rep and Maint,07-Aug-2015,3007936-IN1096,"10,155.02",ACROL AIR CONDITIONING CO LTD.
Neighbourhood Services,Technical Services,Supplies and Services,304221,Equipment and Materials,07-Aug-2015,3007940-21749091,"1,266.36",AGGREGATE INDUSTRIES UK LTD.
Neighbourhood Services,Technical Services,Supplies and Services,304221,Equipment and Materials,07-Aug-2015,3007940-21749092,"3,004.58",AGGREGATE INDUSTRIES UK LTD.
Neighbourhood Services,Technical Services,Supplies and Services,304221,Equipment and Materials,07-Aug-2015,3007940-21749093,622.65,AGGREGATE INDUSTRIES UK LTD.
Neighbourhood Services,Technical Services,Supplies and Services,304221,Equipment and Materials,07-Aug-2015,3007940-21749094,703.25,AGGREGATE INDUSTRIES UK LTD.
Neighbourhood Services,Culture & Sport,Supplies and Services,312013,Newspapers Books and Periodicals,07-Aug-2015,3007952-4720838,639.80,ASKEWS & HOLTS LIBRARY SERVICES LTD.
Neighbourhood Services,Direct Services,Supplies and Services,304259,Equipment and Materials,07-Aug-2015,3007953-478,886.52,AVANTI LANDSCAPE SUPPLIES LTD T/A BRITISH FLORA.
Neighbourhood Services,Direct Services,Transport,210057,Repair and Maintenance of Vehicles,07-Aug-2015,3007959-25158712,568.13,BELL TRUCK SALES LTD.
Neighbourhood Services,Culture & Sport,Supplies and Services,312013,Newspapers Books and Periodicals,07-Aug-2015,3007966-13181,719.10,BOLINDA DIGITAL LTD.
Neighbourhood Services,Direct Services,Transport,230005,Contract Hire,07-Aug-2015,3007974-8122112,526.31,BURNT TREE GROUP LTD.
Neighbourhood Services,Direct Services,Transport,230005,Contract Hire,07-Aug-2015,3007974-8122113,"1,173.35",BURNT TREE GROUP LTD.
Neighbourhood Services,Direct Services,Transport,230005,Contract Hire,07-Aug-2015,3007974-8122120,"1,173.35",BURNT TREE GROUP LTD.
Neighbourhood Services,Direct Services,Transport,230005,Contract Hire,07-Aug-2015,3007974-8122123,529.90,BURNT TREE GROUP LTD.
Neighbourhood Services,Direct Services,Transport,230005,Contract Hire,07-Aug-2015,3007974-8122126,578.40,BURNT TREE GROUP LTD.
Neighbourhood Services,Direct Services,Transport,230005,Contract Hire,07-Aug-2015,3007974-8122127,974.02,BURNT TREE GROUP LTD.
Neighbourhood Services,Culture & Sport,Premises,106080,Centrally Controlled Rep and Maint,07-Aug-2015,3007991-5173325A,"1,210.81",CHUBB ELECTRONIC SECURITY SYSTEMS LTD.
Neighbourhood Services,Direct Services,Transport,210057,Repair and Maintenance of Vehicles,07-Aug-2015,3008016-111809,641.00,DAVID DIXON GARDEN MACHINERY CENTRE.
Neighbourhood Services,Direct Services,Third Party Payments,430100,Rendered by Private Contractors,07-Aug-2015,3008024-264559,995.62,DENNIS EAGLE LTD.
Neighbourhood Services,Culture & Sport,Supplies and Services,352001,Conference Expenses,07-Aug-2015,3008032-4100501265,500.00,DURHAM CRICKET BOARD COACHES ASSOCIATION.
Neighbourhood Services,Direct Services,Third Party Payments,430100,Rendered by Private Contractors,07-Aug-2015,3008033-1874,925.00,DURHAM MOTOR SERVICES LTD.
Neighbourhood Services,Culture & Sport,Supplies and Services,384199,Miscellaneous Expenses,07-Aug-2015,3008034-283990,674.80,DURHAM UNIVERSITY.
Neighbourhood Services,Technical Services,Employees,040149,Recruitment Instruction and Training,07-Aug-2015,3008072-1884,600.00,HSF TRAINING LTD.
Neighbourhood Services,Technical Services,Stock,926900,Stock in hand-Inventory system,07-Aug-2015,3008073-091934,"6,621.00",HYDRAM ENGINEERING LTD.
Neighbourhood Services,Technical Services,Construction Work,908108,Capital - Surface Dressing,07-Aug-2015,3008083-11399,"1,179.02",JACK COUPE & SONS LTD T/A COUPE LINE.
Neighbourhood Services,Direct Services,Transport,210057,Repair and Maintenance of Vehicles,07-Aug-2015,3008088-149014,662.45,JG PAXTON & SONS LTD.
Neighbourhood Services,Direct Services,Third Party Payments,430100,Rendered by Private Contractors,07-Aug-2015,3008088-149017,"1,361.66",JG PAXTON & SONS LTD.
Neighbourhood Services,Direct Services,Supplies and Services,304259,Equipment and Materials,07-Aug-2015,3008089-00184,580.00,JN KEARTON.
Neighbourhood Services,Technical Services,Supplies and Services,304358,Equipment and Materials,07-Aug-2015,3008092-23738,767.50,JOHN R BUTTERFIELD LTD.
Neighbourhood Services,Direct Services,Third Party Payments,430105,Rendered by Private Contractors,07-Aug-2015,3008093-039891,581.15,JOHN WADE (HAULAGE) LTD.
Neighbourhood Services,Direct Services,Transport,210057,Repair and Maintenance of Vehicles,07-Aug-2015,3008094-61291539,795.01,JOHNSTON SWEEPERS LTD.
Neighbourhood Services,Direct Services,Transport,210057,Repair and Maintenance of Vehicles,07-Aug-2015,3008094-61295576,681.32,JOHNSTON SWEEPERS LTD.
Neighbourhood Services,Technical Services,Stock,926900,Stock in hand-Inventory system,07-Aug-2015,3008098-STI423048,750.96,JT DOVE LTD.
Neighbourhood Services,Direct Services,Transport,230005,Contract Hire,07-Aug-2015,3008111-4370147,"1,700.00",LEEDS COMMERCIAL LTD.
Neighbourhood Services,Direct Services,Transport,230005,Contract Hire,07-Aug-2015,3008111-4371503,"1,122.00",LEEDS COMMERCIAL LTD.
Neighbourhood Services,Direct Services,Vehicles Equipment Furniture and Fittings,912541,Purchase-vehicles,07-Aug-2015,3008118-527601,"21,800.00",LLOYD LTD.
Neighbourhood Services,Direct Services,Supplies and Services,304221,Equipment and Materials,07-Aug-2015,3008120-3557368,"3,383.52",LONDON GENERAL SALES LTD.
Neighbourhood Services,Culture & Sport,Supplies and Services,384199,Miscellaneous Expenses,07-Aug-2015,3008131-DC015,916.00,METAFIT LTD.
Neighbourhood Services,Technical Services,Stock,926900,Stock in hand-Inventory system,07-Aug-2015,3008132-001/142421,706.00,MH SOUTHERN & CO LTD.
Neighbourhood Services,Technical Services,Stock,926900,Stock in hand-Inventory system,07-Aug-2015,3008132-001/142422,"1,295.00",MH SOUTHERN & CO LTD.
Neighbourhood Services,Culture & Sport,Supplies and Services,338047,Services,07-Aug-2015,3008168-3119,"3,750.00",OPERA INTERLUDES.
Neighbourhood Services,Technical Services,Stock,926900,Stock in hand-Inventory system,07-Aug-2015,3008175-XL147982,"2,048.82",PARK ELECTRICAL DISTRIBUTORS LTD.
Neighbourhood Services,Technical Services,Stock,926900,Stock in hand-Inventory system,07-Aug-2015,3008175-XL147997,"1,789.80",PARK ELECTRICAL DISTRIBUTORS LTD.
Neighbourhood Services,Technical Services,Stock,926900,Stock in hand-Inventory system,07-Aug-2015,3008175-XL148064,"1,188.00",PARK ELECTRICAL DISTRIBUTORS LTD.
Neighbourhood Services,Direct Services,Third Party Payments,430100,Rendered by Private Contractors,07-Aug-2015,3008193-42051,606.50,PROFESSIONAL AUTO ELECTRICS LTD.
Neighbourhood Services,Technical Services,Third Party Payments,430100,Rendered by Private Contractors,07-Aug-2015,3008200-2580/150658,"3,397.00",RAINTON CONSTRUCTION LTD.
Neighbourhood Services,Direct Services,Stock,926004,Stock,07-Aug-2015,3008202-733017,565.62,RICKERBY LTD.
Neighbourhood Services,Projects and Business services,Supplies and Services,340001,Postages,07-Aug-2015,3008205-9050189249,"1,246.28",ROYAL MAIL GROUP PLC.
Neighbourhood Services,Direct Services,Vehicles Equipment Furniture and Fittings,912541,Purchase-vehicles,07-Aug-2015,3008211-200637,"22,757.76",S JENNINGS LTD.
Neighbourhood Services,Direct Services,Vehicles Equipment Furniture and Fittings,912541,Purchase-vehicles,07-Aug-2015,3008211-200638,"22,757.76",S JENNINGS LTD.
Neighbourhood Services,Culture & Sport,Supplies and Services,304221,Equipment and Materials,07-Aug-2015,3008246-15005138,"3,187.16",TECHNOGYM UK LTD.
Neighbourhood Services,Culture & Sport,Supplies and Services,364999,Grants to Voluntary Organisations,07-Aug-2015,3008252-1396,"12,900.00",THE FORGE.
Neighbourhood Services,Technical Services,Stock,926900,Stock in hand-Inventory system,07-Aug-2015,3008257-0037271778,877.00,THOMAS & BETTS NETHERLANDS BV.
Neighbourhood Services,Direct Services,Transport,230005,Contract Hire,07-Aug-2015,3008266-12724,800.00,TRASH UK LTD.
Neighbourhood Services,Technical Services,Supplies and Services,304221,Equipment and Materials,07-Aug-2015,3008273-151158,578.14,TYNEDALE ROADSTONE LTD.
Neighbourhood Services,Culture & Sport,Supplies and Services,312013,Newspapers Books and Periodicals,07-Aug-2015,3008274-I590398,550.00,ULVERSCROFT LARGE PRINT BOOKS LTD.
Neighbourhood Services,Direct Services,Premises,150015,Apportioned Exps of Operational Blds,07-Aug-2015,3008286-435371,664.95,WERNICK HIRE LTD.
Neighbourhood Services,Direct Services,Premises,150015,Apportioned Exps of Operational Blds,07-Aug-2015,3008287-435374,777.21,WERNICK HIRE LTD.
Neighbourhood Services,Direct Services,Premises,150015,Apportioned Exps of Operational Blds,07-Aug-2015,3008287-435399,664.95,WERNICK HIRE LTD.
Neighbourhood Services,Direct Services,Premises,150015,Apportioned Exps of Operational Blds,07-Aug-2015,3008287-435403,676.78,WERNICK HIRE LTD.
Neighbourhood Services,Direct Services,Premises,150015,Apportioned Exps of Operational Blds,07-Aug-2015,3008287-435405,750.00,WERNICK HIRE LTD.
Neighbourhood Services,Direct Services,Supplies and Services,304221,Equipment and Materials,07-Aug-2015,3008288-23959121,745.48,WOLSELEY UK LTD.
Neighbourhood Services,Direct Services,Third Party Payments,430100,Rendered by Private Contractors,07-Aug-2015,3008294-SVI33887,"8,474.88",ZOELLER WASTE SYSTEMS LTD.
Regeneration & Economic Development,Economic Development and Housing,Supplies and Services,384700,Miscellaneous Expenses,07-Aug-2015,3007942-RED-08-2015-029,"8,000.00",AMA GROUP (NE) LTD.
Regeneration & Economic Development,Transport and Contracted Services,Supplies and Services,384199,Miscellaneous Expenses,07-Aug-2015,3007950-109241,885.00,ARRIVA DURHAM COUNTY LTD.
Regeneration & Economic Development,Transport and Contracted Services,Third Party Payments,430100,Rendered by Private Contractors,07-Aug-2015,3007950-CONCFARES-JUL15,"760,553.00",ARRIVA DURHAM COUNTY LTD.
Regeneration & Economic Development,Economic Development and Housing,Premises,120021,Energy Costs,07-Aug-2015,3008004-10312485,865.09,CORONA ENERGY RETAIL 2 LTD.
Regeneration & Economic Development,Spatial Policy Planning Assets & Environment,Supplies and Services,338005,Services,07-Aug-2015,3008021-DCL/1081,"2,850.00",DENDRA CONSULTING LTD.
Regeneration & Economic Development,Spatial Policy Planning Assets & Environment,Supplies and Services,384159,Miscellaneous Expenses,07-Aug-2015,3008036-138,"6,770.40",EAGLE SECURITY BISHOP AUCKLAND LTD.
Regeneration & Economic Development,Transport and Contracted Services,Third Party Payments,430100,Rendered by Private Contractors,07-Aug-2015,3008061-CONCFARES-JUL15,"853,243.00",GO NORTH EAST LTD.
Regeneration & Economic Development,Spatial Policy Planning Assets & Environment,Supplies and Services,384540,Miscellaneous Expenses,07-Aug-2015,3008205-9050214471,"1,417.05",ROYAL MAIL GROUP PLC.
Regeneration & Economic Development,Transport and Contracted Services,Vehicles Equipment Furniture and Fittings,912529,Purchase-equipment,07-Aug-2015,3008270-3IN/10264826,"55,168.00",TUNSTALL HEALTHCARE (UK) LTD.
Regeneration & Economic Development,Economic Development and Housing,Supplies and Services,384700,Miscellaneous Expenses,07-Aug-2015,3008280-RED-08-2015-031,"1,000.00",VITA DIRECT.
Resources,Legal & Democratic Services,Supplies and Services,338042,Services,07-Aug-2015,3008142-309556/INVJB207,"1,020.00",MR JAMES BROWN.
Resources,I.C.T. Services,Supplies and Services,332029,Printing Stationery and Gen Off Exps,07-Aug-2015,3008183-32914,605.34,PLASTIC DATA CARD LTD.
Resources,I.C.T. Services,Supplies and Services,304303,Equipment and Materials,07-Aug-2015,3008264-114467,514.50,TP ELECTRICAL SUPPLIES & FIXINGS LTD.
Resources,I.C.T. Services,Stock,926900,Stock in hand-Inventory system,07-Aug-2015,3008292-Y528851,"2,160.00",XMA LTD.
Assistant Chief Executive,Planning & Performance Division,Supplies and Services,304259,Equipment and Materials,10-Aug-2015,3008381-156002,"8,940.00",COVERGOLD LTD.
Assistant Chief Executive,Partnerships & Community Engagement Div.,Supplies and Services,384085,Miscellaneous Expenses,10-Aug-2015,3008406-GELI04-15LAWP03-15,500.00,DURHAM & DARLINGTON FIRE & RESCUE.
Assistant Chief Executive,Partnerships & Community Engagement Div.,Supplies and Services,384085,Miscellaneous Expenses,10-Aug-2015,3008505-TURJ06-15TAYP06-15,500.00,MEADOWFIELD & LANGLEY MOOR OVER 60`S.
Children and Adult Services,Central Charges (CYPS),Employees,005001,Pay,10-Aug-2015,3008536-RES-08-2015-039,"25,000.00",REDACTED - PAYMENT TO INDIVIDUAL
Children and Adult Services,Childrens Services,Supplies and Services,364358,Grants to Voluntary Organisations,10-Aug-2015,3008428-CAS-08-2015-008,"11,785.50",FRESH STUDENT LIVING.
Children and Adult Services,Childrens Services,Supplies and Services,338027,Services,10-Aug-2015,3008543-DCC-1301-0715-NL,"45,989.94",NEPRO LTD.
Children and Adult Services,Childrens Services,Employees,080025,Agency Staff,10-Aug-2015,3008585-0228387447,975.00,REED MANAGED SERVICES LTD.
Children and Adult Services,Childrens Services,Employees,080025,Agency Staff,10-Aug-2015,3008585-0228387448,975.00,REED MANAGED SERVICES LTD.
Children and Adult Services,Childrens Services,Third Party Payments,425017,Rendered by Voluntary Organisations,10-Aug-2015,3008619-4502,"7,308.00",ST OSWALD`S HOSPICE.
Children and Adult Services,Childrens Services,Supplies and Services,364352,Grants to Voluntary Organisations,10-Aug-2015,3008626-D1IN/00019386,"1,675.62",STONHAM HOUSING ASSOCIATION LTD.
Children and Adult Services,Childrens Services,Supplies and Services,364352,Grants to Voluntary Organisations,10-Aug-2015,3008626-D1IN/00019387,"1,675.62",STONHAM HOUSING ASSOCIATION LTD.
Children and Adult Services,Childrens Services,Supplies and Services,364352,Grants to Voluntary Organisations,10-Aug-2015,3008626-D1IN/00019388,"1,675.62",STONHAM HOUSING ASSOCIATION LTD.
Children and Adult Services,Childrens Services,Supplies and Services,384638,Miscellaneous Expenses,10-Aug-2015,3008638-17/07/2015,"1,430.00",THE CHEESY WAFFLES PROJECT.
Children and Adult Services,Childrens Services,Supplies and Services,384638,Miscellaneous Expenses,10-Aug-2015,3008638-17/7/15,"1,440.00",THE CHEESY WAFFLES PROJECT.
Children and Adult Services,Childrens Services,Supplies and Services,384638,Miscellaneous Expenses,10-Aug-2015,3008638-2/96,"4,000.00",THE CHEESY WAFFLES PROJECT.
Children and Adult Services,Commissioning inc Supporting People,Third Party Payments,478111,Purchase of Care,10-Aug-2015,3008332-101,"1,280.00",B & J DUNCAN.
Children and Adult Services,Commissioning inc Supporting People,Supplies and Services,338066,Services,10-Aug-2015,3008385-SINMIS5927,"1,500.00",CROWN COMMERCIAL SERVICE.
Children and Adult Services,Commissioning inc Supporting People,Third Party Payments,440151,Other Third Party Payments,10-Aug-2015,3008506-36812,"547,619.17",MEDEQUIP ASSISTIVE TECHNOLOGY LTD.
Dedicated Schools Grant,Dedicated Schools Grant,Fees,901002,Professional fees,10-Aug-2015,3008328-15015243,"5,346.67",ATKINS GLOBAL.
Dedicated Schools Grant,Dedicated Schools Grant,Supplies and Services,304259,Equipment and Materials,10-Aug-2015,3008462-00121940,"2,026.00",JENX LTD.
Dedicated Schools Grant,Dedicated Schools Grant,Transport,230010,Contract Hire,10-Aug-2015,3008479-128N/49,636.00,L & R PRIVATE HIRE.
Dedicated Schools Grant,Dedicated Schools Grant,Third Party Payments,440080,Other Third Party Payments,10-Aug-2015,3008551-0000021926,"1,056.04",NORTH EAST AUTISM SOCIETY.
Dedicated Schools Grant,Dedicated Schools Grant,Third Party Payments,440080,Other Third Party Payments,10-Aug-2015,3008551-0000021949,"1,611.03",NORTH EAST AUTISM SOCIETY.
Dedicated Schools Grant,Dedicated Schools Grant,Third Party Payments,440080,Other Third Party Payments,10-Aug-2015,3008552-0000021950,"1,611.03",NORTH EAST AUTISM SOCIETY.
Dedicated Schools Grant,Dedicated Schools Grant,Third Party Payments,440080,Other Third Party Payments,10-Aug-2015,3008617-SLINV/00001942,"1,276.62",SOUTH TYNESIDE COLLEGE.
Children and Adult Services,Education,Transport,230008,Contract Hire,10-Aug-2015,3008303-0258,741.00,ABC & OUSTON CABS.
Children and Adult Services,Education,Transport,230008,Contract Hire,10-Aug-2015,3008303-0261,"1,896.00",ABC & OUSTON CABS.
Children and Adult Services,Education,Transport,230008,Contract Hire,10-Aug-2015,3008303-0262,"1,207.31",ABC & OUSTON CABS.
Children and Adult Services,Education,Transport,230007,Contract Hire,10-Aug-2015,3008317-TX1485,"6,210.08",ALSTON ROAD GARAGE.
Children and Adult Services,Education,Transport,230007,Contract Hire,10-Aug-2015,3008317-TX1486,"6,571.11",ALSTON ROAD GARAGE.
Children and Adult Services,Education,Transport,230007,Contract Hire,10-Aug-2015,3008317-TX1487,"2,899.67",ALSTON ROAD GARAGE.
Children and Adult Services,Education,Third Party Payments,430100,Rendered by Private Contractors,10-Aug-2015,3008321-4,"1,365.00",ANDREW LARMOUTH.
Children and Adult Services,Education,Transport,230008,Contract Hire,10-Aug-2015,3008329-DCC2JULY15,"1,818.08",ATLAS TAXIS BISHOP AUCKLAND.
Children and Adult Services,Education,Transport,230007,Contract Hire,10-Aug-2015,3008336-DJ42260715,"2,894.64",BELL BROTHERS TRAVEL.
Children and Adult Services,Education,Supplies and Services,384199,Miscellaneous Expenses,10-Aug-2015,3008370-017,885.00,CLICT.
Children and Adult Services,Education,Transport,230008,Contract Hire,10-Aug-2015,3008393-2553,600.00,DAVES MINIBUSES.
Children and Adult Services,Education,Transport,230008,Contract Hire,10-Aug-2015,3008393-2561,"1,110.59",DAVES MINIBUSES.
Children and Adult Services,Education,Transport,230008,Contract Hire,10-Aug-2015,3008393-2562,555.23,DAVES MINIBUSES.
Children and Adult Services,Education,Transport,230008,Contract Hire,10-Aug-2015,3008393-2563,993.07,DAVES MINIBUSES.
Children and Adult Services,Education,Transport,230008,Contract Hire,10-Aug-2015,3008393-2565,"1,300.00",DAVES MINIBUSES.
Children and Adult Services,Education,Transport,230008,Contract Hire,10-Aug-2015,3008393-2566,640.00,DAVES MINIBUSES.
Children and Adult Services,Education,Transport,230008,Contract Hire,10-Aug-2015,3008394-86,"1,625.00",DAVES TAXIS.
Children and Adult Services,Education,Transfer Payments,510026,School Children,10-Aug-2015,3008396-DCATCHJULY15W,"2,223.00",DAYPARK LTD T/A YELLOW WELLIES.
Children and Adult Services,Education,Transport,230007,Contract Hire,10-Aug-2015,3008429-17561,"1,824.16",GARNETTS LTD (COACHES).
Children and Adult Services,Education,Transport,230007,Contract Hire,10-Aug-2015,3008429-17567,"2,077.53",GARNETTS LTD (COACHES).
Children and Adult Services,Education,Transport,230007,Contract Hire,10-Aug-2015,3008429-17568,"2,340.00",GARNETTS LTD (COACHES).
Children and Adult Services,Education,Transport,230007,Contract Hire,10-Aug-2015,3008429-17638,"5,980.03",GARNETTS LTD (COACHES).
Children and Adult Services,Education,Transport,230007,Contract Hire,10-Aug-2015,3008449-F1312,"1,287.00",HUNTER BROTHERS (TANTOBIE) LTD.
Children and Adult Services,Education,Transport,230007,Contract Hire,10-Aug-2015,3008449-F1313,500.24,HUNTER BROTHERS (TANTOBIE) LTD.
Children and Adult Services,Education,Transport,230007,Contract Hire,10-Aug-2015,3008449-F1314,"1,038.70",HUNTER BROTHERS (TANTOBIE) LTD.
Children and Adult Services,Education,Supplies and Services,338089,Services,10-Aug-2015,3008463-1560,"2,254.40",JFJ TRAINING LTD.
Children and Adult Services,Education,Transport,230007,Contract Hire,10-Aug-2015,3008482-242,"3,584.85",LEE`S COACHES LTD.
Children and Adult Services,Education,Supplies and Services,338094,Services,10-Aug-2015,3008483-1003998,975.00,LEISUREWORKS.
Children and Adult Services,Education,Transport,230008,Contract Hire,10-Aug-2015,3008492-25,975.00,M BEHAN T/A M & M`S TAXIS.
Children and Adult Services,Education,Transport,230007,Contract Hire,10-Aug-2015,3008492-26,780.00,M BEHAN T/A M & M`S TAXIS.
Children and Adult Services,Education,Transport,230008,Contract Hire,10-Aug-2015,3008493-85,777.00,M BUTCHER T/A KIDDI CABS.
Children and Adult Services,Education,Transport,230008,Contract Hire,10-Aug-2015,3008507-07/2015,650.00,MICHAEL PUNTON.
Children and Adult Services,Education,Supplies and Services,384199,Miscellaneous Expenses,10-Aug-2015,3008510-23204,"2,000.00",MID NITE EXPRESS.
Children and Adult Services,Education,Transport,230008,Contract Hire,10-Aug-2015,3008527-90-I3763,875.42,MR GS ANDERSON.
Children and Adult Services,Education,Transport,230008,Contract Hire,10-Aug-2015,3008528-DSR/07/15,780.00,MR J AGAR T/A PARK TAXIS.
Children and Adult Services,Education,Transport,230008,Contract Hire,10-Aug-2015,3008530-269,910.00,MR LEE ANDERSON.
Children and Adult Services,Education,Supplies and Services,338027,Services,10-Aug-2015,3008535-CCOT0718,738.40,MRS CHRISTINE COTTAM.
Children and Adult Services,Education,Transport,230007,Contract Hire,10-Aug-2015,3008549-3811,"4,764.12",NIGHTINGALE COACHES.
Children and Adult Services,Education,Transport,230007,Contract Hire,10-Aug-2015,3008561-6172,"1,595.00",OVERLANDER LTD.
Children and Adult Services,Education,Supplies and Services,312009,Newspapers Books and Periodicals,10-Aug-2015,3008573-1547719,810.23,PETERS LTD.
Children and Adult Services,Education,Supplies and Services,312009,Newspapers Books and Periodicals,10-Aug-2015,3008573-1547720,"1,025.65",PETERS LTD.
Children and Adult Services,Education,Transport,230007,Contract Hire,10-Aug-2015,3008581-547,"4,680.00",PYGALL COACH HIRE.
Children and Adult Services,Education,Transport,230007,Contract Hire,10-Aug-2015,3008581-548,"1,960.01",PYGALL COACH HIRE.
Children and Adult Services,Education,Transport,230007,Contract Hire,10-Aug-2015,3008581-549,"1,633.32",PYGALL COACH HIRE.
Children and Adult Services,Education,Transport,230007,Contract Hire,10-Aug-2015,3008581-550,"1,540.50",PYGALL COACH HIRE.
Children and Adult Services,Education,Construction Work,908105,Construction work,10-Aug-2015,3008614-2014-B-11174,500.00,SMITH RODDAM & CO.
Children and Adult Services,Education,Supplies and Services,338089,Services,10-Aug-2015,3008641-5107610,"1,309.14",THE WROXHAM SCHOOL.
Children and Adult Services,Education,Transfer Payments,510026,School Children,10-Aug-2015,3008645-SI-583,702.00,TM NURSERY ENTERPRISES LTD T/A JACK IN THE BOX DAYCARE.
Children and Adult Services,Education,Transfer Payments,510026,School Children,10-Aug-2015,3008645-SI-584,936.00,TM NURSERY ENTERPRISES LTD T/A JACK IN THE BOX DAYCARE.
Children and Adult Services,Education,Transfer Payments,510026,School Children,10-Aug-2015,3008645-SI-585,"1,040.00",TM NURSERY ENTERPRISES LTD T/A JACK IN THE BOX DAYCARE.
Children and Adult Services,Education,Transfer Payments,510026,School Children,10-Aug-2015,3008645-SI-586,936.00,TM NURSERY ENTERPRISES LTD T/A JACK IN THE BOX DAYCARE.
Children and Adult Services,Education,Third Party Payments,440999,Other Third Party Payments,10-Aug-2015,3008671-NV15-525,"3,161.60",YMS TRAINING LTD.
Children and Adult Services,Education,Third Party Payments,440999,Other Third Party Payments,10-Aug-2015,3008671-NV15-526,"1,164.80",YMS TRAINING LTD.
Children and Adult Services,Education,Third Party Payments,440999,Other Third Party Payments,10-Aug-2015,3008671-NV15-528,"5,184.00",YMS TRAINING LTD.
Children and Adult Services,Head of Adults,Transport,230005,Contract Hire,10-Aug-2015,3008297-EA220766,"1,840.00",A MURRAY TRAVEL.
Children and Adult Services,Head of Adults,Transport,230005,Contract Hire,10-Aug-2015,3008300-G10/DC,783.20,AABAT TAXIS.
Children and Adult Services,Head of Adults,Transport,230005,Contract Hire,10-Aug-2015,3008300-G15/LC,897.00,AABAT TAXIS.
Children and Adult Services,Head of Adults,Transport,230005,Contract Hire,10-Aug-2015,3008300-G20/ST,"1,377.00",AABAT TAXIS.
Children and Adult Services,Head of Adults,Transport,230005,Contract Hire,10-Aug-2015,3008306-164,540.00,ACE TAXIS..
Children and Adult Services,Head of Adults,Third Party Payments,470101,Purchase of Care,10-Aug-2015,3008335-241500049,"4,417.00",BARNARDO SERVICES LTD.
Children and Adult Services,Head of Adults,Transport,230005,Contract Hire,10-Aug-2015,3008344-2032,"1,064.00",BOBBY DOVE.
Children and Adult Services,Head of Adults,Transport,230005,Contract Hire,10-Aug-2015,3008351-PSO108,506.00,BURNDALE PRIVATE HIRE.
Children and Adult Services,Head of Adults,Supplies and Services,338367,Services,10-Aug-2015,3008358-25835,675.00,CARE ABILITY.
Children and Adult Services,Head of Adults,Transport,230005,Contract Hire,10-Aug-2015,3008376-619,784.00,CONNORS MINI BUSES.
Children and Adult Services,Head of Adults,Transport,230005,Contract Hire,10-Aug-2015,3008376-620,"1,150.00",CONNORS MINI BUSES.
Children and Adult Services,Head of Adults,Transport,230005,Contract Hire,10-Aug-2015,3008432-WV091/028,"1,360.00",GMC TAXIS NORTH EAST.
Children and Adult Services,Head of Adults,Premises,155003,Insurance of Premises,10-Aug-2015,3008440-3200-204248,696.37,GVA GRIMLEY LLP.
Children and Adult Services,Head of Adults,Transport,230005,Contract Hire,10-Aug-2015,3008461-764,560.00,JDS PRIVATE HIRE DURHAM.
Children and Adult Services,Head of Adults,Transport,230005,Contract Hire,10-Aug-2015,3008477-020715,"1,725.00",KEVIN EDMUNDSON.
Children and Adult Services,Head of Adults,Transport,230005,Contract Hire,10-Aug-2015,3008495-JUL-15A,"1,162.00",MA BODDY.
Children and Adult Services,Head of Adults,Supplies and Services,384199,Miscellaneous Expenses,10-Aug-2015,3008496-3264,553.50,MACHINERY SERVICES NORTH EAST (MSNE) LTD.
Children and Adult Services,Head of Adults,Transport,230005,Contract Hire,10-Aug-2015,3008499-590715,845.00,MARK MUSGROVE T/A MARKS TAXIS.
Children and Adult Services,Head of Adults,Transport,230005,Contract Hire,10-Aug-2015,3008500-CLS058/11,540.00,MARTIN`S TAXIS.
Children and Adult Services,Head of Adults,Transport,230005,Contract Hire,10-Aug-2015,3008504-MCD8807,"1,252.00",MCDONALD TRAVEL.
Children and Adult Services,Head of Adults,Transport,230005,Contract Hire,10-Aug-2015,3008515-571,"1,927.00",MOLLYS TAXIS.
Children and Adult Services,Head of Adults,Transport,230005,Contract Hire,10-Aug-2015,3008515-572,"1,430.00",MOLLYS TAXIS.
Children and Adult Services,Head of Adults,Transport,230005,Contract Hire,10-Aug-2015,3008520-EDB07-15,741.00,MR CT WALKER T/A COLIN`S TAXIS.
Children and Adult Services,Head of Adults,Transport,230005,Contract Hire,10-Aug-2015,3008526-66174,"1,886.00",MR GN ROBBINS T/A GNR MINIBUS HIRE.
Children and Adult Services,Head of Adults,Transport,230005,Contract Hire,10-Aug-2015,3008526-66175,"1,375.40",MR GN ROBBINS T/A GNR MINIBUS HIRE.
Children and Adult Services,Head of Adults,Transport,230005,Contract Hire,10-Aug-2015,3008528-DSD/07/14,866.00,MR J AGAR T/A PARK TAXIS.
Children and Adult Services,Head of Adults,Income,720033,Fees and Charges,10-Aug-2015,3008552-0000019101,693.60,NORTH EAST AUTISM SOCIETY.
Children and Adult Services,Head of Adults,Transport,230005,Contract Hire,10-Aug-2015,3008579-150710,663.00,PRATTS TAXIS.
Children and Adult Services,Head of Adults,Transport,230005,Contract Hire,10-Aug-2015,3008579-150711,686.00,PRATTS TAXIS.
Children and Adult Services,Head of Adults,Transport,230005,Contract Hire,10-Aug-2015,3008580-W13,540.00,PRESTYS HACKNEY & PRIVATE HIRE TAXIS.
Children and Adult Services,Head of Adults,Transport,230005,Contract Hire,10-Aug-2015,3008623-DCC075/SLD005,"1,817.00",STEPHEN COXON.
Children and Adult Services,Head of Adults,Transport,230005,Contract Hire,10-Aug-2015,3008650-67.14JUNE15,600.00,TRANSPORT.ADVENTURE.XI.
Children and Adult Services,Head of Adults,Transport,230005,Contract Hire,10-Aug-2015,3008650-978,978.00,TRANSPORT.ADVENTURE.XI.
Children and Adult Services,Head of Adults,Transport,230005,Contract Hire,10-Aug-2015,3008650-DM142/66.14,"1,358.20",TRANSPORT.ADVENTURE.XI.
Children and Adult Services,Head of Adults,Transport,230005,Contract Hire,10-Aug-2015,3008662-5296,"3,744.60",WEARDALE PRIVATE HIRE.
Children and Adult Services,Head of Adults,Transport,230005,Contract Hire,10-Aug-2015,3008662-5300,"1,598.50",WEARDALE PRIVATE HIRE.
Children and Adult Services,Planning & Service Strategy,Supplies and Services,338091,Services,10-Aug-2015,3008391-3027050,"12,800.00",DAC BEACHCROFT CLAIMS LTD.
Children and Adult Services,Public Health,Third Party Payments,460803,Contract Payments,10-Aug-2015,3008485-0000006800,"466,357.75",LIFELINE PROJECT LTD.
Children and Adult Services,Public Health,Supplies and Services,384155,Miscellaneous Expenses,10-Aug-2015,3008548-1000045175,"61,007.29",NHS BUSINESS SERVICES AUTHORITY.
Children and Adult Services,Public Health,Third Party Payments,460803,Contract Payments,10-Aug-2015,3008565-D180715,"2,000.00",PAT CHRISTMAS.
Children and Adult Services,Public Health,Third Party Payments,460802,Contract Payments,10-Aug-2015,3008569-A83033/Q2&3-2014/15,"2,991.92",PELTON & FELLROSE MEDICAL GROUP.
Neighbourhood Services,Technical Services,Employees,040149,Recruitment Instruction and Training,10-Aug-2015,3008295-189351,"1,790.00",(PASS) PORTABLE APPLIANCE SAFETY SERVICES LTD.
Neighbourhood Services,Direct Services,Supplies and Services,304259,Equipment and Materials,10-Aug-2015,3008296-2168,"3,189.75",A & J GUTHRIE.
Neighbourhood Services,Technical Services,Employees,080025,Agency Staff,10-Aug-2015,3008308-28225183,"7,529.23",AECOM LTD.
Neighbourhood Services,Technical Services,Supplies and Services,304221,Equipment and Materials,10-Aug-2015,3008309-21755626,"1,601.80",AGGREGATE INDUSTRIES UK LTD.
Neighbourhood Services,Technical Services,Supplies and Services,304221,Equipment and Materials,10-Aug-2015,3008309-21762670,579.50,AGGREGATE INDUSTRIES UK LTD.
Neighbourhood Services,Technical Services,Supplies and Services,304221,Equipment and Materials,10-Aug-2015,3008316-11877,680.00,ALSTON NATURAL STONE LTD.
Neighbourhood Services,Technical Services,Creditors,952029,Creditor-returnable bonds,10-Aug-2015,3008326,"4,009.64",ASHCOURT CONTRACTS LTD.
Neighbourhood Services,Projects and Business services,Fees,901002,Professional fees,10-Aug-2015,3008328-15015203,"15,505.00",ATKINS GLOBAL.
Neighbourhood Services,Technical Services,Supplies and Services,338027,Services,10-Aug-2015,3008328-15015207,"1,257.00",ATKINS GLOBAL.
Neighbourhood Services,Technical Services,Supplies and Services,338027,Services,10-Aug-2015,3008328-15015210,"1,041.58",ATKINS GLOBAL.
Neighbourhood Services,Direct Services,Fees,901002,Professional fees,10-Aug-2015,3008328-15015244,"6,041.35",ATKINS GLOBAL.
Neighbourhood Services,Culture & Sport,Supplies and Services,384700,Miscellaneous Expenses,10-Aug-2015,3008334,800.00,BARNARD CASTLE RUGBY UNION FOOTBALL CLUB.
Neighbourhood Services,Technical Services,Stock,926900,Stock in hand-Inventory system,10-Aug-2015,3008347-8363307,"1,083.70",BOLD NU TEC INSULATION PRODUCTS & SERVICES LTD.
Neighbourhood Services,Direct Services,Transport,230005,Contract Hire,10-Aug-2015,3008352-8122161,597.84,BURNT TREE GROUP LTD.
Neighbourhood Services,Technical Services,Premises,150015,Apportioned Exps of Operational Blds,10-Aug-2015,3008367-23950,944.61,CLEE HILL PLANT LTD.
Neighbourhood Services,Technical Services,Premises,150015,Apportioned Exps of Operational Blds,10-Aug-2015,3008367-23952,944.61,CLEE HILL PLANT LTD.
Neighbourhood Services,Technical Services,Premises,150015,Apportioned Exps of Operational Blds,10-Aug-2015,3008367-23953,944.61,CLEE HILL PLANT LTD.
Neighbourhood Services,Technical Services,Premises,150015,Apportioned Exps of Operational Blds,10-Aug-2015,3008367-23954,944.61,CLEE HILL PLANT LTD.
Neighbourhood Services,Technical Services,Premises,150015,Apportioned Exps of Operational Blds,10-Aug-2015,3008367-23955,903.54,CLEE HILL PLANT LTD.
Neighbourhood Services,Technical Services,Stock,926004,Stock,10-Aug-2015,3008368-90136448,"34,779.96",CLEVELAND POTASH LTD.
Neighbourhood Services,Culture & Sport,Supplies and Services,384700,Miscellaneous Expenses,10-Aug-2015,3008377,"2,680.00",CONSETT & DISTRICT RUGBY FOOTBALL CLUB.
Neighbourhood Services,Direct Services,Supplies and Services,304221,Equipment and Materials,10-Aug-2015,3008379-94341,"4,324.53",CORMETON ELECTRONICS LTD.
Neighbourhood Services,Technical Services,Supplies and Services,304999,Equipment and Materials,10-Aug-2015,3008380-80622,530.58,CORPORATE COMPUTER SUPPLIES LTD.
Neighbourhood Services,Direct Services,Employees,080025,Agency Staff,10-Aug-2015,3008398-327077,"168,315.26",DE POEL MANAGED SERVICES LTD.
Neighbourhood Services,Direct Services,Third Party Payments,430100,Rendered by Private Contractors,10-Aug-2015,3008402-241,"3,774.20",DPC SCREEDING LTD.
Neighbourhood Services,Culture & Sport,Third Party Payments,430100,Rendered by Private Contractors,10-Aug-2015,3008403-16/7/15,"1,200.00",REDACTED - PAYMENT TO INDIVIDUAL
Neighbourhood Services,Technical Services,Construction Work,908112,Capital - Drainage,10-Aug-2015,3008405-5248,"4,205.00",DUNELM GEOTECHNICAL & ENVIRONMENTAL LTD.
Neighbourhood Services,Culture & Sport,Supplies and Services,338099,Services,10-Aug-2015,3008408-107,"4,000.00",DURHAM SCENIC WORKSHOPS LTD.
Neighbourhood Services,Culture & Sport,Supplies and Services,384199,Miscellaneous Expenses,10-Aug-2015,3008423-I-DCCD201507,"1,000.00",FLO-CULTURE (UK) LTD.
Neighbourhood Services,Technical Services,Employees,040149,Recruitment Instruction and Training,10-Aug-2015,3008427-8248361,"2,659.10",FREIGHT TRANSPORT ASSOCIATION.
Neighbourhood Services,Technical Services,Stock,926900,Stock in hand-Inventory system,10-Aug-2015,3008437-06/564223,"1,091.35",GREENHAM TRADING LTD.
Neighbourhood Services,Direct Services,Transport,215005,Running Costs of Vehicles,10-Aug-2015,3008442-543823,"16,425.91",HARVEST ENERGY LTD.
Neighbourhood Services,Direct Services,Transport,215005,Running Costs of Vehicles,10-Aug-2015,3008442-544243,"4,139.76",HARVEST ENERGY LTD.
Neighbourhood Services,Direct Services,Transport,215005,Running Costs of Vehicles,10-Aug-2015,3008442-544245,"16,452.38",HARVEST ENERGY LTD.
Neighbourhood Services,Culture & Sport,Supplies and Services,384199,Miscellaneous Expenses,10-Aug-2015,3008444-9254,562.00,HI LIGHTS THEATRE SERVICES.
Neighbourhood Services,Technical Services,Construction Work,908108,Capital - Surface Dressing,10-Aug-2015,3008457-11401,"2,164.01",JACK COUPE & SONS LTD T/A COUPE LINE.
Neighbourhood Services,Technical Services,Construction Work,908108,Capital - Surface Dressing,10-Aug-2015,3008457-11403,"1,135.02",JACK COUPE & SONS LTD T/A COUPE LINE.
Neighbourhood Services,Technical Services,Construction Work,908108,Capital - Surface Dressing,10-Aug-2015,3008457-11404,842.49,JACK COUPE & SONS LTD T/A COUPE LINE.
Neighbourhood Services,Technical Services,Construction Work,908108,Capital - Surface Dressing,10-Aug-2015,3008457-9076,"2,252.82",JACK COUPE & SONS LTD T/A COUPE LINE.
Neighbourhood Services,Technical Services,Supplies and Services,338027,Services,10-Aug-2015,3008459-B2107200-001,"9,912.21",JACOBS UK LTD.
Neighbourhood Services,Technical Services,Supplies and Services,338027,Services,10-Aug-2015,3008459-B2108600-001,"29,064.00",JACOBS UK LTD.
Neighbourhood Services,Technical Services,Employees,080025,Agency Staff,10-Aug-2015,3008459-B225H002-083,"3,220.81",JACOBS UK LTD.
Neighbourhood Services,Technical Services,Employees,080025,Agency Staff,10-Aug-2015,3008459-B225H003-023,"1,176.26",JACOBS UK LTD.
Neighbourhood Services,Technical Services,Employees,080025,Agency Staff,10-Aug-2015,3008459-B225H003-024,"1,884.20",JACOBS UK LTD.
Neighbourhood Services,Technical Services,Employees,080025,Agency Staff,10-Aug-2015,3008459-B225H003-025,"1,992.54",JACOBS UK LTD.
Neighbourhood Services,Technical Services,Employees,080025,Agency Staff,10-Aug-2015,3008459-B225H003-026,"1,139.19",JACOBS UK LTD.
Neighbourhood Services,Technical Services,Supplies and Services,338027,Services,10-Aug-2015,3008459-B225H005-001,"3,423.72",JACOBS UK LTD.
Neighbourhood Services,Technical Services,Supplies and Services,338027,Services,10-Aug-2015,3008459-B225H005-002,820.99,JACOBS UK LTD.
Neighbourhood Services,Technical Services,Supplies and Services,304221,Equipment and Materials,10-Aug-2015,3008464-145214,"1,149.75",JG PAXTON & SONS LTD.
Neighbourhood Services,Technical Services,Stock,926900,Stock in hand-Inventory system,10-Aug-2015,3008468-N1028492,"39,333.12",JOHN MACLEAN & SONS ELECTRICAL (DINGWALL) LTD.
Neighbourhood Services,Technical Services,Stock,926900,Stock in hand-Inventory system,10-Aug-2015,3008468-NI028512,"10,038.14",JOHN MACLEAN & SONS ELECTRICAL (DINGWALL) LTD.
Neighbourhood Services,Technical Services,Third Party Payments,430100,Rendered by Private Contractors,10-Aug-2015,3008471-201547,"3,493.44",JOHN WADE (HAULAGE) LTD.
Neighbourhood Services,Technical Services,Supplies and Services,304221,Equipment and Materials,10-Aug-2015,3008475-BII167609,769.78,JT DOVE LTD.
Neighbourhood Services,Technical Services,Supplies and Services,304221,Equipment and Materials,10-Aug-2015,3008475-CNI22561/D,"1,474.00",JT DOVE LTD.
Neighbourhood Services,Direct Services,Supplies and Services,304221,Equipment and Materials,10-Aug-2015,3008475-CNI22570/D,"7,233.80",JT DOVE LTD.
Neighbourhood Services,Technical Services,Supplies and Services,304221,Equipment and Materials,10-Aug-2015,3008475-CNI22573/D,"1,104.00",JT DOVE LTD.
Neighbourhood Services,Technical Services,Construction Work,908108,Capital - Surface Dressing,10-Aug-2015,3008478-15459,"1,128,125.37",KIELY BROS LTD.
Neighbourhood Services,Technical Services,Stock,926900,Stock in hand-Inventory system,10-Aug-2015,3008501-226193,"12,518.40",MARWOOD ELECTRICAL CO LTD.
Neighbourhood Services,Technical Services,Third Party Payments,430100,Rendered by Private Contractors,10-Aug-2015,3008540-NC4/C395/BW,"9,215.58",NEDCO CONTRACTS (NE) LTD.
Neighbourhood Services,Technical Services,Third Party Payments,430100,Rendered by Private Contractors,10-Aug-2015,3008540-NC5/C395/BW,546.63,NEDCO CONTRACTS (NE) LTD.
Neighbourhood Services,Technical Services,Third Party Payments,430100,Rendered by Private Contractors,10-Aug-2015,3008540-NC6/C395/BW,546.63,NEDCO CONTRACTS (NE) LTD.
Neighbourhood Services,Technical Services,Other Expenses,914002,Capital - Advertisments,10-Aug-2015,3008546-11863666,606.28,NEWSQUEST (YORKSHIRE & NORTH EAST) LTD.
Neighbourhood Services,Direct Services,Supplies and Services,384199,Miscellaneous Expenses,10-Aug-2015,3008554-10983,550.00,NORTH EAST REGIONAL EMPLOYERS ORGANISATION.
Neighbourhood Services,Technical Services,Stock,926900,Stock in hand-Inventory system,10-Aug-2015,3008556-1659888,978.00,NORTHERN TOOLS & ACCESSORIES.
Neighbourhood Services,Technical Services,Stock,926900,Stock in hand-Inventory system,10-Aug-2015,3008556-1661902,658.16,NORTHERN TOOLS & ACCESSORIES.
Neighbourhood Services,Direct Services,Supplies and Services,304221,Equipment and Materials,10-Aug-2015,3008563-BR526102,875.60,PARK ELECTRICAL DISTRIBUTORS LTD.
Neighbourhood Services,Direct Services,Supplies and Services,304221,Equipment and Materials,10-Aug-2015,3008563-BR526103,765.78,PARK ELECTRICAL DISTRIBUTORS LTD.
Neighbourhood Services,Technical Services,Stock,926900,Stock in hand-Inventory system,10-Aug-2015,3008563-XL148167,"2,547.50",PARK ELECTRICAL DISTRIBUTORS LTD.
Neighbourhood Services,Technical Services,Stock,926900,Stock in hand-Inventory system,10-Aug-2015,3008563-XL148222,758.40,PARK ELECTRICAL DISTRIBUTORS LTD.
Neighbourhood Services,Culture & Sport,Supplies and Services,384700,Miscellaneous Expenses,10-Aug-2015,3008570,"1,800.00",PENTATHLON GB NORTH.
Neighbourhood Services,Technical Services,Supplies and Services,304221,Equipment and Materials,10-Aug-2015,3008599-SI4780,"2,204.25",SALIX RIVER & WETLAND SERVICES LTD.
Neighbourhood Services,Technical Services,Third Party Payments,430100,Rendered by Private Contractors,10-Aug-2015,3008603-INV-03326,755.00,SCOTT`S ACCESS SERVICES NE LTD.
Neighbourhood Services,Technical Services,Employees,040149,Recruitment Instruction and Training,10-Aug-2015,3008604-1828,"1,012.40",SEAHAM SAFETY SERVICES LTD.
Neighbourhood Services,Technical Services,Third Party Payments,430100,Rendered by Private Contractors,10-Aug-2015,3008605-SIL/D262/2551,"2,840.00",SEALANE INSHORE LTD.
Neighbourhood Services,Direct Services,Supplies and Services,304221,Equipment and Materials,10-Aug-2015,3008607-CD970242688,"4,150.00",SHERRIFF AMENITY.
Neighbourhood Services,Direct Services,Supplies and Services,304259,Equipment and Materials,10-Aug-2015,3008607-CD970243239,"1,331.20",SHERRIFF AMENITY.
Neighbourhood Services,Technical Services,Stock,926900,Stock in hand-Inventory system,10-Aug-2015,3008610-22315,"1,415.80",SIGNPOST SOLUTIONS LTD.
Neighbourhood Services,Projects and Business services,Third Party Payments,430114,Rendered by Private Contractors,10-Aug-2015,3008613-29817629,"4,954.20",SITA UK LTD.
Neighbourhood Services,Technical Services,Stock,926900,Stock in hand-Inventory system,10-Aug-2015,3008615-187074,"2,088.00",SNAPFAST.
Neighbourhood Services,EnvironmentHealth & Consumer Protection,Supplies and Services,338027,Services,10-Aug-2015,3008624-744,910.00,STM ENVIRONMENTAL LTD.
Neighbourhood Services,Direct Services,Supplies and Services,304221,Equipment and Materials,10-Aug-2015,3008630-1663178,625.94,T CROSSLING & CO LTD.
Neighbourhood Services,Technical Services,Supplies and Services,304221,Equipment and Materials,10-Aug-2015,3008632-9032994734,867.00,TARMAC TRADING LTD.
Neighbourhood Services,Technical Services,Stock,926900,Stock in hand-Inventory system,10-Aug-2015,3008642-N/IN151104,809.64,THOMAS OWEN & SONS (NEWCASTLE) LTD.
Neighbourhood Services,Technical Services,Supplies and Services,342215,Computers and Communications,10-Aug-2015,3008649-27713,870.20,TRACKYOU LTD.
Neighbourhood Services,Redundant Direct Services,Supplies and Services,342215,Computers and Communications,10-Aug-2015,3008649-27716,916.00,TRACKYOU LTD.
Neighbourhood Services,Technical Services,Supplies and Services,342215,Computers and Communications,10-Aug-2015,3008649-27718,645.28,TRACKYOU LTD.
Neighbourhood Services,Direct Services,Supplies and Services,332047,Printing Stationery and Gen Off Exps,10-Aug-2015,3008656-00211/2015,"1,770.00",VIPA UK LTD.
Neighbourhood Services,Technical Services,Premises,150015,Apportioned Exps of Operational Blds,10-Aug-2015,3008663-435233,655.27,WERNICK HIRE LTD.
Neighbourhood Services,Technical Services,Premises,150015,Apportioned Exps of Operational Blds,10-Aug-2015,3008663-435237,655.27,WERNICK HIRE LTD.
Neighbourhood Services,Direct Services,Supplies and Services,304221,Equipment and Materials,10-Aug-2015,3008664-0000223966,"1,014.22",WESSEX LIFT CO LTD.
Neighbourhood Services,Projects and Business services,Third Party Payments,430116,Rendered by Private Contractors,10-Aug-2015,3008668-24366910,"1,298.00",WOLSELEY UK LTD.
Neighbourhood Services,Direct Services,Supplies and Services,304221,Equipment and Materials,10-Aug-2015,3008668-24366913,746.16,WOLSELEY UK LTD.
Neighbourhood Services,Direct Services,Supplies and Services,304221,Equipment and Materials,10-Aug-2015,3008670-041IN22821,"14,504.29",YESSS ELECTRICAL.
Regeneration & Economic Development,Economic Development and Housing,Cap Exp on Grants & Other Financial Assistance (REFCUS),918401,Capital grants,10-Aug-2015,3008307-RED-08-2015-040,"5,640.00",ACORN PROPERTY RENTALS UK.
Regeneration & Economic Development,Economic Development and Housing,Supplies and Services,384700,Miscellaneous Expenses,10-Aug-2015,3008318-RED-08-2015-037,"1,000.00",ALUN ARMSTRONG T/A AA SPORTS CENTRE CIC.
Regeneration & Economic Development,Economic Development and Housing,Premises,108099,Service Repairs and Maintenance,10-Aug-2015,3008320-T281,"4,958.93",AMR (NE) LTD.
Regeneration & Economic Development,Spatial Policy Planning Assets & Environment,Supplies and Services,384899,Miscellaneous Expenses,10-Aug-2015,3008410-284132,"7,423.00",DURHAM UNIVERSITY.
Regeneration & Economic Development,Transport and Contracted Services,Third Party Payments,430100,Rendered by Private Contractors,10-Aug-2015,3008446-CONCFARES-JUL15,"1,062.43",HODGSONS COACH OPERATORS LTD.
Regeneration & Economic Development,Transport and Contracted Services,Third Party Payments,430100,Rendered by Private Contractors,10-Aug-2015,3008467-CONCFARES-JUL15,"1,947.14",JOHN JAMES BRUNSKILL.
Regeneration & Economic Development,Economic Development and Housing,Cap Exp on Grants & Other Financial Assistance (REFCUS),918401,Capital grants,10-Aug-2015,3008473-RED-08-2015-038,"1,200.00",JON BEST ELECTRICAL SERVICES.
Regeneration & Economic Development,Economic Development and Housing,Cap Exp on Grants & Other Financial Assistance (REFCUS),918401,Capital grants,10-Aug-2015,3008503-RED-08-2015-042,"3,895.00",MC DEVELOPMENTS.
Regeneration & Economic Development,Spatial Policy Planning Assets & Environment,Supplies and Services,336005,Advertising,10-Aug-2015,3008546-11873791,"1,159.05",NEWSQUEST (YORKSHIRE & NORTH EAST) LTD.
Regeneration & Economic Development,Transport and Contracted Services,Third Party Payments,430100,Rendered by Private Contractors,10-Aug-2015,3008555-CONCFARES,"7,307.00",NORTHERN RAIL LTD.
Regeneration & Economic Development,Economic Development and Housing,Cap Exp on Grants & Other Financial Assistance (REFCUS),918401,Capital grants,10-Aug-2015,3008568-RED-08-2015-045,"1,414.00",PEART ACCESS RAMPS.
Regeneration & Economic Development,Economic Development and Housing,Cap Exp on Grants & Other Financial Assistance (REFCUS),918401,Capital grants,10-Aug-2015,3008571-RED-08-2015-044,"3,450.00",PETER JORDAN.
Regeneration & Economic Development,Economic Development and Housing,Cap Exp on Grants & Other Financial Assistance (REFCUS),918401,Capital grants,10-Aug-2015,3008571-RED-08-2015-046,"3,205.00",PETER JORDAN.
Regeneration & Economic Development,Transport and Contracted Services,Third Party Payments,430100,Rendered by Private Contractors,10-Aug-2015,3008601-CONCFARES-JUL15,"7,748.69",SB TRAVEL.
Regeneration & Economic Development,Transport and Contracted Services,Third Party Payments,430100,Rendered by Private Contractors,10-Aug-2015,3008602-CONCFARES-JUL15,"18,289.75",SCARLET BAND BUS & COACH LTD.
Regeneration & Economic Development,Economic Development and Housing,Vehicles Equipment Furniture and Fittings,912521,Purchase-furniture and fittings,10-Aug-2015,3008608-SJ/250,"9,625.00",SHOPJACKET LTD.
Regeneration & Economic Development,Economic Development and Housing,Cap Exp on Grants & Other Financial Assistance (REFCUS),918401,Capital grants,10-Aug-2015,3008644-RED-08-2015-041,"4,390.00",THYSSENKRUPP ENCASA A DIVISION OF THYSSENKRUPP ACCESS LTD.
Regeneration & Economic Development,Transport and Contracted Services,Third Party Payments,430100,Rendered by Private Contractors,10-Aug-2015,3008661-CONCFARES-JUL15,"1,887.16",WEARDALE MOTOR SERVICES LTD.
Regeneration & Economic Development,Transport and Contracted Services,Third Party Payments,430100,Rendered by Private Contractors,10-Aug-2015,3008661-CONCFARES,"14,294.70",WEARDALE MOTOR SERVICES LTD.
Resources,I.C.T. Services,Supplies and Services,342051,Computers and Communications,10-Aug-2015,3008355-419661,647.24,BYTES SOFTWARE SERVICES LTD.
Resources,I.C.T. Services,Supplies and Services,384199,Miscellaneous Expenses,10-Aug-2015,3008363-79438,"1,330.00",CENTRAL POWER SERVICES LTD.
Resources,I.C.T. Services,Stock,926900,Stock in hand-Inventory system,10-Aug-2015,3008399-7402222387,"4,685.04",DELL COMPUTER CORPORATION LTD.
Resources,I.C.T. Services,Stock,926900,Stock in hand-Inventory system,10-Aug-2015,3008399-7402222564,"4,164.48",DELL COMPUTER CORPORATION LTD.
Resources,Financial Services,Transfer Payments,520002,Housing Benefits,10-Aug-2015,3008407-RENT-REBATE,"4,029.98",DURHAM CITY HOMES LTD.
Resources,Financial Services,Transfer Payments,520002,Housing Benefits,10-Aug-2015,3008412-RENT-REBATE,"2,684.12",EAST DURHAM HOMES.
Resources,Legal & Democratic Services,Supplies and Services,338057,Services,10-Aug-2015,3008416-1287,677.60,ELYSIAN PATHOLOGY SERVICES LTD.
Resources,I.C.T. Services,Supplies and Services,342051,Computers and Communications,10-Aug-2015,3008435-116106,"1,040.00",GRAITEC LTD.
Resources,Legal & Democratic Services,Supplies and Services,338057,Services,10-Aug-2015,3008592-0000020628,"1,140.00",ROAR FORENSICS LTD.
Resources,I.C.T. Services,Supplies and Services,338099,Services,10-Aug-2015,3008600-10264,"5,944.00",SATISNET LTD.
Resources,I.C.T. Services,Construction Work,908105,Construction work,10-Aug-2015,3008616-INV01188078,"2,957.84",SOFTCAT LTD.
Resources,I.C.T. Services,Supplies and Services,304303,Equipment and Materials,10-Aug-2015,3008648-114516,834.80,TP ELECTRICAL SUPPLIES & FIXINGS LTD.
Resources,I.C.T. Services,Stock,926900,Stock in hand-Inventory system,10-Aug-2015,3008669-Y534419,"1,498.97",XMA LTD.
Resources,I.C.T. Services,Stock,926900,Stock in hand-Inventory system,10-Aug-2015,3008669-Y534614,"4,224.87",XMA LTD.
Resources,I.C.T. Services,Stock,926900,Stock in hand-Inventory system,10-Aug-2015,3008669-Y539546,988.77,XMA LTD.
Resources,I.C.T. Services,Stock,926900,Stock in hand-Inventory system,10-Aug-2015,3008669-Y541228,"68,200.00",XMA LTD.
Assistant Chief Executive,Partnerships & Community Engagement Div.,Cap Exp on Grants & Other Financial Assistance (REFCUS),918004,Contributions to other bodies,11-Aug-2015,3009282-VOUCHER15NB-DCTY010,"6,000.00",ALL SAINTS CHURCH (NEWTON HALL).
Assistant Chief Executive,Partnerships & Community Engagement Div.,Supplies and Services,384086,Miscellaneous Expenses,11-Aug-2015,3009306-VOUCHER15NB-EDU011,"10,000.00",BLACKHALL COMMUNITY ASSOCIATION.
Assistant Chief Executive,Partnerships & Community Engagement Div.,Supplies and Services,384086,Miscellaneous Expenses,11-Aug-2015,3009492-VOUCHER14NB-STAN019,"4,000.00",STANLEY INDOOR BOWLS CENTRE.
Children and Adult Services,Central Charges (CYPS),Creditors,952123,Creditor-Governorth,11-Aug-2015,3009311-148,"2,000.00",BRENDA STEEL CONSULTANCY SERVICES.
Children and Adult Services,Childrens Services,Third Party Payments,440016,Other Third Party Payments,11-Aug-2015,3008744-1044918,"3,725.69",REDACTED - PAYMENT TO INDIVIDUAL
Children and Adult Services,Childrens Services,Third Party Payments,440016,Other Third Party Payments,11-Aug-2015,3008777-1044956,"5,107.10",REDACTED - PAYMENT TO INDIVIDUAL
Children and Adult Services,Childrens Services,Third Party Payments,440016,Other Third Party Payments,11-Aug-2015,3008777-1044957,"2,643.00",REDACTED - PAYMENT TO INDIVIDUAL
Children and Adult Services,Childrens Services,Third Party Payments,440001,Other Third Party Payments,11-Aug-2015,3008783-1044508,972.00,REDACTED - PAYMENT TO INDIVIDUAL
Children and Adult Services,Childrens Services,Third Party Payments,440001,Other Third Party Payments,11-Aug-2015,3008828-1044522,918.00,REDACTED - PAYMENT TO INDIVIDUAL
Children and Adult Services,Childrens Services,Third Party Payments,440001,Other Third Party Payments,11-Aug-2015,3008828-1044551,"1,012.86",REDACTED - PAYMENT TO INDIVIDUAL
Children and Adult Services,Childrens Services,Third Party Payments,440015,Other Third Party Payments,11-Aug-2015,3008921-1044837,"2,169.68",REDACTED - PAYMENT TO INDIVIDUAL
Children and Adult Services,Childrens Services,Third Party Payments,440015,Other Third Party Payments,11-Aug-2015,3008921-1044838,"2,337.18",REDACTED - PAYMENT TO INDIVIDUAL
Children and Adult Services,Childrens Services,Employees,080025,Agency Staff,11-Aug-2015,3009319-2312860,"1,700.00",CELSIAN.
Children and Adult Services,Childrens Services,Supplies and Services,384199,Miscellaneous Expenses,11-Aug-2015,3009367-GB/101111/3206,553.45,FINGERSHIELD HUMBERSIDE.
Children and Adult Services,Childrens Services,Supplies and Services,364358,Grants to Voluntary Organisations,11-Aug-2015,3009518-CAS-08-2015-013,"4,963.49",VICTORIA HALL LTD (NEWCASTLE).
Dedicated Schools Grant,Dedicated Schools Grant,Third Party Payments,440080,Other Third Party Payments,11-Aug-2015,3009455-0000021927,"1,056.04",NORTH EAST AUTISM SOCIETY.
Dedicated Schools Grant,Dedicated Schools Grant,Third Party Payments,410037,Rendered by Other Local Authorities,11-Aug-2015,3009495-561329,"4,000.00",STOCKTON ON TEES BOROUGH COUNCIL.
Children and Adult Services,Education,Third Party Payments,440999,Other Third Party Payments,11-Aug-2015,3009506-TW23/14,"6,720.00",THEM WIFIES.
Children and Adult Services,Head of Adults,Transport,230005,Contract Hire,11-Aug-2015,3009278-G16/SS,952.00,AABAT TAXIS.
Children and Adult Services,Head of Adults,Supplies and Services,304516,Equipment and Materials,11-Aug-2015,3009316-1052/07,987.35,CABLES TAXI CONTRACTS.
Children and Adult Services,Head of Adults,Transport,230005,Contract Hire,11-Aug-2015,3009379-48A,678.50,GRAEME AGNEW T/A STREETCARS.
Children and Adult Services,Head of Adults,Transport,230005,Contract Hire,11-Aug-2015,3009391-IR1507007,"1,150.00",I & R EXECUTIVE TRAVEL.
Children and Adult Services,Head of Adults,Supplies and Services,384616,Miscellaneous Expenses,11-Aug-2015,3009395-15EAST/C/2015/07/08,931.20,ISOS HOUSING LTD FORMERLY NOMADE5 HOUSING GROUP LTD.
Children and Adult Services,Head of Adults,Transport,230005,Contract Hire,11-Aug-2015,3009428-201525,750.00,MR JR FORT.
Children and Adult Services,Head of Adults,Supplies and Services,304252,Equipment and Materials,11-Aug-2015,3009445-NO1089982/P,885.00,NEVILLE LANGLEY PAINTER AND DECORATOR.
Children and Adult Services,Head of Adults,Third Party Payments,470101,Purchase of Care,11-Aug-2015,3009500-258,"3,850.29",TALBOT HOUSE SCHOOL.
Children and Adult Services,Head of Adults,Employees,080025,Agency Staff,11-Aug-2015,3009502-4810005428,"3,876.42",TEES ESK & WEAR VALLEYS NHS FOUNDATION TRUST.
Children and Adult Services,Planning & Service Strategy,Employees,040149,Recruitment Instruction and Training,11-Aug-2015,3009364-13308,"12,500.00",FAMILY LINKS.
Children and Adult Services,Public Health,Third Party Payments,460802,Contract Payments,11-Aug-2015,3009295-A83021/Q1HC2015,"2,600.00",AUCKLAND MEDICAL GROUP.
Children and Adult Services,Public Health,Third Party Payments,460802,Contract Payments,11-Aug-2015,3009313-A83009/Q1HC2015,600.00,BRIDGE END SURGERY.
Children and Adult Services,Public Health,Third Party Payments,460802,Contract Payments,11-Aug-2015,3009318-A83038/Q1HC2015,600.00,CEDARS MEDICAL GROUP.
Children and Adult Services,Public Health,Third Party Payments,460802,Contract Payments,11-Aug-2015,3009320-A83050/Q1HC2015,"1,425.00",CESTRIA HEALTH CENTRE.
Children and Adult Services,Public Health,Third Party Payments,460802,Contract Payments,11-Aug-2015,3009323-A83055/Q1HC2015,925.00,CHEVELEY PARK MEDICAL CENTRE.
Children and Adult Services,Public Health,Third Party Payments,460802,Contract Payments,11-Aug-2015,3009325-7910014828,"2,838.00",CITY HOSPITALS SUNDERLAND NHS FOUNDATION TRUST.
Children and Adult Services,Public Health,Third Party Payments,460802,Contract Payments,11-Aug-2015,3009330-A83027/Q1HC2015,"1,050.00",COXHOE MEDICAL PRACTICE.
Children and Adult Services,Public Health,Third Party Payments,460802,Contract Payments,11-Aug-2015,3009384-A83008/Q1HC2015,525.00,HALLGARTH SURGERY.
Children and Adult Services,Public Health,Third Party Payments,460802,Contract Payments,11-Aug-2015,3009394-A83012/Q1HC2015,"1,650.00",INTRAHEALTH LTD.
Children and Adult Services,Public Health,Third Party Payments,460802,Contract Payments,11-Aug-2015,3009412-A83051/Q1HC2015,875.00,MARLBOROUGH SURGERY.
Children and Adult Services,Public Health,Third Party Payments,460802,Contract Payments,11-Aug-2015,3009417-A83028/Q1HC2015,"1,900.00",MIDDLE CHARE MEDICAL GROUP.
Children and Adult Services,Public Health,Third Party Payments,460802,Contract Payments,11-Aug-2015,3009438-A83041/Q1HC2015,"1,200.00",MURTON MEDICAL GROUP.
Children and Adult Services,Public Health,Third Party Payments,460802,Contract Payments,11-Aug-2015,3009446-A83071/Q1HC2015,500.00,NEW SEAHAM MEDICAL GROUP.
Children and Adult Services,Public Health,Third Party Payments,460802,Contract Payments,11-Aug-2015,3009447-R0235560.,"20,919.60",NEWCASTLE UPON TYNE HOSPITALS NHS FOUNDATION TRUST.
Children and Adult Services,Public Health,Third Party Payments,460802,Contract Payments,11-Aug-2015,3009447-R0240077.,"8,020.00",NEWCASTLE UPON TYNE HOSPITALS NHS FOUNDATION TRUST.
Children and Adult Services,Public Health,Third Party Payments,460802,Contract Payments,11-Aug-2015,3009448-R0243070,"29,098.00",NEWCASTLE UPON TYNE HOSPITALS NHS FOUNDATION TRUST.
Children and Adult Services,Public Health,Third Party Payments,460802,Contract Payments,11-Aug-2015,3009458-A83020/Q1HC2015,"1,325.00",NORTH HOUSE SURGERY.
Children and Adult Services,Public Health,Third Party Payments,460802,Contract Payments,11-Aug-2015,3009466-A83072/Q1HC2015,"1,525.00",PARK HOUSE SURGERY.
Children and Adult Services,Public Health,Third Party Payments,460802,Contract Payments,11-Aug-2015,3009504-A83022/Q1HC2015,"1,125.00",THE MEDICAL GROUP.
Neighbourhood Services,Culture & Sport,Supplies and Services,384199,Miscellaneous Expenses,11-Aug-2015,3009277-INV-762,"2,250.00",A & C MEALING T/A UK TOURING.
Neighbourhood Services,Direct Services,Third Party Payments,430100,Rendered by Private Contractors,11-Aug-2015,3009279-60208514,568.94,AEBI SCHMIDT UK LTD.
Neighbourhood Services,Technical Services,Supplies and Services,304221,Equipment and Materials,11-Aug-2015,3009280-21769598,"1,376.63",AGGREGATE INDUSTRIES UK LTD.
Neighbourhood Services,Technical Services,Supplies and Services,304221,Equipment and Materials,11-Aug-2015,3009280-21769599,648.93,AGGREGATE INDUSTRIES UK LTD.
Neighbourhood Services,Culture & Sport,Supplies and Services,338047,Services,11-Aug-2015,3009298-BIB092,"2,078.83",BAKE IT BIG PRODUCTIONS LTD.
Neighbourhood Services,Direct Services,Transport,210057,Repair and Maintenance of Vehicles,11-Aug-2015,3009301-1047291,"4,112.00",BARNSHAW SECTION BENDERS LTD.
Neighbourhood Services,Direct Services,Third Party Payments,430100,Rendered by Private Contractors,11-Aug-2015,3009302-46040816,547.85,BELL TRUCK SALES LTD.
Neighbourhood Services,Direct Services,Stock,926004,Stock,11-Aug-2015,3009317-202679,"1,519.75",CARRS BILLINGTON AGRICULTURE.
Neighbourhood Services,Direct Services,Employees,080025,Agency Staff,11-Aug-2015,3009338-327173,"144,950.71",DE POEL MANAGED SERVICES LTD.
Neighbourhood Services,Direct Services,Transport,210057,Repair and Maintenance of Vehicles,11-Aug-2015,3009369-IN121439,540.00,FM STEELSTOCK LTD.
Neighbourhood Services,Direct Services,Transport,210057,Repair and Maintenance of Vehicles,11-Aug-2015,3009369-IN121898,816.00,FM STEELSTOCK LTD.
Neighbourhood Services,Direct Services,Transport,210057,Repair and Maintenance of Vehicles,11-Aug-2015,3009369-IN122896,"1,049.12",FM STEELSTOCK LTD.
Neighbourhood Services,Technical Services,Supplies and Services,304221,Equipment and Materials,11-Aug-2015,3009378-29977,760.00,GRAB & DELIVER LTD.
Neighbourhood Services,Direct Services,Stock,926004,Stock,11-Aug-2015,3009381-123520,697.32,GREENLAY (GRASS MACHINERY) LTD.
Neighbourhood Services,Direct Services,Stock,926004,Stock,11-Aug-2015,3009381-123521,"2,234.16",GREENLAY (GRASS MACHINERY) LTD.
Neighbourhood Services,Culture & Sport,Supplies and Services,338047,Services,11-Aug-2015,3009383-FBC691,595.00,GROWLING CLOWN.
Neighbourhood Services,Technical Services,Supplies and Services,304260,Equipment and Materials,11-Aug-2015,3009386-543815,"16,158.47",HARVEST ENERGY LTD.
Neighbourhood Services,Direct Services,Supplies and Services,304221,Equipment and Materials,11-Aug-2015,3009387-4490789,"4,218.72",HEADLAM (FLOORCOVERING DISTRIBUTORS) LTD.
Neighbourhood Services,Direct Services,Third Party Payments,430100,Rendered by Private Contractors,11-Aug-2015,3009389-59870,"1,247.66",HOGARTH COACHWORKS LTD.
Neighbourhood Services,Direct Services,Third Party Payments,430100,Rendered by Private Contractors,11-Aug-2015,3009389-59871,918.00,HOGARTH COACHWORKS LTD.
Neighbourhood Services,Technical Services,Third Party Payments,460151,Contract Payments,11-Aug-2015,3009393-495008,533.00,INSTARMAC GROUP PLC.
Neighbourhood Services,Technical Services,Third Party Payments,430100,Rendered by Private Contractors,11-Aug-2015,3009397-16305,502.89,JACK COUPE & SONS LTD T/A COUPE LINE.
Neighbourhood Services,Technical Services,Third Party Payments,430100,Rendered by Private Contractors,11-Aug-2015,3009397-16314,"1,563.00",JACK COUPE & SONS LTD T/A COUPE LINE.
Neighbourhood Services,Technical Services,Third Party Payments,430100,Rendered by Private Contractors,11-Aug-2015,3009397-16319,"16,297.25",JACK COUPE & SONS LTD T/A COUPE LINE.
Neighbourhood Services,Technical Services,Third Party Payments,430100,Rendered by Private Contractors,11-Aug-2015,3009397-16320,"3,790.09",JACK COUPE & SONS LTD T/A COUPE LINE.
Neighbourhood Services,Technical Services,Third Party Payments,430100,Rendered by Private Contractors,11-Aug-2015,3009397-16323,778.09,JACK COUPE & SONS LTD T/A COUPE LINE.
Neighbourhood Services,Technical Services,Third Party Payments,430100,Rendered by Private Contractors,11-Aug-2015,3009397-16326,"2,437.69",JACK COUPE & SONS LTD T/A COUPE LINE.
Neighbourhood Services,Direct Services,Third Party Payments,430100,Rendered by Private Contractors,11-Aug-2015,3009398-149015,"2,354.82",JG PAXTON & SONS LTD.
Neighbourhood Services,Technical Services,Supplies and Services,304358,Equipment and Materials,11-Aug-2015,3009399-23645,"1,197.70",JOHN R BUTTERFIELD LTD.
Neighbourhood Services,Direct Services,Supplies and Services,304221,Equipment and Materials,11-Aug-2015,3009401-CNI22535/D,511.03,JT DOVE LTD.
Neighbourhood Services,Technical Services,Supplies and Services,304358,Equipment and Materials,11-Aug-2015,3009409-31A,"2,302.95",M & E & MR WALTON.
Neighbourhood Services,Technical Services,Supplies and Services,304221,Equipment and Materials,11-Aug-2015,3009413-ZBB0832345,505.36,MARSHALLS MONO LTD.
Neighbourhood Services,Technical Services,Supplies and Services,304221,Equipment and Materials,11-Aug-2015,3009413-ZBB0842436,"3,775.61",MARSHALLS MONO LTD.
Neighbourhood Services,Culture & Sport,Supplies and Services,338099,Services,11-Aug-2015,3009415-33JUNE,"1,254.94",MICHAEL LONG.
Neighbourhood Services,Direct Services,Supplies and Services,384194,Miscellaneous Expenses,11-Aug-2015,3009452-34833,"2,850.00",NIRAMAX GROUP LTD.
Neighbourhood Services,Direct Services,Supplies and Services,304259,Equipment and Materials,11-Aug-2015,3009461-1653705,"2,316.00",NORTHERN TOOLS & ACCESSORIES.
Neighbourhood Services,Technical Services,Third Party Payments,430100,Rendered by Private Contractors,11-Aug-2015,3009462-91352736X,"2,423.00",NORTHUMBRIAN WATER LTD.
Neighbourhood Services,Technical Services,Third Party Payments,430100,Rendered by Private Contractors,11-Aug-2015,3009462-913527378,"1,038.50",NORTHUMBRIAN WATER LTD.
Neighbourhood Services,Direct Services,Supplies and Services,384194,Miscellaneous Expenses,11-Aug-2015,3009483-2063,715.04,SAFE STRIP UK LTD.
Neighbourhood Services,Direct Services,Third Party Payments,430100,Rendered by Private Contractors,11-Aug-2015,3009501-7090A,"10,987.79",TEAMS ROOFING LTD.
Neighbourhood Services,Direct Services,Third Party Payments,430100,Rendered by Private Contractors,11-Aug-2015,3009515-80054894,"5,834.00",TYCO FIRE & INTEGRATED SOLUTIONS (UK) LTD.
Neighbourhood Services,Technical Services,Third Party Payments,430100,Rendered by Private Contractors,11-Aug-2015,3009522-201550150,656.00,WEMO TEC UK LTD.
Neighbourhood Services,Technical Services,Third Party Payments,430100,Rendered by Private Contractors,11-Aug-2015,3009522-201550158,656.00,WEMO TEC UK LTD.
RED HRA,HRA Capital,Construction Work,908105,Construction work,11-Aug-2015,3009460-DI20215271,"3,704.02",NORTHERN POWERGRID (NORTHEAST) LTD.
Regeneration & Economic Development,Economic Development and Housing,Fees,901002,Professional fees,11-Aug-2015,3009294-15013360,"2,106.00",ATKINS LTD.
Regeneration & Economic Development,Economic Development and Housing,Construction Work,908105,Construction work,11-Aug-2015,3009299-VALUATION31-FINAL,"227,221.30",BALFOUR BEATTY CIVIL ENGINEERING LTD.
Regeneration & Economic Development,Economic Development and Housing,Supplies and Services,384437,Miscellaneous Expenses,11-Aug-2015,3009326-66292,"3,600.00",COMPASS ROYSTON TRAVEL LTD.
Regeneration & Economic Development,Economic Development and Housing,Supplies and Services,384437,Miscellaneous Expenses,11-Aug-2015,3009326-66293,"3,600.00",COMPASS ROYSTON TRAVEL LTD.
Regeneration & Economic Development,Spatial Policy Planning Assets & Environment,Premises,155001,Insurance of Premises,11-Aug-2015,3009337-002,507.39,DAVISON PROPERTY INVESTMENTS LTD.
Regeneration & Economic Development,Economic Development and Housing,Cap Exp on Grants & Other Financial Assistance (REFCUS),918401,Capital grants,11-Aug-2015,3009353-RED-08-2015-026,"2,596.34",EASIBATHE LTD.
Regeneration & Economic Development,Economic Development and Housing,Cap Exp on Grants & Other Financial Assistance (REFCUS),918401,Capital grants,11-Aug-2015,3009353-RED-08-2015-043,591.29,EASIBATHE LTD.
Regeneration & Economic Development,Economic Development and Housing,Cap Exp on Grants & Other Financial Assistance (REFCUS),918401,Capital grants,11-Aug-2015,3009363-RED-05-2015-013,"1,912.08",F TIFFEN BUILDING SERVICES.
Regeneration & Economic Development,Economic Development and Housing,Supplies and Services,384700,Miscellaneous Expenses,11-Aug-2015,3009382-RED-08-2015-062,"8,500.00",GROUNDWORK NORTH EAST.
Regeneration & Economic Development,Economic Development and Housing,Supplies and Services,384700,Miscellaneous Expenses,11-Aug-2015,3009451-RED-07-2015-179,"1,000.00",NICEY ICEY.
Regeneration & Economic Development,Transport and Contracted Services,Third Party Payments,430100,Rendered by Private Contractors,11-Aug-2015,3009464-033098,"1,098.00",NSL LTD.
Regeneration & Economic Development,Transport and Contracted Services,Third Party Payments,430100,Rendered by Private Contractors,11-Aug-2015,3009464-033099,"16,540.49",NSL LTD.
Regeneration & Economic Development,Economic Development and Housing,Supplies and Services,384437,Miscellaneous Expenses,11-Aug-2015,3009524-OrderNo1446275,736.27,WESTERN UNION BUSINESS SOLUTIONS.
Resources,I.C.T. Services,Stock,926900,Stock in hand-Inventory system,11-Aug-2015,3009339-7402215913,"1,520.00",DELL COMPUTER CORPORATION LTD.
Resources,Legal & Democratic Services,Supplies and Services,338042,Services,11-Aug-2015,3009424-57378CSM894,650.00,MR CHARLES MCCAIN.
Resources,Corporate Finance,Supplies and Services,384199,Miscellaneous Expenses,11-Aug-2015,3009476-QIL2536,"15,000.00",QUBIX INTERNATIONAL LTD.
Assistant Chief Executive,Partnerships & Community Engagement Div.,Cap Exp on Grants & Other Financial Assistance (REFCUS),918004,Contributions to other bodies,12-Aug-2015,3009563-VOUCHER14NB,"2,639.00",CARWOOD METHODIST CHURCH WITTON PARK.
Assistant Chief Executive,Partnerships & Community Engagement Div.,Cap Exp on Grants & Other Financial Assistance (REFCUS),918004,Contributions to other bodies,12-Aug-2015,3009565-VOUCHER15NB-EDUR012,"2,000.00",CASTLE EDEN PARISH COUNCIL.
Assistant Chief Executive,Partnerships & Community Engagement Div.,Cap Exp on Grants & Other Financial Assistance (REFCUS),918401,Capital grants,12-Aug-2015,3009633-INS1-DCC-CONTRIBUTION,"12,309.36",HORDEN YOUTH & COMMUNITY ASSOCIATION.
Children and Adult Services,Central/Other,Debtors,930024,Debtor-free nursing care,12-Aug-2015,3009796-2258663,640.00,ALLIANCE CARE.
Children and Adult Services,Central/Other,Debtors,930024,Debtor-free nursing care,12-Aug-2015,3009824-2257954,544.00,BRANCEPETH COURT.
Children and Adult Services,Central/Other,Debtors,930024,Debtor-free nursing care,12-Aug-2015,3009841-2258696,992.00,CRAIGARRAN CARE HOME WITH NURSING.
Children and Adult Services,Central/Other,Debtors,930024,Debtor-free nursing care,12-Aug-2015,3009846-2257128,"1,088.00",DEFOE COURT.
Children and Adult Services,Central/Other,Debtors,930024,Debtor-free nursing care,12-Aug-2015,3009849-2258894,"1,984.00",DEVONSHIRE HOUSE.
Children and Adult Services,Central/Other,Debtors,930024,Debtor-free nursing care,12-Aug-2015,3009849-2258896,"1,984.00",DEVONSHIRE HOUSE.
Children and Adult Services,Central/Other,Debtors,930024,Debtor-free nursing care,12-Aug-2015,3009849-2258899,"1,984.00",DEVONSHIRE HOUSE.
Children and Adult Services,Central/Other,Debtors,930024,Debtor-free nursing care,12-Aug-2015,3009869-2259036,736.00,EMBRACE ALL LTD.
Children and Adult Services,Central/Other,Debtors,930024,Debtor-free nursing care,12-Aug-2015,3009875-2258773,"1,983.99",FOUR SEASONS HEALTH CARE..
Children and Adult Services,Central/Other,Debtors,930024,Debtor-free nursing care,12-Aug-2015,3009906-2257924,616.56,KIMBLESWORTH NURSING HOME.
Children and Adult Services,Central/Other,Debtors,930024,Debtor-free nursing care,12-Aug-2015,3009934-2259014,640.00,LYONS COURT CARE HOME.
Children and Adult Services,Central/Other,Debtors,930024,Debtor-free nursing care,12-Aug-2015,3010029-2257382,768.00,ST MARGARETS NURSING HOME.
Children and Adult Services,Central/Other,Debtors,930024,Debtor-free nursing care,12-Aug-2015,3010040-2257529,640.00,TAMARIS HEALTHCARE LTD.
Children and Adult Services,Central/Other,Debtors,930024,Debtor-free nursing care,12-Aug-2015,3010045-2256428,640.00,TAMARIS HEALTHCARE LTD.
Children and Adult Services,Central/Other,Debtors,930024,Debtor-free nursing care,12-Aug-2015,3010048-2256844,976.00,TENLANDS NURSING HOME.
Children and Adult Services,Central/Other,Debtors,930024,Debtor-free nursing care,12-Aug-2015,3010074-2258929,"1,984.00",WEST HOUSE CARE HOME.
Children and Adult Services,Central/Other,Debtors,930024,Debtor-free nursing care,12-Aug-2015,3010075-2258895,"1,008.00",WEST LODGE HOMES.
Children and Adult Services,Childrens Services,Supplies and Services,364358,Grants to Voluntary Organisations,12-Aug-2015,3009549-666-1,"6,500.00",BEDE BROOKE LETTINGS LTD.
Children and Adult Services,Childrens Services,Third Party Payments,440001,Other Third Party Payments,12-Aug-2015,3009551-CAS-08-2015-017,750.00,REDACTED - PAYMENT TO INDIVIDUAL
Children and Adult Services,Childrens Services,Transport,230005,Contract Hire,12-Aug-2015,3009584-5474,764.40,CROFT BUSINESS SERVICES (UK) LTD T/A CROFT TAXIS.
Children and Adult Services,Childrens Services,Transport,230005,Contract Hire,12-Aug-2015,3009661-01082015,"1,080.00",MJ TIMNEY T/A KDC & C&M TAXIS.
Children and Adult Services,Childrens Services,Transport,230005,Contract Hire,12-Aug-2015,3009663-574,674.00,MOLLYS TAXIS.
Children and Adult Services,Childrens Services,Transport,230005,Contract Hire,12-Aug-2015,3009711-386,"1,235.00",ROAD RUNNERS (NE) LTD.
Children and Adult Services,Childrens Services,Transport,230005,Contract Hire,12-Aug-2015,3009711-387,"1,681.00",ROAD RUNNERS (NE) LTD.
Children and Adult Services,Childrens Services,Third Party Payments,425040,Rendered by Voluntary Organisations,12-Aug-2015,3009741-167606,910.00,SWIIS FOSTER CARE LTD.
Children and Adult Services,Childrens Services,Third Party Payments,425040,Rendered by Voluntary Organisations,12-Aug-2015,3009741-167608,730.03,SWIIS FOSTER CARE LTD.
Children and Adult Services,Childrens Services,Third Party Payments,425040,Rendered by Voluntary Organisations,12-Aug-2015,3009741-167609,759.99,SWIIS FOSTER CARE LTD.
Children and Adult Services,Childrens Services,Third Party Payments,425040,Rendered by Voluntary Organisations,12-Aug-2015,3009741-167610,"1,074.99",SWIIS FOSTER CARE LTD.
Children and Adult Services,Childrens Services,Third Party Payments,425040,Rendered by Voluntary Organisations,12-Aug-2015,3009741-167611,891.87,SWIIS FOSTER CARE LTD.
Children and Adult Services,Childrens Services,Third Party Payments,425040,Rendered by Voluntary Organisations,12-Aug-2015,3009741-167612,819.98,SWIIS FOSTER CARE LTD.
Children and Adult Services,Childrens Services,Third Party Payments,425040,Rendered by Voluntary Organisations,12-Aug-2015,3009741-167613,"1,068.97",SWIIS FOSTER CARE LTD.
Children and Adult Services,Commissioning inc Supporting People,Third Party Payments,479111,Purchase of Care,12-Aug-2015,3009727-1966,"6,250.00",SKILLS FOR PEOPLE.
Children and Adult Services,Commissioning inc Supporting People,Transfer Payments,515210,Social Services Clients,12-Aug-2015,3009790-CAS-08-2015-015,655.76,REDACTED - PAYMENT TO INDIVIDUAL
Children and Adult Services,Commissioning inc Supporting People,Third Party Payments,472113,Purchase of Care,12-Aug-2015,3009845-AL16,"11,250.00",DALE CARE LTD.
Children and Adult Services,Commissioning inc Supporting People,Third Party Payments,472112,Purchase of Care,12-Aug-2015,3009898-DRE17,"8,935.49",HOMECARE SUPPORT LTD T/A THE HUMAN SUPPORT GROUP.
Dedicated Schools Grant,Dedicated Schools Grant,Transport,230201,Contract Hire,12-Aug-2015,3009538-RI0001831651,808.16,ARVAL UK LTD.
Dedicated Schools Grant,Dedicated Schools Grant,Third Party Payments,410037,Rendered by Other Local Authorities,12-Aug-2015,3009546-BPSI5,"9,668.33",BARBARA PRIESTMAN ACADEMY.
Dedicated Schools Grant,Dedicated Schools Grant,Third Party Payments,410037,Rendered by Other Local Authorities,12-Aug-2015,3009546-BPSI6,"7,251.25",BARBARA PRIESTMAN ACADEMY.
Dedicated Schools Grant,Dedicated Schools Grant,Third Party Payments,440080,Other Third Party Payments,12-Aug-2015,3009616-I10629,"4,552.00",GATESHEAD COLLEGE.
Dedicated Schools Grant,Dedicated Schools Grant,Transport,230010,Contract Hire,12-Aug-2015,3009643-KW439,660.00,KWIK CABS.
Dedicated Schools Grant,Dedicated Schools Grant,Transport,230010,Contract Hire,12-Aug-2015,3009644-1049,"1,200.00",LD TAXIS.
Dedicated Schools Grant,Dedicated Schools Grant,Transport,230010,Contract Hire,12-Aug-2015,3009649-66/JULY15,610.00,LORRAINES TAXIS.
Dedicated Schools Grant,Dedicated Schools Grant,Transport,230010,Contract Hire,12-Aug-2015,3009655-071508,"1,300.00",MARK & JOHN CHISHOLM T/A (CHEVRON).
Dedicated Schools Grant,Dedicated Schools Grant,Supplies and Services,340001,Postages,12-Aug-2015,3009715-1801707063,787.00,ROYAL MAIL GROUP PLC.
Dedicated Schools Grant,Dedicated Schools Grant,Employees,080025,Agency Staff,12-Aug-2015,3009746-1027872,"1,647.15",TEACHING PERSONNEL LTD.
Children and Adult Services,Education,Transport,230008,Contract Hire,12-Aug-2015,300381-05/15198,914.50,COLLINS TAXIS.
Children and Adult Services,Education,Transport,230008,Contract Hire,12-Aug-2015,300381-06/15090,"2,764.08",COLLINS TAXIS.
Children and Adult Services,Education,Transport,230008,Contract Hire,12-Aug-2015,300381-06/15137,"1,543.70",COLLINS TAXIS.
Children and Adult Services,Education,Transport,230008,Contract Hire,12-Aug-2015,300381-06/15146,735.00,COLLINS TAXIS.
Children and Adult Services,Education,Transport,230008,Contract Hire,12-Aug-2015,300381-06/15198,"1,209.50",COLLINS TAXIS.
Children and Adult Services,Education,Transport,230008,Contract Hire,12-Aug-2015,300381-06/5087,"2,750.00",COLLINS TAXIS.
Children and Adult Services,Education,Transport,230009,Contract Hire,12-Aug-2015,300381-06/57252,600.00,COLLINS TAXIS.
Children and Adult Services,Education,Transport,230008,Contract Hire,12-Aug-2015,300381-07/15137,918.55,COLLINS TAXIS.
Children and Adult Services,Education,Transport,230008,Contract Hire,12-Aug-2015,300381-07/15146,637.00,COLLINS TAXIS.
Children and Adult Services,Education,Transport,230008,Contract Hire,12-Aug-2015,300381-07/15198,737.50,COLLINS TAXIS.
Children and Adult Services,Education,Transport,230008,Contract Hire,12-Aug-2015,300381-07/5087,"1,625.00",COLLINS TAXIS.
Children and Adult Services,Education,Transport,230008,Contract Hire,12-Aug-2015,300381-0715090,"1,633.32",COLLINS TAXIS.
Children and Adult Services,Education,Supplies and Services,352001,Conference Expenses,12-Aug-2015,300399-15-JUL-1105-JH,711.00,INDEPENDENT PARENTAL SPECIAL EDUCATION ADVICE (IPSEA).
Children and Adult Services,Education,Supplies and Services,338027,Services,12-Aug-2015,300436,642.98,ROSSMERE PRIMARY SCHOOL.
Children and Adult Services,Education,Transport,230007,Contract Hire,12-Aug-2015,3009599-7358,"21,804.60",DURHAM CITY COACHES.
Children and Adult Services,Education,Transport,230007,Contract Hire,12-Aug-2015,3009605-0664,587.99,EN ROUTE TRAVEL.
Children and Adult Services,Education,Transport,230008,Contract Hire,12-Aug-2015,3009605-0665,"1,044.94",EN ROUTE TRAVEL.
Children and Adult Services,Education,Transport,230009,Contract Hire,12-Aug-2015,3009638-766,696.00,JDS PRIVATE HIRE DURHAM.
Children and Adult Services,Education,Transport,230008,Contract Hire,12-Aug-2015,3009643-KW433,715.00,KWIK CABS.
Children and Adult Services,Education,Transport,230008,Contract Hire,12-Aug-2015,3009643-KW435,650.00,KWIK CABS.
Children and Adult Services,Education,Transport,230007,Contract Hire,12-Aug-2015,3009647-3221,721.50,LINCAB TAXIS.
Children and Adult Services,Education,Transport,230008,Contract Hire,12-Aug-2015,3009677-3846,"1,040.00",NIGHTINGALE COACHES.
Children and Adult Services,Education,Transport,230008,Contract Hire,12-Aug-2015,3009677-3847,910.00,NIGHTINGALE COACHES.
Children and Adult Services,Education,Transport,230008,Contract Hire,12-Aug-2015,3009677-3848,936.00,NIGHTINGALE COACHES.
Children and Adult Services,Education,Transport,230008,Contract Hire,12-Aug-2015,3009677-3849,546.00,NIGHTINGALE COACHES.
Children and Adult Services,Education,Transport,230008,Contract Hire,12-Aug-2015,3009677-3850,507.00,NIGHTINGALE COACHES.
Children and Adult Services,Education,Transport,230008,Contract Hire,12-Aug-2015,3009677-3851,585.00,NIGHTINGALE COACHES.
Children and Adult Services,Education,Transport,230008,Contract Hire,12-Aug-2015,3009677-3852,767.00,NIGHTINGALE COACHES.
Children and Adult Services,Education,Transport,230008,Contract Hire,12-Aug-2015,3009677-3853,767.00,NIGHTINGALE COACHES.
Children and Adult Services,Education,Transport,230008,Contract Hire,12-Aug-2015,3009677-3854,585.00,NIGHTINGALE COACHES.
Children and Adult Services,Education,Transport,230008,Contract Hire,12-Aug-2015,3009685-6128,"1,925.00",OVERLANDER LTD.
Children and Adult Services,Education,Transport,230008,Contract Hire,12-Aug-2015,3009685-6214,"1,137.50",OVERLANDER LTD.
Children and Adult Services,Education,Transport,230008,Contract Hire,12-Aug-2015,3009694-01346,840.00,PHILLIPS TAXI GROUP LTD.
Children and Adult Services,Education,Transfer Payments,510026,School Children,12-Aug-2015,3009696-13/04-17/07/2015,"1,755.00",PLAYDAY NURSERY.
Children and Adult Services,Education,Construction Work,908105,Construction work,12-Aug-2015,3009719-2054,"5,958.50",SAFE STRIP UK LTD.
Children and Adult Services,Education,Transfer Payments,510026,School Children,12-Aug-2015,3009754-THENURSERY0005,"1,267.50",THE NURSERY.
Children and Adult Services,Education,Supplies and Services,338094,Services,12-Aug-2015,3009762-15231,"1,092.00",TRIMDON VILLAGE HALL ASSOCIATION.
Children and Adult Services,Education,Transport,230008,Contract Hire,12-Aug-2015,3009773-164,910.00,WAYSIDE TAXIS.
Children and Adult Services,Education,Transport,230008,Contract Hire,12-Aug-2015,3009773-169,"1,066.00",WAYSIDE TAXIS.
Children and Adult Services,Head of Adults,Transport,230005,Contract Hire,12-Aug-2015,300378-DM149/JUNE,800.00,BENNETTS TAXIS.
Children and Adult Services,Head of Adults,Supplies and Services,384616,Miscellaneous Expenses,12-Aug-2015,300434-1001401,"1,737.06",PLACES FOR PEOPLE INDIVIDUAL SUPPORT.
Children and Adult Services,Head of Adults,Supplies and Services,384616,Miscellaneous Expenses,12-Aug-2015,300434-1001402,"2,286.39",PLACES FOR PEOPLE INDIVIDUAL SUPPORT.
Children and Adult Services,Head of Adults,Supplies and Services,338045,Services,12-Aug-2015,3009664-314112/INVJB211,"1,080.00",MJB
Children and Adult Services,Head of Adults,Supplies and Services,340001,Postages,12-Aug-2015,3009671-CAS-08-2015-005,"1,000.00",NEOPOST CREDIFON.
Children and Adult Services,Head of Adults,Transport,230005,Contract Hire,12-Aug-2015,3009756-157,760.00,THE TAXI COMPANY (MURTON) LTD.
Children and Adult Services,Head of Adults,Third Party Payments,470101,Purchase of Care,12-Aug-2015,3009784-2254616,"6,031.16",3 RED ADMIRAL COURT.
Children and Adult Services,Head of Adults,Third Party Payments,470101,Purchase of Care,12-Aug-2015,3009785-2254915,"6,397.60",368 THE RIDGE.
Children and Adult Services,Head of Adults,Third Party Payments,470101,Purchase of Care,12-Aug-2015,3009786-2254603,"1,970.88",A CHARLES THOMAS (CARE) LTD.
Children and Adult Services,Head of Adults,Third Party Payments,474101,Purchase of Care,12-Aug-2015,3009786-2254653,"2,064.08",A CHARLES THOMAS (CARE) LTD.
Children and Adult Services,Head of Adults,Third Party Payments,474101,Purchase of Care,12-Aug-2015,3009786-2254656,"2,064.08",A CHARLES THOMAS (CARE) LTD.
Children and Adult Services,Head of Adults,Third Party Payments,470101,Purchase of Care,12-Aug-2015,3009786-2254930,"1,970.88",A CHARLES THOMAS (CARE) LTD.
Children and Adult Services,Head of Adults,Third Party Payments,470101,Purchase of Care,12-Aug-2015,3009786-2255136,"1,970.88",A CHARLES THOMAS (CARE) LTD.
Children and Adult Services,Head of Adults,Third Party Payments,470101,Purchase of Care,12-Aug-2015,3009786-2255442,"1,970.88",A CHARLES THOMAS (CARE) LTD.
Children and Adult Services,Head of Adults,Third Party Payments,470101,Purchase of Care,12-Aug-2015,3009786-2255513,"1,970.88",A CHARLES THOMAS (CARE) LTD.
Children and Adult Services,Head of Adults,Third Party Payments,470101,Purchase of Care,12-Aug-2015,3009786-2255516,"1,970.88",A CHARLES THOMAS (CARE) LTD.
Children and Adult Services,Head of Adults,Third Party Payments,470101,Purchase of Care,12-Aug-2015,3009786-2255736,"1,970.88",A CHARLES THOMAS (CARE) LTD.
Children and Adult Services,Head of Adults,Third Party Payments,474101,Purchase of Care,12-Aug-2015,3009786-2255993,"2,064.08",A CHARLES THOMAS (CARE) LTD.
Children and Adult Services,Head of Adults,Third Party Payments,474101,Purchase of Care,12-Aug-2015,3009786-2256011,"2,064.08",A CHARLES THOMAS (CARE) LTD.
Children and Adult Services,Head of Adults,Third Party Payments,474101,Purchase of Care,12-Aug-2015,3009786-2256292,"2,064.08",A CHARLES THOMAS (CARE) LTD.
Children and Adult Services,Head of Adults,Third Party Payments,470101,Purchase of Care,12-Aug-2015,3009786-2256475,"1,970.88",A CHARLES THOMAS (CARE) LTD.
Children and Adult Services,Head of Adults,Third Party Payments,470101,Purchase of Care,12-Aug-2015,3009786-2256546,"1,970.88",A CHARLES THOMAS (CARE) LTD.
Children and Adult Services,Head of Adults,Third Party Payments,470101,Purchase of Care,12-Aug-2015,3009786-2256727,"1,970.88",A CHARLES THOMAS (CARE) LTD.
Children and Adult Services,Head of Adults,Third Party Payments,470101,Purchase of Care,12-Aug-2015,3009786-2256780,985.44,A CHARLES THOMAS (CARE) LTD.
Children and Adult Services,Head of Adults,Third Party Payments,470101,Purchase of Care,12-Aug-2015,3009786-2256818,"1,970.88",A CHARLES THOMAS (CARE) LTD.
Children and Adult Services,Head of Adults,Third Party Payments,470101,Purchase of Care,12-Aug-2015,3009786-2257072,"1,970.88",A CHARLES THOMAS (CARE) LTD.
Children and Adult Services,Head of Adults,Third Party Payments,474101,Purchase of Care,12-Aug-2015,3009786-2257452,"2,064.08",A CHARLES THOMAS (CARE) LTD.
Children and Adult Services,Head of Adults,Third Party Payments,470101,Purchase of Care,12-Aug-2015,3009786-2257500,"1,970.88",A CHARLES THOMAS (CARE) LTD.
Children and Adult Services,Head of Adults,Third Party Payments,470101,Purchase of Care,12-Aug-2015,3009786-2257506,"1,970.88",A CHARLES THOMAS (CARE) LTD.
Children and Adult Services,Head of Adults,Third Party Payments,470101,Purchase of Care,12-Aug-2015,3009786-2257589,"1,970.88",A CHARLES THOMAS (CARE) LTD.
Children and Adult Services,Head of Adults,Third Party Payments,474101,Purchase of Care,12-Aug-2015,3009786-2257841,"2,064.08",A CHARLES THOMAS (CARE) LTD.
Children and Adult Services,Head of Adults,Third Party Payments,474101,Purchase of Care,12-Aug-2015,3009786-2257977,"2,064.08",A CHARLES THOMAS (CARE) LTD.
Children and Adult Services,Head of Adults,Third Party Payments,474101,Purchase of Care,12-Aug-2015,3009786-2258301,"2,064.08",A CHARLES THOMAS (CARE) LTD.
Children and Adult Services,Head of Adults,Third Party Payments,474101,Purchase of Care,12-Aug-2015,3009786-2258529,"2,064.08",A CHARLES THOMAS (CARE) LTD.
Children and Adult Services,Head of Adults,Third Party Payments,474101,Purchase of Care,12-Aug-2015,3009787-2254418,"2,303.28",ABBEYMOOR CLINIC.
Children and Adult Services,Head of Adults,Third Party Payments,474101,Purchase of Care,12-Aug-2015,3009787-2256262,"2,303.28",ABBEYMOOR CLINIC.
Children and Adult Services,Head of Adults,Third Party Payments,474101,Purchase of Care,12-Aug-2015,3009787-2257989,"3,010.00",ABBEYMOOR CLINIC.
Children and Adult Services,Head of Adults,Third Party Payments,470101,Purchase of Care,12-Aug-2015,3009788-2254931,"1,970.88",ABBEYVALE.
Children and Adult Services,Head of Adults,Third Party Payments,470101,Purchase of Care,12-Aug-2015,3009788-2254967,"2,500.00",ABBEYVALE.
Children and Adult Services,Head of Adults,Third Party Payments,470101,Purchase of Care,12-Aug-2015,3009788-2255004,"1,970.88",ABBEYVALE.
Children and Adult Services,Head of Adults,Third Party Payments,471101,Purchase of Care,12-Aug-2015,3009788-2255014,"2,043.64",ABBEYVALE.
Children and Adult Services,Head of Adults,Third Party Payments,470101,Purchase of Care,12-Aug-2015,3009788-2255050,"1,970.88",ABBEYVALE.
Children and Adult Services,Head of Adults,Third Party Payments,471101,Purchase of Care,12-Aug-2015,3009788-2255117,"2,043.64",ABBEYVALE.
Children and Adult Services,Head of Adults,Third Party Payments,471101,Purchase of Care,12-Aug-2015,3009788-2255202,"2,539.28",ABBEYVALE.
Children and Adult Services,Head of Adults,Third Party Payments,471101,Purchase of Care,12-Aug-2015,3009788-2255327,"2,043.64",ABBEYVALE.
Children and Adult Services,Head of Adults,Third Party Payments,470101,Purchase of Care,12-Aug-2015,3009788-2255345,"2,030.88",ABBEYVALE.
Children and Adult Services,Head of Adults,Third Party Payments,471101,Purchase of Care,12-Aug-2015,3009788-2255428,"2,043.64",ABBEYVALE.
Children and Adult Services,Head of Adults,Third Party Payments,470101,Purchase of Care,12-Aug-2015,3009788-2255476,"1,970.88",ABBEYVALE.
Children and Adult Services,Head of Adults,Third Party Payments,470101,Purchase of Care,12-Aug-2015,3009788-2255486,"1,970.88",ABBEYVALE.
Children and Adult Services,Head of Adults,Third Party Payments,470101,Purchase of Care,12-Aug-2015,3009788-2255580,"2,500.00",ABBEYVALE.
Children and Adult Services,Head of Adults,Third Party Payments,471101,Purchase of Care,12-Aug-2015,3009788-2255624,"1,021.84",ABBEYVALE.
Children and Adult Services,Head of Adults,Third Party Payments,470101,Purchase of Care,12-Aug-2015,3009788-2255650,"2,500.00",ABBEYVALE.
Children and Adult Services,Head of Adults,Third Party Payments,471101,Purchase of Care,12-Aug-2015,3009788-2255693,"2,043.64",ABBEYVALE.
Children and Adult Services,Head of Adults,Third Party Payments,470101,Purchase of Care,12-Aug-2015,3009788-2255703,"1,970.88",ABBEYVALE.
Children and Adult Services,Head of Adults,Third Party Payments,470101,Purchase of Care,12-Aug-2015,3009788-2255725,"1,970.88",ABBEYVALE.
Children and Adult Services,Head of Adults,Third Party Payments,470101,Purchase of Care,12-Aug-2015,3009788-2255814,"1,970.88",ABBEYVALE.
Children and Adult Services,Head of Adults,Third Party Payments,470101,Purchase of Care,12-Aug-2015,3009788-2255870,"1,390.00",ABBEYVALE.
Children and Adult Services,Head of Adults,Third Party Payments,470101,Purchase of Care,12-Aug-2015,3009788-2256222,"1,970.88",ABBEYVALE.
Children and Adult Services,Head of Adults,Third Party Payments,471101,Purchase of Care,12-Aug-2015,3009788-2256395,"2,043.64",ABBEYVALE.
Children and Adult Services,Head of Adults,Third Party Payments,470101,Purchase of Care,12-Aug-2015,3009788-2256467,"1,478.16",ABBEYVALE.
Children and Adult Services,Head of Adults,Third Party Payments,471101,Purchase of Care,12-Aug-2015,3009788-2256761,"2,043.64",ABBEYVALE.
Children and Adult Services,Head of Adults,Third Party Payments,470101,Purchase of Care,12-Aug-2015,3009788-2257367,"1,970.88",ABBEYVALE.
Children and Adult Services,Head of Adults,Third Party Payments,470101,Purchase of Care,12-Aug-2015,3009788-2257387,"1,970.88",ABBEYVALE.
Children and Adult Services,Head of Adults,Third Party Payments,471101,Purchase of Care,12-Aug-2015,3009788-2257661,"2,043.64",ABBEYVALE.
Children and Adult Services,Head of Adults,Third Party Payments,471101,Purchase of Care,12-Aug-2015,3009788-2257720,"2,043.64",ABBEYVALE.
Children and Adult Services,Head of Adults,Third Party Payments,470101,Purchase of Care,12-Aug-2015,3009788-2258104,"1,970.88",ABBEYVALE.
Children and Adult Services,Head of Adults,Third Party Payments,470101,Purchase of Care,12-Aug-2015,3009788-2258163,"1,970.88",ABBEYVALE.
Children and Adult Services,Head of Adults,Third Party Payments,471101,Purchase of Care,12-Aug-2015,3009788-2258321,"2,043.64",ABBEYVALE.
Children and Adult Services,Head of Adults,Third Party Payments,471101,Purchase of Care,12-Aug-2015,3009788-2258411,"2,043.64",ABBEYVALE.
Children and Adult Services,Head of Adults,Third Party Payments,471101,Purchase of Care,12-Aug-2015,3009788-2258555,"2,043.64",ABBEYVALE.
Children and Adult Services,Head of Adults,Third Party Payments,470101,Purchase of Care,12-Aug-2015,3009788-2258637,"4,910.71",ABBEYVALE.
Children and Adult Services,Head of Adults,Third Party Payments,471101,Purchase of Care,12-Aug-2015,3009788-2258816,572.45,ABBEYVALE.
Children and Adult Services,Head of Adults,Third Party Payments,471101,Purchase of Care,12-Aug-2015,3009788-2258822,802.86,ABBEYVALE.
Children and Adult Services,Head of Adults,Third Party Payments,471101,Purchase of Care,12-Aug-2015,3009788-2258824,802.86,ABBEYVALE.
Children and Adult Services,Head of Adults,Third Party Payments,470101,Purchase of Care,12-Aug-2015,3009789-2254714,"1,970.88",ABBOTTS COURT CARE HOME.
Children and Adult Services,Head of Adults,Third Party Payments,471101,Purchase of Care,12-Aug-2015,3009789-2254793,"2,043.64",ABBOTTS COURT CARE HOME.
Children and Adult Services,Head of Adults,Third Party Payments,471101,Purchase of Care,12-Aug-2015,3009789-2254831,"2,043.64",ABBOTTS COURT CARE HOME.
Children and Adult Services,Head of Adults,Third Party Payments,470101,Purchase of Care,12-Aug-2015,3009789-2255273,"1,970.88",ABBOTTS COURT CARE HOME.
Children and Adult Services,Head of Adults,Third Party Payments,470101,Purchase of Care,12-Aug-2015,3009789-2255355,"1,970.88",ABBOTTS COURT CARE HOME.
Children and Adult Services,Head of Adults,Third Party Payments,471101,Purchase of Care,12-Aug-2015,3009789-2255522,"2,043.64",ABBOTTS COURT CARE HOME.
Children and Adult Services,Head of Adults,Third Party Payments,471101,Purchase of Care,12-Aug-2015,3009789-2255701,"2,043.64",ABBOTTS COURT CARE HOME.
Children and Adult Services,Head of Adults,Third Party Payments,471101,Purchase of Care,12-Aug-2015,3009789-2255834,"2,043.64",ABBOTTS COURT CARE HOME.
Children and Adult Services,Head of Adults,Third Party Payments,470101,Purchase of Care,12-Aug-2015,3009789-2255935,"1,970.88",ABBOTTS COURT CARE HOME.
Children and Adult Services,Head of Adults,Third Party Payments,470101,Purchase of Care,12-Aug-2015,3009789-2256042,"1,970.88",ABBOTTS COURT CARE HOME.
Children and Adult Services,Head of Adults,Third Party Payments,470101,Purchase of Care,12-Aug-2015,3009789-2256105,"1,337.38",ABBOTTS COURT CARE HOME.
Children and Adult Services,Head of Adults,Third Party Payments,471101,Purchase of Care,12-Aug-2015,3009789-2256115,"2,043.64",ABBOTTS COURT CARE HOME.
Children and Adult Services,Head of Adults,Third Party Payments,470101,Purchase of Care,12-Aug-2015,3009789-2256156,"1,970.88",ABBOTTS COURT CARE HOME.
Children and Adult Services,Head of Adults,Third Party Payments,470101,Purchase of Care,12-Aug-2015,3009789-2256317,"1,970.88",ABBOTTS COURT CARE HOME.
Children and Adult Services,Head of Adults,Third Party Payments,470101,Purchase of Care,12-Aug-2015,3009789-2256785,"1,970.88",ABBOTTS COURT CARE HOME.
Children and Adult Services,Head of Adults,Third Party Payments,470101,Purchase of Care,12-Aug-2015,3009789-2256847,"1,970.88",ABBOTTS COURT CARE HOME.
Children and Adult Services,Head of Adults,Third Party Payments,470101,Purchase of Care,12-Aug-2015,3009789-2256894,"1,970.88",ABBOTTS COURT CARE HOME.
Children and Adult Services,Head of Adults,Third Party Payments,470101,Purchase of Care,12-Aug-2015,3009789-2257158,"1,970.88",ABBOTTS COURT CARE HOME.
Children and Adult Services,Head of Adults,Third Party Payments,470101,Purchase of Care,12-Aug-2015,3009789-2257237,"1,970.88",ABBOTTS COURT CARE HOME.
Children and Adult Services,Head of Adults,Third Party Payments,471101,Purchase of Care,12-Aug-2015,3009789-2257413,"2,043.64",ABBOTTS COURT CARE HOME.
Children and Adult Services,Head of Adults,Third Party Payments,470101,Purchase of Care,12-Aug-2015,3009789-2257784,"1,970.88",ABBOTTS COURT CARE HOME.
Children and Adult Services,Head of Adults,Third Party Payments,470101,Purchase of Care,12-Aug-2015,3009789-2258386,"1,970.88",ABBOTTS COURT CARE HOME.
Children and Adult Services,Head of Adults,Third Party Payments,471101,Purchase of Care,12-Aug-2015,3009789-2258423,"2,043.64",ABBOTTS COURT CARE HOME.
Children and Adult Services,Head of Adults,Third Party Payments,470101,Purchase of Care,12-Aug-2015,3009789-2258549,"1,970.88",ABBOTTS COURT CARE HOME.
Children and Adult Services,Head of Adults,Third Party Payments,470101,Purchase of Care,12-Aug-2015,3009791-2255657,"1,864.56",ACOMB COURT.
Children and Adult Services,Head of Adults,Third Party Payments,470101,Purchase of Care,12-Aug-2015,3009792-2254710,"1,865.32",ACORN GRANGE NURSING HOME.
Children and Adult Services,Head of Adults,Third Party Payments,471101,Purchase of Care,12-Aug-2015,3009792-2254744,"1,939.12",ACORN GRANGE NURSING HOME.
Children and Adult Services,Head of Adults,Third Party Payments,470101,Purchase of Care,12-Aug-2015,3009792-2254775,"1,865.32",ACORN GRANGE NURSING HOME.
Children and Adult Services,Head of Adults,Third Party Payments,471101,Purchase of Care,12-Aug-2015,3009792-2255141,"1,939.12",ACORN GRANGE NURSING HOME.
Children and Adult Services,Head of Adults,Third Party Payments,470101,Purchase of Care,12-Aug-2015,3009792-2255245,"1,865.32",ACORN GRANGE NURSING HOME.
Children and Adult Services,Head of Adults,Third Party Payments,471101,Purchase of Care,12-Aug-2015,3009792-2255271,"1,939.12",ACORN GRANGE NURSING HOME.
Children and Adult Services,Head of Adults,Third Party Payments,471101,Purchase of Care,12-Aug-2015,3009792-2255407,"1,939.12",ACORN GRANGE NURSING HOME.
Children and Adult Services,Head of Adults,Third Party Payments,470101,Purchase of Care,12-Aug-2015,3009792-2255412,"1,865.32",ACORN GRANGE NURSING HOME.
Children and Adult Services,Head of Adults,Third Party Payments,470101,Purchase of Care,12-Aug-2015,3009792-2255495,"1,865.32",ACORN GRANGE NURSING HOME.
Children and Adult Services,Head of Adults,Third Party Payments,470101,Purchase of Care,12-Aug-2015,3009792-2255547,"1,865.32",ACORN GRANGE NURSING HOME.
Children and Adult Services,Head of Adults,Third Party Payments,471101,Purchase of Care,12-Aug-2015,3009792-2255707,"1,939.12",ACORN GRANGE NURSING HOME.
Children and Adult Services,Head of Adults,Third Party Payments,471101,Purchase of Care,12-Aug-2015,3009792-2255722,"1,939.12",ACORN GRANGE NURSING HOME.
Children and Adult Services,Head of Adults,Third Party Payments,471101,Purchase of Care,12-Aug-2015,3009792-2255787,"1,939.12",ACORN GRANGE NURSING HOME.
Children and Adult Services,Head of Adults,Third Party Payments,471101,Purchase of Care,12-Aug-2015,3009792-2255805,"1,939.12",ACORN GRANGE NURSING HOME.
Children and Adult Services,Head of Adults,Third Party Payments,471101,Purchase of Care,12-Aug-2015,3009792-2255822,"1,939.12",ACORN GRANGE NURSING HOME.
Children and Adult Services,Head of Adults,Third Party Payments,470101,Purchase of Care,12-Aug-2015,3009792-2255852,"1,865.32",ACORN GRANGE NURSING HOME.
Children and Adult Services,Head of Adults,Third Party Payments,470101,Purchase of Care,12-Aug-2015,3009792-2256138,"1,865.32",ACORN GRANGE NURSING HOME.
Children and Adult Services,Head of Adults,Third Party Payments,470101,Purchase of Care,12-Aug-2015,3009792-2256695,"1,865.32",ACORN GRANGE NURSING HOME.
Children and Adult Services,Head of Adults,Third Party Payments,470101,Purchase of Care,12-Aug-2015,3009792-2256797,732.80,ACORN GRANGE NURSING HOME.
Children and Adult Services,Head of Adults,Third Party Payments,470101,Purchase of Care,12-Aug-2015,3009792-2257215,"1,865.32",ACORN GRANGE NURSING HOME.
Children and Adult Services,Head of Adults,Third Party Payments,471101,Purchase of Care,12-Aug-2015,3009792-2257643,"1,939.12",ACORN GRANGE NURSING HOME.
Children and Adult Services,Head of Adults,Third Party Payments,471101,Purchase of Care,12-Aug-2015,3009792-2257698,"1,939.12",ACORN GRANGE NURSING HOME.
Children and Adult Services,Head of Adults,Third Party Payments,471101,Purchase of Care,12-Aug-2015,3009792-2257708,"1,939.12",ACORN GRANGE NURSING HOME.
Children and Adult Services,Head of Adults,Third Party Payments,470101,Purchase of Care,12-Aug-2015,3009792-2257812,"1,865.32",ACORN GRANGE NURSING HOME.
Children and Adult Services,Head of Adults,Third Party Payments,471101,Purchase of Care,12-Aug-2015,3009792-2258218,"1,939.12",ACORN GRANGE NURSING HOME.
Children and Adult Services,Head of Adults,Third Party Payments,471101,Purchase of Care,12-Aug-2015,3009792-2258253,"1,939.12",ACORN GRANGE NURSING HOME.
Children and Adult Services,Head of Adults,Third Party Payments,471101,Purchase of Care,12-Aug-2015,3009792-2258258,969.56,ACORN GRANGE NURSING HOME.
Children and Adult Services,Head of Adults,Third Party Payments,471101,Purchase of Care,12-Aug-2015,3009792-2258331,"1,939.12",ACORN GRANGE NURSING HOME.
Children and Adult Services,Head of Adults,Third Party Payments,470101,Purchase of Care,12-Aug-2015,3009792-2258551,"1,865.32",ACORN GRANGE NURSING HOME.
Children and Adult Services,Head of Adults,Third Party Payments,471101,Purchase of Care,12-Aug-2015,3009792-2258552,"1,939.12",ACORN GRANGE NURSING HOME.
Children and Adult Services,Head of Adults,Third Party Payments,470101,Purchase of Care,12-Aug-2015,3009792-2258561,"1,865.32",ACORN GRANGE NURSING HOME.
Children and Adult Services,Head of Adults,Third Party Payments,471101,Purchase of Care,12-Aug-2015,3009792-2258955,900.30,ACORN GRANGE NURSING HOME.
Children and Adult Services,Head of Adults,Third Party Payments,470101,Purchase of Care,12-Aug-2015,3009792-2258991,"7,794.37",ACORN GRANGE NURSING HOME.
Children and Adult Services,Head of Adults,Third Party Payments,471101,Purchase of Care,12-Aug-2015,3009793-2258271,"1,815.60",AILWYN HALL RESIDENTIAL CARE HOME.
Children and Adult Services,Head of Adults,Third Party Payments,470101,Purchase of Care,12-Aug-2015,3009794-2256342,"1,816.40",ALBANY CARE HOME.
Children and Adult Services,Head of Adults,Third Party Payments,471101,Purchase of Care,12-Aug-2015,3009795-2258206,881.80,ALEXANDRA VIEW CARE CENTRE.
Children and Adult Services,Head of Adults,Third Party Payments,470101,Purchase of Care,12-Aug-2015,3009796-2254449,"1,465.68",ALLIANCE CARE.
Children and Adult Services,Head of Adults,Third Party Payments,471101,Purchase of Care,12-Aug-2015,3009796-2254606,"2,043.64",ALLIANCE CARE.
Children and Adult Services,Head of Adults,Third Party Payments,470101,Purchase of Care,12-Aug-2015,3009796-2254609,"1,703.00",ALLIANCE CARE.
Children and Adult Services,Head of Adults,Third Party Payments,470101,Purchase of Care,12-Aug-2015,3009796-2254826,"1,970.88",ALLIANCE CARE.
Children and Adult Services,Head of Adults,Third Party Payments,470101,Purchase of Care,12-Aug-2015,3009796-2254985,"1,970.88",ALLIANCE CARE.
Children and Adult Services,Head of Adults,Third Party Payments,470101,Purchase of Care,12-Aug-2015,3009796-2254987,"1,189.96",ALLIANCE CARE.
Children and Adult Services,Head of Adults,Third Party Payments,474101,Purchase of Care,12-Aug-2015,3009796-2255334,"1,399.28",ALLIANCE CARE.
Children and Adult Services,Head of Adults,Third Party Payments,470101,Purchase of Care,12-Aug-2015,3009796-2255469,"1,970.88",ALLIANCE CARE.
Children and Adult Services,Head of Adults,Third Party Payments,471101,Purchase of Care,12-Aug-2015,3009796-2255675,"1,457.32",ALLIANCE CARE.
Children and Adult Services,Head of Adults,Third Party Payments,470101,Purchase of Care,12-Aug-2015,3009796-2255728,"1,465.68",ALLIANCE CARE.
Children and Adult Services,Head of Adults,Third Party Payments,471101,Purchase of Care,12-Aug-2015,3009796-2255732,"1,538.44",ALLIANCE CARE.
Children and Adult Services,Head of Adults,Third Party Payments,470101,Purchase of Care,12-Aug-2015,3009796-2255957,"1,970.88",ALLIANCE CARE.
Children and Adult Services,Head of Adults,Third Party Payments,470101,Purchase of Care,12-Aug-2015,3009796-2256043,"1,970.88",ALLIANCE CARE.
Children and Adult Services,Head of Adults,Third Party Payments,470101,Purchase of Care,12-Aug-2015,3009796-2256090,"1,337.04",ALLIANCE CARE.
Children and Adult Services,Head of Adults,Third Party Payments,471101,Purchase of Care,12-Aug-2015,3009796-2256322,"2,043.64",ALLIANCE CARE.
Children and Adult Services,Head of Adults,Third Party Payments,474101,Purchase of Care,12-Aug-2015,3009796-2256370,"1,802.96",ALLIANCE CARE.
Children and Adult Services,Head of Adults,Third Party Payments,474101,Purchase of Care,12-Aug-2015,3009796-2256386,"1,558.88",ALLIANCE CARE.
Children and Adult Services,Head of Adults,Third Party Payments,470101,Purchase of Care,12-Aug-2015,3009796-2256511,866.36,ALLIANCE CARE.
Children and Adult Services,Head of Adults,Third Party Payments,471101,Purchase of Care,12-Aug-2015,3009796-2256568,"1,454.44",ALLIANCE CARE.
Children and Adult Services,Head of Adults,Debtors,930135,Debtor Residential Care - IC+ Rehabilitation,12-Aug-2015,3009796-2256616,"1,035.15",ALLIANCE CARE.
Children and Adult Services,Head of Adults,Third Party Payments,474101,Purchase of Care,12-Aug-2015,3009796-2256691,"1,032.04",ALLIANCE CARE.
Children and Adult Services,Head of Adults,Third Party Payments,470101,Purchase of Care,12-Aug-2015,3009796-2256694,"1,453.60",ALLIANCE CARE.
Children and Adult Services,Head of Adults,Third Party Payments,470101,Purchase of Care,12-Aug-2015,3009796-2256721,"1,970.88",ALLIANCE CARE.
Children and Adult Services,Head of Adults,Third Party Payments,470101,Purchase of Care,12-Aug-2015,3009796-2256722,"1,970.88",ALLIANCE CARE.
Children and Adult Services,Head of Adults,Debtors,930136,Debtor Nursing Care - IC+ Nursing,12-Aug-2015,3009796-2256775,"1,084.07",ALLIANCE CARE.
Children and Adult Services,Head of Adults,Debtors,930135,Debtor Residential Care - IC+ Rehabilitation,12-Aug-2015,3009796-2256779,759.11,ALLIANCE CARE.
Children and Adult Services,Head of Adults,Third Party Payments,471101,Purchase of Care,12-Aug-2015,3009796-2256862,"1,021.80",ALLIANCE CARE.
Children and Adult Services,Head of Adults,Third Party Payments,471101,Purchase of Care,12-Aug-2015,3009796-2257030,"1,538.44",ALLIANCE CARE.
Children and Adult Services,Head of Adults,Third Party Payments,474101,Purchase of Care,12-Aug-2015,3009796-2257077,"1,375.40",ALLIANCE CARE.
Children and Adult Services,Head of Adults,Debtors,930135,Debtor Residential Care - IC+ Rehabilitation,12-Aug-2015,3009796-2257107,"1,656.24",ALLIANCE CARE.
Children and Adult Services,Head of Adults,Debtors,930135,Debtor Residential Care - IC+ Rehabilitation,12-Aug-2015,3009796-2257144,966.14,ALLIANCE CARE.
Children and Adult Services,Head of Adults,Third Party Payments,471101,Purchase of Care,12-Aug-2015,3009796-2257156,"2,043.64",ALLIANCE CARE.
